{"text_format":"1","workbook":"xlsx","n_sheets":4,"sheets":["TempO Answers","TempO Results","Sorted Results","Sorted Table"],"not_rendered":{"charts":0,"images":0,"macros":1,"external_links":0,"defined_names":23,"comments":0,"pivot_tables":0},"unopened":[],"bounds":{"document_bytes":16777216,"sheet_cells":100000,"rows_first":2000,"rows_last":500,"rows_between":2000,"halvings":0,"cell_chars":16384,"cell_head_chars":4096},"cells_cut":0,"cells_raw":0,"read":"whole","date_system":"1900"}

{"sheet":"TempO Answers","index":0,"n_rows":24,"n_cols":30,"rows_kept":24,"cut":false,"hidden":false,"merged":[[10,1,10,4],[10,17,10,20],[10,13,10,16],[10,9,10,12],[10,5,10,8]]}
["Type Event Name here",null,null,null,null,null,null,null,null,null,null,null,null,null,null,null,null,null,null,null,null,null,null,null,null,null,null,null,null,"DO NOT EDIT"]
["Type Event Date here",null,null,null,null,null,null,null,null,null,null,null,null,null,null,null,null,null,null,null,null,null,null,null,null,null,null,null,null,"Permitted Answers:"]
[null,null,null,null,null,null,null,null,null,null,null,null,null,null,null,null,null,null,null,null,null,null,null,null,null,null,null,null,null,"A"]
["Press the Enter or Tab keys to move to the next box.  The Home key takes you back to the top.",null,null,null,null,null,null,null,null,null,null,null,null,null,null,null,null,null,null,null,null,null,null,null,null,null,null,null,null,"B"]
["For each problem, enter A-F, or Z  (either upper or lower case).  Enter an X if the problem is voided.",null,null,null,null,null,null,null,null,null,null,null,null,null,null,null,null,null,null,null,null,null,null,null,null,null,null,null,null,"C"]
[null,null,null,null,null,null,null,null,null,null,null,null,null,null,null,null,null,null,null,null,null,null,null,null,null,null,null,null,null,"D"]
[null,30,"=","time (secs) allowed per problem",null,null,null,null,null,null,null,null,null,30,"=","penalty (secs) per incorrect answer",null,null,null,null,null,null,null,null,null,null,null,null,null,"E"]
[null,4,"=","problems per station",null,null,null,null,null,null,null,null,null,null,null,null,null,null,null,null,null,null,null,null,null,null,null,null,null,"F"]
[null,{"$f":"B8*B7","v":120},"=","time (secs) allowed per station",null,null,null,null,null,null,null,null,null,null,null,null,null,null,null,null,null,null,null,null,null,null,null,null,null,"Z"]
[null,null,null,null,null,null,null,null,null,null,null,null,null,null,null,null,null,null,null,null,null,null,null,null,null,null,null,null,null,"X"]
[null,"Station 1",null,null,null,"Station 2",null,null,null,"Station 3",null,null,null,"Station 4",null,null,null,"Station 5"]
[null,1,2,3,4,5,6,7,8,9,10,11,12,13,14,15,16,17,18,19,20]
["Stn:Prob","1:1","1:2","1:3","1:4","2:1","2:2","2:3","2:4","3:1","3:2","3:3","3:4","4:1","4:2","4:3","4:4","5:1","5:2","5:3","5:4"]
["Prob No.",1,2,3,4,5,6,7,8,9,10,11,12,13,14,15,16,17,18,19,20]
["Answer"]
[]
["If you cannot see the Answers, and/or want to edit them, click the Show button below.",null,null,null,null,null,null,null,null,null,null,null,null,null,null,null,null,null,null,null,null,null,null,"Total problems:",20]
[null,null,null,null,null,null,null,null,null,null,null,null,null,null,null,null,null,null,null,null,null,null,null,"No of voided problems ( X's):",{"$f":"COUNTIF(AnsRow,\"X\")","v":0}]
[null,"Click to make Answers visible:",null,null,null,null,null,null,null,null,null,null,null,null,null,null,null,null,null,null,null,null,null,"Non-voided problems:",{"$f":"Y17-Y18","v":20}]
[]
["You should hide the Answers during the event, to prevent anyone from accidentally seeing the correct answers on the screen."]
["This also protects them from accidental editing."]
[]
[null,"Click to hide Answers:"]

{"sheet":"TempO Results","index":1,"n_rows":139,"n_cols":43,"rows_kept":139,"cut":false,"hidden":false,"merged":[[3,0,5,0],[4,37,4,42],[3,6,5,6],[0,1,0,9],[3,4,5,4],[3,5,5,5],[3,11,3,15],[3,16,3,20],[3,21,3,25],[3,26,3,30],[3,31,3,35],[1,1,1,9]]}
[null,{"$f":"T('TempO Answers'!A1)","v":"Type Event Name here"},null,null,null,null,null,null,null,null,"Press the Enter or Tab keys to move to the next box.  The Home key takes you back to the top.",null,null,null,null,null,null,null,null,null,null,null,null,null,null,null,null,null,null,null,null,null,null,null,null,null,null,"Calculation cols: DO NOT EDIT"]
[null,{"$f":"T('TempO Answers'!A2)","v":"Type Event Date here"},null,null,null,null,null,null,null,null,"For each problem, enter A-F, or Z  (either upper or lower case).  Incorrect answers appear in Red font."]
[null,null,null,null,null,null,null,null,null,null,"If two (or more) answers have been given, enter both letters, e.g. BC.  If no answer given, leave blank.",null,null,null,null,null,null,null,null,null,null,null,null,null,null,null,null,null,null,null,null,null,null,null,null,null,null,"Max station time:",null,null,null,{"$f":"'TempO Answers'!B9","v":120},"secs"]
["Entry number",null,null,null,"Nation","No. Correct","No. Incorrect",null,null,null,null,"Station 1",null,null,null,null,"Station 2",null,null,null,null,"Station 3",null,null,null,null,"Station 4",null,null,null,null,"Station 5"]
[null,null,null,null,null,null,null,"Agg.","Penal",null,null,{"$f":"T('TempO Answers'!B15)","v":""},{"$f":"T('TempO Answers'!C15)","v":""},{"$f":"T('TempO Answers'!D15)","v":""},{"$f":"T('TempO Answers'!E15)","v":""},null,{"$f":"T('TempO Answers'!F15)","v":""},{"$f":"T('TempO Answers'!G15)","v":""},{"$f":"T('TempO Answers'!H15)","v":""},{"$f":"T('TempO Answers'!I15)","v":""},null,{"$f":"T('TempO Answers'!J15)","v":""},{"$f":"T('TempO Answers'!K15)","v":""},{"$f":"T('TempO Answers'!L15)","v":""},{"$f":"T('TempO Answers'!M15)","v":""},null,{"$f":"T('TempO Answers'!N15)","v":""},{"$f":"T('TempO Answers'!O15)","v":""},{"$f":"T('TempO Answers'!P15)","v":""},{"$f":"T('TempO Answers'!Q15)","v":""},null,{"$f":"T('TempO Answers'!R15)","v":""},{"$f":"T('TempO Answers'!S15)","v":""},{"$f":"T('TempO Answers'!T15)","v":""},{"$f":"T('TempO Answers'!U15)","v":""},null,null,"No. Correct"]
[null,"Rank","Name","Club",null,null,null,"Times (sec)","-ties (secs)","Result (sec)",null,1,2,3,4,"Time (sec)",5,6,7,8,"Time (sec)",9,10,11,12,"Time (sec)",13,14,15,16,"Time (sec)",17,18,19,20,"Time (sec)","  Warning message column","S1","S2","S3","S4","S5"]
[1,{"$f":"RANK(J7,$J$7:$J$138,1)","v":1},null,null,null,{"$f":"IF(H7<0.5,0,SUM(AL7:AP7))","v":0},{"$f":"'TempO Answers'!$Y$19-F7","v":20},{"$f":"SUM(AJ7,AE7,Z7,U7,P7)","v":0},{"$f":"G7*'TempO Answers'!$N$7","v":600},{"$f":"IF(H7<0.1,9999,H7+I7)","v":9999},null,null,null,null,null,null,null,null,null,null,null,null,null,null,null,null,null,null,null,null,null,null,null,null,null,null,{"$f":"IF(AND(H7>0.1,OR(P7<0.1,U7<0.1,Z7<0.1,AE7<0.1,AJ7<0.1)),\"  Warning:  Station times incomplete\",IF(ISNA(HLOOKUP(\"X\",L7:AI7,1,FALSE)),\"\",\"  Error: X answer is not allowed \"))","v":""},{"$f":"IF(L7='TempO Answers'!B$15,1,0)+IF(M7='TempO Answers'!C$15,1,0)+IF(N7='TempO Answers'!D$15,1,0)+IF(O7='TempO Answers'!E$15,1,0)","v":4},{"$f":"IF(Q7='TempO Answers'!F$15,1,0)+IF(R7='TempO Answers'!G$15,1,0)+IF(S7='TempO Answers'!H$15,1,0)+IF(T7='TempO Answers'!I$15,1,0)","v":4},{"$f":"IF(V7='TempO Answers'!J$15,1,0)+IF(W7='TempO Answers'!K$15,1,0)+IF(X7='TempO Answers'!L$15,1,0)+IF(Y7='TempO Answers'!M$15,1,0)","v":4},{"$f":"IF(AA7='TempO Answers'!N$15,1,0)+IF(AB7='TempO Answers'!O$15,1,0)+IF(AC7='TempO Answers'!P$15,1,0)+IF(AD7='TempO Answers'!Q$15,1,0)","v":4},{"$f":"IF(AF7='TempO Answers'!R$15,1,0)+IF(AG7='TempO Answers'!S$15,1,0)+IF(AH7='TempO Answers'!T$15,1,0)+IF(AI7='TempO Answers'!U$15,1,0)","v":4}]
[2,1,null,null,null,{"$f":"IF(H8<0.5,0,SUM(AL8:AP8))","v":0},{"$f":"'TempO Answers'!$Y$19-F8","v":20},{"$f":"SUM(AJ8,AE8,Z8,U8,P8)","v":0},{"$f":"G8*'TempO Answers'!$N$7","v":600},9999,null,null,null,null,null,null,null,null,null,null,null,null,null,null,null,null,null,null,null,null,null,null,null,null,null,null,{"$f":"IF(AND(H8>0.1,OR(P8<0.1,U8<0.1,Z8<0.1,AE8<0.1,AJ8<0.1)),\"  Warning:  Station times incomplete\",IF(ISNA(HLOOKUP(\"X\",L8:AI8,1,FALSE)),\"\",\"  Error: X answer is not allowed \"))","v":""},{"$f":"IF(L8='TempO Answers'!B$15,1,0)+IF(M8='TempO Answers'!C$15,1,0)+IF(N8='TempO Answers'!D$15,1,0)+IF(O8='TempO Answers'!E$15,1,0)","v":4},{"$f":"IF(Q8='TempO Answers'!F$15,1,0)+IF(R8='TempO Answers'!G$15,1,0)+IF(S8='TempO Answers'!H$15,1,0)+IF(T8='TempO Answers'!I$15,1,0)","v":4},{"$f":"IF(V8='TempO Answers'!J$15,1,0)+IF(W8='TempO Answers'!K$15,1,0)+IF(X8='TempO Answers'!L$15,1,0)+IF(Y8='TempO Answers'!M$15,1,0)","v":4},{"$f":"IF(AA8='TempO Answers'!N$15,1,0)+IF(AB8='TempO Answers'!O$15,1,0)+IF(AC8='TempO Answers'!P$15,1,0)+IF(AD8='TempO Answers'!Q$15,1,0)","v":4},{"$f":"IF(AF8='TempO Answers'!R$15,1,0)+IF(AG8='TempO Answers'!S$15,1,0)+IF(AH8='TempO Answers'!T$15,1,0)+IF(AI8='TempO Answers'!U$15,1,0)","v":4}]
[3,1,null,null,null,0,{"$f":"'TempO Answers'!$Y$19-F9","v":20},0,{"$f":"G9*'TempO Answers'!$N$7","v":600},9999,null,null,null,null,null,null,null,null,null,null,null,null,null,null,null,null,null,null,null,null,null,null,null,null,null,null,"",{"$f":"IF(L9='TempO Answers'!B$15,1,0)+IF(M9='TempO Answers'!C$15,1,0)+IF(N9='TempO Answers'!D$15,1,0)+IF(O9='TempO Answers'!E$15,1,0)","v":4},{"$f":"IF(Q9='TempO Answers'!F$15,1,0)+IF(R9='TempO Answers'!G$15,1,0)+IF(S9='TempO Answers'!H$15,1,0)+IF(T9='TempO Answers'!I$15,1,0)","v":4},{"$f":"IF(V9='TempO Answers'!J$15,1,0)+IF(W9='TempO Answers'!K$15,1,0)+IF(X9='TempO Answers'!L$15,1,0)+IF(Y9='TempO Answers'!M$15,1,0)","v":4},{"$f":"IF(AA9='TempO Answers'!N$15,1,0)+IF(AB9='TempO Answers'!O$15,1,0)+IF(AC9='TempO Answers'!P$15,1,0)+IF(AD9='TempO Answers'!Q$15,1,0)","v":4},{"$f":"IF(AF9='TempO Answers'!R$15,1,0)+IF(AG9='TempO Answers'!S$15,1,0)+IF(AH9='TempO Answers'!T$15,1,0)+IF(AI9='TempO Answers'!U$15,1,0)","v":4}]
[4,1,null,null,null,0,{"$f":"'TempO Answers'!$Y$19-F10","v":20},0,{"$f":"G10*'TempO Answers'!$N$7","v":600},9999,null,null,null,null,null,null,null,null,null,null,null,null,null,null,null,null,null,null,null,null,null,null,null,null,null,null,"",{"$f":"IF(L10='TempO Answers'!B$15,1,0)+IF(M10='TempO Answers'!C$15,1,0)+IF(N10='TempO Answers'!D$15,1,0)+IF(O10='TempO Answers'!E$15,1,0)","v":4},{"$f":"IF(Q10='TempO Answers'!F$15,1,0)+IF(R10='TempO Answers'!G$15,1,0)+IF(S10='TempO Answers'!H$15,1,0)+IF(T10='TempO Answers'!I$15,1,0)","v":4},{"$f":"IF(V10='TempO Answers'!J$15,1,0)+IF(W10='TempO Answers'!K$15,1,0)+IF(X10='TempO Answers'!L$15,1,0)+IF(Y10='TempO Answers'!M$15,1,0)","v":4},{"$f":"IF(AA10='TempO Answers'!N$15,1,0)+IF(AB10='TempO Answers'!O$15,1,0)+IF(AC10='TempO Answers'!P$15,1,0)+IF(AD10='TempO Answers'!Q$15,1,0)","v":4},{"$f":"IF(AF10='TempO Answers'!R$15,1,0)+IF(AG10='TempO Answers'!S$15,1,0)+IF(AH10='TempO Answers'!T$15,1,0)+IF(AI10='TempO Answers'!U$15,1,0)","v":4}]
[5,1,null,null,null,0,{"$f":"'TempO Answers'!$Y$19-F11","v":20},0,{"$f":"G11*'TempO Answers'!$N$7","v":600},9999,null,null,null,null,null,null,null,null,null,null,null,null,null,null,null,null,null,null,null,null,null,null,null,null,null,null,"",{"$f":"IF(L11='TempO Answers'!B$15,1,0)+IF(M11='TempO Answers'!C$15,1,0)+IF(N11='TempO Answers'!D$15,1,0)+IF(O11='TempO Answers'!E$15,1,0)","v":4},{"$f":"IF(Q11='TempO Answers'!F$15,1,0)+IF(R11='TempO Answers'!G$15,1,0)+IF(S11='TempO Answers'!H$15,1,0)+IF(T11='TempO Answers'!I$15,1,0)","v":4},{"$f":"IF(V11='TempO Answers'!J$15,1,0)+IF(W11='TempO Answers'!K$15,1,0)+IF(X11='TempO Answers'!L$15,1,0)+IF(Y11='TempO Answers'!M$15,1,0)","v":4},{"$f":"IF(AA11='TempO Answers'!N$15,1,0)+IF(AB11='TempO Answers'!O$15,1,0)+IF(AC11='TempO Answers'!P$15,1,0)+IF(AD11='TempO Answers'!Q$15,1,0)","v":4},{"$f":"IF(AF11='TempO Answers'!R$15,1,0)+IF(AG11='TempO Answers'!S$15,1,0)+IF(AH11='TempO Answers'!T$15,1,0)+IF(AI11='TempO Answers'!U$15,1,0)","v":4}]
[6,1,null,null,null,0,{"$f":"'TempO Answers'!$Y$19-F12","v":20},0,{"$f":"G12*'TempO Answers'!$N$7","v":600},9999,null,null,null,null,null,null,null,null,null,null,null,null,null,null,null,null,null,null,null,null,null,null,null,null,null,null,"",{"$f":"IF(L12='TempO Answers'!B$15,1,0)+IF(M12='TempO Answers'!C$15,1,0)+IF(N12='TempO Answers'!D$15,1,0)+IF(O12='TempO Answers'!E$15,1,0)","v":4},{"$f":"IF(Q12='TempO Answers'!F$15,1,0)+IF(R12='TempO Answers'!G$15,1,0)+IF(S12='TempO Answers'!H$15,1,0)+IF(T12='TempO Answers'!I$15,1,0)","v":4},{"$f":"IF(V12='TempO Answers'!J$15,1,0)+IF(W12='TempO Answers'!K$15,1,0)+IF(X12='TempO Answers'!L$15,1,0)+IF(Y12='TempO Answers'!M$15,1,0)","v":4},{"$f":"IF(AA12='TempO Answers'!N$15,1,0)+IF(AB12='TempO Answers'!O$15,1,0)+IF(AC12='TempO Answers'!P$15,1,0)+IF(AD12='TempO Answers'!Q$15,1,0)","v":4},{"$f":"IF(AF12='TempO Answers'!R$15,1,0)+IF(AG12='TempO Answers'!S$15,1,0)+IF(AH12='TempO Answers'!T$15,1,0)+IF(AI12='TempO Answers'!U$15,1,0)","v":4}]
[7,1,null,null,null,0,{"$f":"'TempO Answers'!$Y$19-F13","v":20},0,{"$f":"G13*'TempO Answers'!$N$7","v":600},9999,null,null,null,null,null,null,null,null,null,null,null,null,null,null,null,null,null,null,null,null,null,null,null,null,null,null,"",{"$f":"IF(L13='TempO Answers'!B$15,1,0)+IF(M13='TempO Answers'!C$15,1,0)+IF(N13='TempO Answers'!D$15,1,0)+IF(O13='TempO Answers'!E$15,1,0)","v":4},{"$f":"IF(Q13='TempO Answers'!F$15,1,0)+IF(R13='TempO Answers'!G$15,1,0)+IF(S13='TempO Answers'!H$15,1,0)+IF(T13='TempO Answers'!I$15,1,0)","v":4},{"$f":"IF(V13='TempO Answers'!J$15,1,0)+IF(W13='TempO Answers'!K$15,1,0)+IF(X13='TempO Answers'!L$15,1,0)+IF(Y13='TempO Answers'!M$15,1,0)","v":4},{"$f":"IF(AA13='TempO Answers'!N$15,1,0)+IF(AB13='TempO Answers'!O$15,1,0)+IF(AC13='TempO Answers'!P$15,1,0)+IF(AD13='TempO Answers'!Q$15,1,0)","v":4},{"$f":"IF(AF13='TempO Answers'!R$15,1,0)+IF(AG13='TempO Answers'!S$15,1,0)+IF(AH13='TempO Answers'!T$15,1,0)+IF(AI13='TempO Answers'!U$15,1,0)","v":4}]
[8,1,null,null,null,0,{"$f":"'TempO Answers'!$Y$19-F14","v":20},0,{"$f":"G14*'TempO Answers'!$N$7","v":600},9999,null,null,null,null,null,null,null,null,null,null,null,null,null,null,null,null,null,null,null,null,null,null,null,null,null,null,"",{"$f":"IF(L14='TempO Answers'!B$15,1,0)+IF(M14='TempO Answers'!C$15,1,0)+IF(N14='TempO Answers'!D$15,1,0)+IF(O14='TempO Answers'!E$15,1,0)","v":4},{"$f":"IF(Q14='TempO Answers'!F$15,1,0)+IF(R14='TempO Answers'!G$15,1,0)+IF(S14='TempO Answers'!H$15,1,0)+IF(T14='TempO Answers'!I$15,1,0)","v":4},{"$f":"IF(V14='TempO Answers'!J$15,1,0)+IF(W14='TempO Answers'!K$15,1,0)+IF(X14='TempO Answers'!L$15,1,0)+IF(Y14='TempO Answers'!M$15,1,0)","v":4},{"$f":"IF(AA14='TempO Answers'!N$15,1,0)+IF(AB14='TempO Answers'!O$15,1,0)+IF(AC14='TempO Answers'!P$15,1,0)+IF(AD14='TempO Answers'!Q$15,1,0)","v":4},{"$f":"IF(AF14='TempO Answers'!R$15,1,0)+IF(AG14='TempO Answers'!S$15,1,0)+IF(AH14='TempO Answers'!T$15,1,0)+IF(AI14='TempO Answers'!U$15,1,0)","v":4}]
[9,1,null,null,null,0,{"$f":"'TempO Answers'!$Y$19-F15","v":20},0,{"$f":"G15*'TempO Answers'!$N$7","v":600},9999,null,null,null,null,null,null,null,null,null,null,null,null,null,null,null,null,null,null,null,null,null,null,null,null,null,null,"",{"$f":"IF(L15='TempO Answers'!B$15,1,0)+IF(M15='TempO Answers'!C$15,1,0)+IF(N15='TempO Answers'!D$15,1,0)+IF(O15='TempO Answers'!E$15,1,0)","v":4},{"$f":"IF(Q15='TempO Answers'!F$15,1,0)+IF(R15='TempO Answers'!G$15,1,0)+IF(S15='TempO Answers'!H$15,1,0)+IF(T15='TempO Answers'!I$15,1,0)","v":4},{"$f":"IF(V15='TempO Answers'!J$15,1,0)+IF(W15='TempO Answers'!K$15,1,0)+IF(X15='TempO Answers'!L$15,1,0)+IF(Y15='TempO Answers'!M$15,1,0)","v":4},{"$f":"IF(AA15='TempO Answers'!N$15,1,0)+IF(AB15='TempO Answers'!O$15,1,0)+IF(AC15='TempO Answers'!P$15,1,0)+IF(AD15='TempO Answers'!Q$15,1,0)","v":4},{"$f":"IF(AF15='TempO Answers'!R$15,1,0)+IF(AG15='TempO Answers'!S$15,1,0)+IF(AH15='TempO Answers'!T$15,1,0)+IF(AI15='TempO Answers'!U$15,1,0)","v":4}]
[10,1,null,null,null,0,{"$f":"'TempO Answers'!$Y$19-F16","v":20},0,{"$f":"G16*'TempO Answers'!$N$7","v":600},9999,null,null,null,null,null,null,null,null,null,null,null,null,null,null,null,null,null,null,null,null,null,null,null,null,null,null,"",{"$f":"IF(L16='TempO Answers'!B$15,1,0)+IF(M16='TempO Answers'!C$15,1,0)+IF(N16='TempO Answers'!D$15,1,0)+IF(O16='TempO Answers'!E$15,1,0)","v":4},{"$f":"IF(Q16='TempO Answers'!F$15,1,0)+IF(R16='TempO Answers'!G$15,1,0)+IF(S16='TempO Answers'!H$15,1,0)+IF(T16='TempO Answers'!I$15,1,0)","v":4},{"$f":"IF(V16='TempO Answers'!J$15,1,0)+IF(W16='TempO Answers'!K$15,1,0)+IF(X16='TempO Answers'!L$15,1,0)+IF(Y16='TempO Answers'!M$15,1,0)","v":4},{"$f":"IF(AA16='TempO Answers'!N$15,1,0)+IF(AB16='TempO Answers'!O$15,1,0)+IF(AC16='TempO Answers'!P$15,1,0)+IF(AD16='TempO Answers'!Q$15,1,0)","v":4},{"$f":"IF(AF16='TempO Answers'!R$15,1,0)+IF(AG16='TempO Answers'!S$15,1,0)+IF(AH16='TempO Answers'!T$15,1,0)+IF(AI16='TempO Answers'!U$15,1,0)","v":4}]
[11,1,null,null,null,0,{"$f":"'TempO Answers'!$Y$19-F17","v":20},0,{"$f":"G17*'TempO Answers'!$N$7","v":600},9999,null,null,null,null,null,null,null,null,null,null,null,null,null,null,null,null,null,null,null,null,null,null,null,null,null,null,"",{"$f":"IF(L17='TempO Answers'!B$15,1,0)+IF(M17='TempO Answers'!C$15,1,0)+IF(N17='TempO Answers'!D$15,1,0)+IF(O17='TempO Answers'!E$15,1,0)","v":4},{"$f":"IF(Q17='TempO Answers'!F$15,1,0)+IF(R17='TempO Answers'!G$15,1,0)+IF(S17='TempO Answers'!H$15,1,0)+IF(T17='TempO Answers'!I$15,1,0)","v":4},{"$f":"IF(V17='TempO Answers'!J$15,1,0)+IF(W17='TempO Answers'!K$15,1,0)+IF(X17='TempO Answers'!L$15,1,0)+IF(Y17='TempO Answers'!M$15,1,0)","v":4},{"$f":"IF(AA17='TempO Answers'!N$15,1,0)+IF(AB17='TempO Answers'!O$15,1,0)+IF(AC17='TempO Answers'!P$15,1,0)+IF(AD17='TempO Answers'!Q$15,1,0)","v":4},{"$f":"IF(AF17='TempO Answers'!R$15,1,0)+IF(AG17='TempO Answers'!S$15,1,0)+IF(AH17='TempO Answers'!T$15,1,0)+IF(AI17='TempO Answers'!U$15,1,0)","v":4}]
[12,1,null,null,null,0,{"$f":"'TempO Answers'!$Y$19-F18","v":20},0,{"$f":"G18*'TempO Answers'!$N$7","v":600},9999,null,null,null,null,null,null,null,null,null,null,null,null,null,null,null,null,null,null,null,null,null,null,null,null,null,null,"",{"$f":"IF(L18='TempO Answers'!B$15,1,0)+IF(M18='TempO Answers'!C$15,1,0)+IF(N18='TempO Answers'!D$15,1,0)+IF(O18='TempO Answers'!E$15,1,0)","v":4},{"$f":"IF(Q18='TempO Answers'!F$15,1,0)+IF(R18='TempO Answers'!G$15,1,0)+IF(S18='TempO Answers'!H$15,1,0)+IF(T18='TempO Answers'!I$15,1,0)","v":4},{"$f":"IF(V18='TempO Answers'!J$15,1,0)+IF(W18='TempO Answers'!K$15,1,0)+IF(X18='TempO Answers'!L$15,1,0)+IF(Y18='TempO Answers'!M$15,1,0)","v":4},{"$f":"IF(AA18='TempO Answers'!N$15,1,0)+IF(AB18='TempO Answers'!O$15,1,0)+IF(AC18='TempO Answers'!P$15,1,0)+IF(AD18='TempO Answers'!Q$15,1,0)","v":4},{"$f":"IF(AF18='TempO Answers'!R$15,1,0)+IF(AG18='TempO Answers'!S$15,1,0)+IF(AH18='TempO Answers'!T$15,1,0)+IF(AI18='TempO Answers'!U$15,1,0)","v":4}]
[13,1,null,null,null,0,{"$f":"'TempO Answers'!$Y$19-F19","v":20},0,{"$f":"G19*'TempO Answers'!$N$7","v":600},9999,null,null,null,null,null,null,null,null,null,null,null,null,null,null,null,null,null,null,null,null,null,null,null,null,null,null,"",{"$f":"IF(L19='TempO Answers'!B$15,1,0)+IF(M19='TempO Answers'!C$15,1,0)+IF(N19='TempO Answers'!D$15,1,0)+IF(O19='TempO Answers'!E$15,1,0)","v":4},{"$f":"IF(Q19='TempO Answers'!F$15,1,0)+IF(R19='TempO Answers'!G$15,1,0)+IF(S19='TempO Answers'!H$15,1,0)+IF(T19='TempO Answers'!I$15,1,0)","v":4},{"$f":"IF(V19='TempO Answers'!J$15,1,0)+IF(W19='TempO Answers'!K$15,1,0)+IF(X19='TempO Answers'!L$15,1,0)+IF(Y19='TempO Answers'!M$15,1,0)","v":4},{"$f":"IF(AA19='TempO Answers'!N$15,1,0)+IF(AB19='TempO Answers'!O$15,1,0)+IF(AC19='TempO Answers'!P$15,1,0)+IF(AD19='TempO Answers'!Q$15,1,0)","v":4},{"$f":"IF(AF19='TempO Answers'!R$15,1,0)+IF(AG19='TempO Answers'!S$15,1,0)+IF(AH19='TempO Answers'!T$15,1,0)+IF(AI19='TempO Answers'!U$15,1,0)","v":4}]
[14,1,null,null,null,0,{"$f":"'TempO Answers'!$Y$19-F20","v":20},0,{"$f":"G20*'TempO Answers'!$N$7","v":600},9999,null,null,null,null,null,null,null,null,null,null,null,null,null,null,null,null,null,null,null,null,null,null,null,null,null,null,"",{"$f":"IF(L20='TempO Answers'!B$15,1,0)+IF(M20='TempO Answers'!C$15,1,0)+IF(N20='TempO Answers'!D$15,1,0)+IF(O20='TempO Answers'!E$15,1,0)","v":4},{"$f":"IF(Q20='TempO Answers'!F$15,1,0)+IF(R20='TempO Answers'!G$15,1,0)+IF(S20='TempO Answers'!H$15,1,0)+IF(T20='TempO Answers'!I$15,1,0)","v":4},{"$f":"IF(V20='TempO Answers'!J$15,1,0)+IF(W20='TempO Answers'!K$15,1,0)+IF(X20='TempO Answers'!L$15,1,0)+IF(Y20='TempO Answers'!M$15,1,0)","v":4},{"$f":"IF(AA20='TempO Answers'!N$15,1,0)+IF(AB20='TempO Answers'!O$15,1,0)+IF(AC20='TempO Answers'!P$15,1,0)+IF(AD20='TempO Answers'!Q$15,1,0)","v":4},{"$f":"IF(AF20='TempO Answers'!R$15,1,0)+IF(AG20='TempO Answers'!S$15,1,0)+IF(AH20='TempO Answers'!T$15,1,0)+IF(AI20='TempO Answers'!U$15,1,0)","v":4}]
[15,1,null,null,null,0,{"$f":"'TempO Answers'!$Y$19-F21","v":20},0,{"$f":"G21*'TempO Answers'!$N$7","v":600},9999,null,null,null,null,null,null,null,null,null,null,null,null,null,null,null,null,null,null,null,null,null,null,null,null,null,null,"",{"$f":"IF(L21='TempO Answers'!B$15,1,0)+IF(M21='TempO Answers'!C$15,1,0)+IF(N21='TempO Answers'!D$15,1,0)+IF(O21='TempO Answers'!E$15,1,0)","v":4},{"$f":"IF(Q21='TempO Answers'!F$15,1,0)+IF(R21='TempO Answers'!G$15,1,0)+IF(S21='TempO Answers'!H$15,1,0)+IF(T21='TempO Answers'!I$15,1,0)","v":4},{"$f":"IF(V21='TempO Answers'!J$15,1,0)+IF(W21='TempO Answers'!K$15,1,0)+IF(X21='TempO Answers'!L$15,1,0)+IF(Y21='TempO Answers'!M$15,1,0)","v":4},{"$f":"IF(AA21='TempO Answers'!N$15,1,0)+IF(AB21='TempO Answers'!O$15,1,0)+IF(AC21='TempO Answers'!P$15,1,0)+IF(AD21='TempO Answers'!Q$15,1,0)","v":4},{"$f":"IF(AF21='TempO Answers'!R$15,1,0)+IF(AG21='TempO Answers'!S$15,1,0)+IF(AH21='TempO Answers'!T$15,1,0)+IF(AI21='TempO Answers'!U$15,1,0)","v":4}]
[16,1,null,null,null,0,{"$f":"'TempO Answers'!$Y$19-F22","v":20},0,{"$f":"G22*'TempO Answers'!$N$7","v":600},9999,null,null,null,null,null,null,null,null,null,null,null,null,null,null,null,null,null,null,null,null,null,null,null,null,null,null,"",{"$f":"IF(L22='TempO Answers'!B$15,1,0)+IF(M22='TempO Answers'!C$15,1,0)+IF(N22='TempO Answers'!D$15,1,0)+IF(O22='TempO Answers'!E$15,1,0)","v":4},{"$f":"IF(Q22='TempO Answers'!F$15,1,0)+IF(R22='TempO Answers'!G$15,1,0)+IF(S22='TempO Answers'!H$15,1,0)+IF(T22='TempO Answers'!I$15,1,0)","v":4},{"$f":"IF(V22='TempO Answers'!J$15,1,0)+IF(W22='TempO Answers'!K$15,1,0)+IF(X22='TempO Answers'!L$15,1,0)+IF(Y22='TempO Answers'!M$15,1,0)","v":4},{"$f":"IF(AA22='TempO Answers'!N$15,1,0)+IF(AB22='TempO Answers'!O$15,1,0)+IF(AC22='TempO Answers'!P$15,1,0)+IF(AD22='TempO Answers'!Q$15,1,0)","v":4},{"$f":"IF(AF22='TempO Answers'!R$15,1,0)+IF(AG22='TempO Answers'!S$15,1,0)+IF(AH22='TempO Answers'!T$15,1,0)+IF(AI22='TempO Answers'!U$15,1,0)","v":4}]
[17,1,null,null,null,0,{"$f":"'TempO Answers'!$Y$19-F23","v":20},0,{"$f":"G23*'TempO Answers'!$N$7","v":600},9999,null,null,null,null,null,null,null,null,null,null,null,null,null,null,null,null,null,null,null,null,null,null,null,null,null,null,"",{"$f":"IF(L23='TempO Answers'!B$15,1,0)+IF(M23='TempO Answers'!C$15,1,0)+IF(N23='TempO Answers'!D$15,1,0)+IF(O23='TempO Answers'!E$15,1,0)","v":4},{"$f":"IF(Q23='TempO Answers'!F$15,1,0)+IF(R23='TempO Answers'!G$15,1,0)+IF(S23='TempO Answers'!H$15,1,0)+IF(T23='TempO Answers'!I$15,1,0)","v":4},{"$f":"IF(V23='TempO Answers'!J$15,1,0)+IF(W23='TempO Answers'!K$15,1,0)+IF(X23='TempO Answers'!L$15,1,0)+IF(Y23='TempO Answers'!M$15,1,0)","v":4},{"$f":"IF(AA23='TempO Answers'!N$15,1,0)+IF(AB23='TempO Answers'!O$15,1,0)+IF(AC23='TempO Answers'!P$15,1,0)+IF(AD23='TempO Answers'!Q$15,1,0)","v":4},{"$f":"IF(AF23='TempO Answers'!R$15,1,0)+IF(AG23='TempO Answers'!S$15,1,0)+IF(AH23='TempO Answers'!T$15,1,0)+IF(AI23='TempO Answers'!U$15,1,0)","v":4}]
[18,1,null,null,null,0,{"$f":"'TempO Answers'!$Y$19-F24","v":20},0,{"$f":"G24*'TempO Answers'!$N$7","v":600},9999,null,null,null,null,null,null,null,null,null,null,null,null,null,null,null,null,null,null,null,null,null,null,null,null,null,null,"",{"$f":"IF(L24='TempO Answers'!B$15,1,0)+IF(M24='TempO Answers'!C$15,1,0)+IF(N24='TempO Answers'!D$15,1,0)+IF(O24='TempO Answers'!E$15,1,0)","v":4},{"$f":"IF(Q24='TempO Answers'!F$15,1,0)+IF(R24='TempO Answers'!G$15,1,0)+IF(S24='TempO Answers'!H$15,1,0)+IF(T24='TempO Answers'!I$15,1,0)","v":4},{"$f":"IF(V24='TempO Answers'!J$15,1,0)+IF(W24='TempO Answers'!K$15,1,0)+IF(X24='TempO Answers'!L$15,1,0)+IF(Y24='TempO Answers'!M$15,1,0)","v":4},{"$f":"IF(AA24='TempO Answers'!N$15,1,0)+IF(AB24='TempO Answers'!O$15,1,0)+IF(AC24='TempO Answers'!P$15,1,0)+IF(AD24='TempO Answers'!Q$15,1,0)","v":4},{"$f":"IF(AF24='TempO Answers'!R$15,1,0)+IF(AG24='TempO Answers'!S$15,1,0)+IF(AH24='TempO Answers'!T$15,1,0)+IF(AI24='TempO Answers'!U$15,1,0)","v":4}]
[19,1,null,null,null,0,{"$f":"'TempO Answers'!$Y$19-F25","v":20},0,{"$f":"G25*'TempO Answers'!$N$7","v":600},9999,null,null,null,null,null,null,null,null,null,null,null,null,null,null,null,null,null,null,null,null,null,null,null,null,null,null,"",{"$f":"IF(L25='TempO Answers'!B$15,1,0)+IF(M25='TempO Answers'!C$15,1,0)+IF(N25='TempO Answers'!D$15,1,0)+IF(O25='TempO Answers'!E$15,1,0)","v":4},{"$f":"IF(Q25='TempO Answers'!F$15,1,0)+IF(R25='TempO Answers'!G$15,1,0)+IF(S25='TempO Answers'!H$15,1,0)+IF(T25='TempO Answers'!I$15,1,0)","v":4},{"$f":"IF(V25='TempO Answers'!J$15,1,0)+IF(W25='TempO Answers'!K$15,1,0)+IF(X25='TempO Answers'!L$15,1,0)+IF(Y25='TempO Answers'!M$15,1,0)","v":4},{"$f":"IF(AA25='TempO Answers'!N$15,1,0)+IF(AB25='TempO Answers'!O$15,1,0)+IF(AC25='TempO Answers'!P$15,1,0)+IF(AD25='TempO Answers'!Q$15,1,0)","v":4},{"$f":"IF(AF25='TempO Answers'!R$15,1,0)+IF(AG25='TempO Answers'!S$15,1,0)+IF(AH25='TempO Answers'!T$15,1,0)+IF(AI25='TempO Answers'!U$15,1,0)","v":4}]
[20,1,null,null,null,0,{"$f":"'TempO Answers'!$Y$19-F26","v":20},0,{"$f":"G26*'TempO Answers'!$N$7","v":600},9999,null,null,null,null,null,null,null,null,null,null,null,null,null,null,null,null,null,null,null,null,null,null,null,null,null,null,"",{"$f":"IF(L26='TempO Answers'!B$15,1,0)+IF(M26='TempO Answers'!C$15,1,0)+IF(N26='TempO Answers'!D$15,1,0)+IF(O26='TempO Answers'!E$15,1,0)","v":4},{"$f":"IF(Q26='TempO Answers'!F$15,1,0)+IF(R26='TempO Answers'!G$15,1,0)+IF(S26='TempO Answers'!H$15,1,0)+IF(T26='TempO Answers'!I$15,1,0)","v":4},{"$f":"IF(V26='TempO Answers'!J$15,1,0)+IF(W26='TempO Answers'!K$15,1,0)+IF(X26='TempO Answers'!L$15,1,0)+IF(Y26='TempO Answers'!M$15,1,0)","v":4},{"$f":"IF(AA26='TempO Answers'!N$15,1,0)+IF(AB26='TempO Answers'!O$15,1,0)+IF(AC26='TempO Answers'!P$15,1,0)+IF(AD26='TempO Answers'!Q$15,1,0)","v":4},{"$f":"IF(AF26='TempO Answers'!R$15,1,0)+IF(AG26='TempO Answers'!S$15,1,0)+IF(AH26='TempO Answers'!T$15,1,0)+IF(AI26='TempO Answers'!U$15,1,0)","v":4}]
[21,1,null,null,null,0,{"$f":"'TempO Answers'!$Y$19-F27","v":20},0,{"$f":"G27*'TempO Answers'!$N$7","v":600},9999,null,null,null,null,null,null,null,null,null,null,null,null,null,null,null,null,null,null,null,null,null,null,null,null,null,null,"",{"$f":"IF(L27='TempO Answers'!B$15,1,0)+IF(M27='TempO Answers'!C$15,1,0)+IF(N27='TempO Answers'!D$15,1,0)+IF(O27='TempO Answers'!E$15,1,0)","v":4},{"$f":"IF(Q27='TempO Answers'!F$15,1,0)+IF(R27='TempO Answers'!G$15,1,0)+IF(S27='TempO Answers'!H$15,1,0)+IF(T27='TempO Answers'!I$15,1,0)","v":4},{"$f":"IF(V27='TempO Answers'!J$15,1,0)+IF(W27='TempO Answers'!K$15,1,0)+IF(X27='TempO Answers'!L$15,1,0)+IF(Y27='TempO Answers'!M$15,1,0)","v":4},{"$f":"IF(AA27='TempO Answers'!N$15,1,0)+IF(AB27='TempO Answers'!O$15,1,0)+IF(AC27='TempO Answers'!P$15,1,0)+IF(AD27='TempO Answers'!Q$15,1,0)","v":4},{"$f":"IF(AF27='TempO Answers'!R$15,1,0)+IF(AG27='TempO Answers'!S$15,1,0)+IF(AH27='TempO Answers'!T$15,1,0)+IF(AI27='TempO Answers'!U$15,1,0)","v":4}]
[22,1,null,null,null,0,{"$f":"'TempO Answers'!$Y$19-F28","v":20},0,{"$f":"G28*'TempO Answers'!$N$7","v":600},9999,null,null,null,null,null,null,null,null,null,null,null,null,null,null,null,null,null,null,null,null,null,null,null,null,null,null,"",{"$f":"IF(L28='TempO Answers'!B$15,1,0)+IF(M28='TempO Answers'!C$15,1,0)+IF(N28='TempO Answers'!D$15,1,0)+IF(O28='TempO Answers'!E$15,1,0)","v":4},{"$f":"IF(Q28='TempO Answers'!F$15,1,0)+IF(R28='TempO Answers'!G$15,1,0)+IF(S28='TempO Answers'!H$15,1,0)+IF(T28='TempO Answers'!I$15,1,0)","v":4},{"$f":"IF(V28='TempO Answers'!J$15,1,0)+IF(W28='TempO Answers'!K$15,1,0)+IF(X28='TempO Answers'!L$15,1,0)+IF(Y28='TempO Answers'!M$15,1,0)","v":4},{"$f":"IF(AA28='TempO Answers'!N$15,1,0)+IF(AB28='TempO Answers'!O$15,1,0)+IF(AC28='TempO Answers'!P$15,1,0)+IF(AD28='TempO Answers'!Q$15,1,0)","v":4},{"$f":"IF(AF28='TempO Answers'!R$15,1,0)+IF(AG28='TempO Answers'!S$15,1,0)+IF(AH28='TempO Answers'!T$15,1,0)+IF(AI28='TempO Answers'!U$15,1,0)","v":4}]
[23,1,null,null,null,0,{"$f":"'TempO Answers'!$Y$19-F29","v":20},0,{"$f":"G29*'TempO Answers'!$N$7","v":600},9999,null,null,null,null,null,null,null,null,null,null,null,null,null,null,null,null,null,null,null,null,null,null,null,null,null,null,"",{"$f":"IF(L29='TempO Answers'!B$15,1,0)+IF(M29='TempO Answers'!C$15,1,0)+IF(N29='TempO Answers'!D$15,1,0)+IF(O29='TempO Answers'!E$15,1,0)","v":4},{"$f":"IF(Q29='TempO Answers'!F$15,1,0)+IF(R29='TempO Answers'!G$15,1,0)+IF(S29='TempO Answers'!H$15,1,0)+IF(T29='TempO Answers'!I$15,1,0)","v":4},{"$f":"IF(V29='TempO Answers'!J$15,1,0)+IF(W29='TempO Answers'!K$15,1,0)+IF(X29='TempO Answers'!L$15,1,0)+IF(Y29='TempO Answers'!M$15,1,0)","v":4},{"$f":"IF(AA29='TempO Answers'!N$15,1,0)+IF(AB29='TempO Answers'!O$15,1,0)+IF(AC29='TempO Answers'!P$15,1,0)+IF(AD29='TempO Answers'!Q$15,1,0)","v":4},{"$f":"IF(AF29='TempO Answers'!R$15,1,0)+IF(AG29='TempO Answers'!S$15,1,0)+IF(AH29='TempO Answers'!T$15,1,0)+IF(AI29='TempO Answers'!U$15,1,0)","v":4}]
[24,1,null,null,null,0,{"$f":"'TempO Answers'!$Y$19-F30","v":20},0,{"$f":"G30*'TempO Answers'!$N$7","v":600},9999,null,null,null,null,null,null,null,null,null,null,null,null,null,null,null,null,null,null,null,null,null,null,null,null,null,null,"",{"$f":"IF(L30='TempO Answers'!B$15,1,0)+IF(M30='TempO Answers'!C$15,1,0)+IF(N30='TempO Answers'!D$15,1,0)+IF(O30='TempO Answers'!E$15,1,0)","v":4},{"$f":"IF(Q30='TempO Answers'!F$15,1,0)+IF(R30='TempO Answers'!G$15,1,0)+IF(S30='TempO Answers'!H$15,1,0)+IF(T30='TempO Answers'!I$15,1,0)","v":4},{"$f":"IF(V30='TempO Answers'!J$15,1,0)+IF(W30='TempO Answers'!K$15,1,0)+IF(X30='TempO Answers'!L$15,1,0)+IF(Y30='TempO Answers'!M$15,1,0)","v":4},{"$f":"IF(AA30='TempO Answers'!N$15,1,0)+IF(AB30='TempO Answers'!O$15,1,0)+IF(AC30='TempO Answers'!P$15,1,0)+IF(AD30='TempO Answers'!Q$15,1,0)","v":4},{"$f":"IF(AF30='TempO Answers'!R$15,1,0)+IF(AG30='TempO Answers'!S$15,1,0)+IF(AH30='TempO Answers'!T$15,1,0)+IF(AI30='TempO Answers'!U$15,1,0)","v":4}]
[25,1,null,null,null,0,{"$f":"'TempO Answers'!$Y$19-F31","v":20},0,{"$f":"G31*'TempO Answers'!$N$7","v":600},9999,null,null,null,null,null,null,null,null,null,null,null,null,null,null,null,null,null,null,null,null,null,null,null,null,null,null,"",{"$f":"IF(L31='TempO Answers'!B$15,1,0)+IF(M31='TempO Answers'!C$15,1,0)+IF(N31='TempO Answers'!D$15,1,0)+IF(O31='TempO Answers'!E$15,1,0)","v":4},{"$f":"IF(Q31='TempO Answers'!F$15,1,0)+IF(R31='TempO Answers'!G$15,1,0)+IF(S31='TempO Answers'!H$15,1,0)+IF(T31='TempO Answers'!I$15,1,0)","v":4},{"$f":"IF(V31='TempO Answers'!J$15,1,0)+IF(W31='TempO Answers'!K$15,1,0)+IF(X31='TempO Answers'!L$15,1,0)+IF(Y31='TempO Answers'!M$15,1,0)","v":4},{"$f":"IF(AA31='TempO Answers'!N$15,1,0)+IF(AB31='TempO Answers'!O$15,1,0)+IF(AC31='TempO Answers'!P$15,1,0)+IF(AD31='TempO Answers'!Q$15,1,0)","v":4},{"$f":"IF(AF31='TempO Answers'!R$15,1,0)+IF(AG31='TempO Answers'!S$15,1,0)+IF(AH31='TempO Answers'!T$15,1,0)+IF(AI31='TempO Answers'!U$15,1,0)","v":4}]
[26,1,null,null,null,0,{"$f":"'TempO Answers'!$Y$19-F32","v":20},0,{"$f":"G32*'TempO Answers'!$N$7","v":600},9999,null,null,null,null,null,null,null,null,null,null,null,null,null,null,null,null,null,null,null,null,null,null,null,null,null,null,"",{"$f":"IF(L32='TempO Answers'!B$15,1,0)+IF(M32='TempO Answers'!C$15,1,0)+IF(N32='TempO Answers'!D$15,1,0)+IF(O32='TempO Answers'!E$15,1,0)","v":4},{"$f":"IF(Q32='TempO Answers'!F$15,1,0)+IF(R32='TempO Answers'!G$15,1,0)+IF(S32='TempO Answers'!H$15,1,0)+IF(T32='TempO Answers'!I$15,1,0)","v":4},{"$f":"IF(V32='TempO Answers'!J$15,1,0)+IF(W32='TempO Answers'!K$15,1,0)+IF(X32='TempO Answers'!L$15,1,0)+IF(Y32='TempO Answers'!M$15,1,0)","v":4},{"$f":"IF(AA32='TempO Answers'!N$15,1,0)+IF(AB32='TempO Answers'!O$15,1,0)+IF(AC32='TempO Answers'!P$15,1,0)+IF(AD32='TempO Answers'!Q$15,1,0)","v":4},{"$f":"IF(AF32='TempO Answers'!R$15,1,0)+IF(AG32='TempO Answers'!S$15,1,0)+IF(AH32='TempO Answers'!T$15,1,0)+IF(AI32='TempO Answers'!U$15,1,0)","v":4}]
[27,1,null,null,null,0,{"$f":"'TempO Answers'!$Y$19-F33","v":20},0,{"$f":"G33*'TempO Answers'!$N$7","v":600},9999,null,null,null,null,null,null,null,null,null,null,null,null,null,null,null,null,null,null,null,null,null,null,null,null,null,null,"",{"$f":"IF(L33='TempO Answers'!B$15,1,0)+IF(M33='TempO Answers'!C$15,1,0)+IF(N33='TempO Answers'!D$15,1,0)+IF(O33='TempO Answers'!E$15,1,0)","v":4},{"$f":"IF(Q33='TempO Answers'!F$15,1,0)+IF(R33='TempO Answers'!G$15,1,0)+IF(S33='TempO Answers'!H$15,1,0)+IF(T33='TempO Answers'!I$15,1,0)","v":4},{"$f":"IF(V33='TempO Answers'!J$15,1,0)+IF(W33='TempO Answers'!K$15,1,0)+IF(X33='TempO Answers'!L$15,1,0)+IF(Y33='TempO Answers'!M$15,1,0)","v":4},{"$f":"IF(AA33='TempO Answers'!N$15,1,0)+IF(AB33='TempO Answers'!O$15,1,0)+IF(AC33='TempO Answers'!P$15,1,0)+IF(AD33='TempO Answers'!Q$15,1,0)","v":4},{"$f":"IF(AF33='TempO Answers'!R$15,1,0)+IF(AG33='TempO Answers'!S$15,1,0)+IF(AH33='TempO Answers'!T$15,1,0)+IF(AI33='TempO Answers'!U$15,1,0)","v":4}]
[28,1,null,null,null,0,{"$f":"'TempO Answers'!$Y$19-F34","v":20},0,{"$f":"G34*'TempO Answers'!$N$7","v":600},9999,null,null,null,null,null,null,null,null,null,null,null,null,null,null,null,null,null,null,null,null,null,null,null,null,null,null,"",{"$f":"IF(L34='TempO Answers'!B$15,1,0)+IF(M34='TempO Answers'!C$15,1,0)+IF(N34='TempO Answers'!D$15,1,0)+IF(O34='TempO Answers'!E$15,1,0)","v":4},{"$f":"IF(Q34='TempO Answers'!F$15,1,0)+IF(R34='TempO Answers'!G$15,1,0)+IF(S34='TempO Answers'!H$15,1,0)+IF(T34='TempO Answers'!I$15,1,0)","v":4},{"$f":"IF(V34='TempO Answers'!J$15,1,0)+IF(W34='TempO Answers'!K$15,1,0)+IF(X34='TempO Answers'!L$15,1,0)+IF(Y34='TempO Answers'!M$15,1,0)","v":4},{"$f":"IF(AA34='TempO Answers'!N$15,1,0)+IF(AB34='TempO Answers'!O$15,1,0)+IF(AC34='TempO Answers'!P$15,1,0)+IF(AD34='TempO Answers'!Q$15,1,0)","v":4},{"$f":"IF(AF34='TempO Answers'!R$15,1,0)+IF(AG34='TempO Answers'!S$15,1,0)+IF(AH34='TempO Answers'!T$15,1,0)+IF(AI34='TempO Answers'!U$15,1,0)","v":4}]
[29,1,null,null,null,0,{"$f":"'TempO Answers'!$Y$19-F35","v":20},0,{"$f":"G35*'TempO Answers'!$N$7","v":600},9999,null,null,null,null,null,null,null,null,null,null,null,null,null,null,null,null,null,null,null,null,null,null,null,null,null,null,"",{"$f":"IF(L35='TempO Answers'!B$15,1,0)+IF(M35='TempO Answers'!C$15,1,0)+IF(N35='TempO Answers'!D$15,1,0)+IF(O35='TempO Answers'!E$15,1,0)","v":4},{"$f":"IF(Q35='TempO Answers'!F$15,1,0)+IF(R35='TempO Answers'!G$15,1,0)+IF(S35='TempO Answers'!H$15,1,0)+IF(T35='TempO Answers'!I$15,1,0)","v":4},{"$f":"IF(V35='TempO Answers'!J$15,1,0)+IF(W35='TempO Answers'!K$15,1,0)+IF(X35='TempO Answers'!L$15,1,0)+IF(Y35='TempO Answers'!M$15,1,0)","v":4},{"$f":"IF(AA35='TempO Answers'!N$15,1,0)+IF(AB35='TempO Answers'!O$15,1,0)+IF(AC35='TempO Answers'!P$15,1,0)+IF(AD35='TempO Answers'!Q$15,1,0)","v":4},{"$f":"IF(AF35='TempO Answers'!R$15,1,0)+IF(AG35='TempO Answers'!S$15,1,0)+IF(AH35='TempO Answers'!T$15,1,0)+IF(AI35='TempO Answers'!U$15,1,0)","v":4}]
[30,1,null,null,null,0,{"$f":"'TempO Answers'!$Y$19-F36","v":20},0,{"$f":"G36*'TempO Answers'!$N$7","v":600},9999,null,null,null,null,null,null,null,null,null,null,null,null,null,null,null,null,null,null,null,null,null,null,null,null,null,null,"",{"$f":"IF(L36='TempO Answers'!B$15,1,0)+IF(M36='TempO Answers'!C$15,1,0)+IF(N36='TempO Answers'!D$15,1,0)+IF(O36='TempO Answers'!E$15,1,0)","v":4},{"$f":"IF(Q36='TempO Answers'!F$15,1,0)+IF(R36='TempO Answers'!G$15,1,0)+IF(S36='TempO Answers'!H$15,1,0)+IF(T36='TempO Answers'!I$15,1,0)","v":4},{"$f":"IF(V36='TempO Answers'!J$15,1,0)+IF(W36='TempO Answers'!K$15,1,0)+IF(X36='TempO Answers'!L$15,1,0)+IF(Y36='TempO Answers'!M$15,1,0)","v":4},{"$f":"IF(AA36='TempO Answers'!N$15,1,0)+IF(AB36='TempO Answers'!O$15,1,0)+IF(AC36='TempO Answers'!P$15,1,0)+IF(AD36='TempO Answers'!Q$15,1,0)","v":4},{"$f":"IF(AF36='TempO Answers'!R$15,1,0)+IF(AG36='TempO Answers'!S$15,1,0)+IF(AH36='TempO Answers'!T$15,1,0)+IF(AI36='TempO Answers'!U$15,1,0)","v":4}]
[31,1,null,null,null,0,{"$f":"'TempO Answers'!$Y$19-F37","v":20},0,{"$f":"G37*'TempO Answers'!$N$7","v":600},9999,null,null,null,null,null,null,null,null,null,null,null,null,null,null,null,null,null,null,null,null,null,null,null,null,null,null,"",{"$f":"IF(L37='TempO Answers'!B$15,1,0)+IF(M37='TempO Answers'!C$15,1,0)+IF(N37='TempO Answers'!D$15,1,0)+IF(O37='TempO Answers'!E$15,1,0)","v":4},{"$f":"IF(Q37='TempO Answers'!F$15,1,0)+IF(R37='TempO Answers'!G$15,1,0)+IF(S37='TempO Answers'!H$15,1,0)+IF(T37='TempO Answers'!I$15,1,0)","v":4},{"$f":"IF(V37='TempO Answers'!J$15,1,0)+IF(W37='TempO Answers'!K$15,1,0)+IF(X37='TempO Answers'!L$15,1,0)+IF(Y37='TempO Answers'!M$15,1,0)","v":4},{"$f":"IF(AA37='TempO Answers'!N$15,1,0)+IF(AB37='TempO Answers'!O$15,1,0)+IF(AC37='TempO Answers'!P$15,1,0)+IF(AD37='TempO Answers'!Q$15,1,0)","v":4},{"$f":"IF(AF37='TempO Answers'!R$15,1,0)+IF(AG37='TempO Answers'!S$15,1,0)+IF(AH37='TempO Answers'!T$15,1,0)+IF(AI37='TempO Answers'!U$15,1,0)","v":4}]
[32,1,null,null,null,0,{"$f":"'TempO Answers'!$Y$19-F38","v":20},0,{"$f":"G38*'TempO Answers'!$N$7","v":600},9999,null,null,null,null,null,null,null,null,null,null,null,null,null,null,null,null,null,null,null,null,null,null,null,null,null,null,"",{"$f":"IF(L38='TempO Answers'!B$15,1,0)+IF(M38='TempO Answers'!C$15,1,0)+IF(N38='TempO Answers'!D$15,1,0)+IF(O38='TempO Answers'!E$15,1,0)","v":4},{"$f":"IF(Q38='TempO Answers'!F$15,1,0)+IF(R38='TempO Answers'!G$15,1,0)+IF(S38='TempO Answers'!H$15,1,0)+IF(T38='TempO Answers'!I$15,1,0)","v":4},{"$f":"IF(V38='TempO Answers'!J$15,1,0)+IF(W38='TempO Answers'!K$15,1,0)+IF(X38='TempO Answers'!L$15,1,0)+IF(Y38='TempO Answers'!M$15,1,0)","v":4},{"$f":"IF(AA38='TempO Answers'!N$15,1,0)+IF(AB38='TempO Answers'!O$15,1,0)+IF(AC38='TempO Answers'!P$15,1,0)+IF(AD38='TempO Answers'!Q$15,1,0)","v":4},{"$f":"IF(AF38='TempO Answers'!R$15,1,0)+IF(AG38='TempO Answers'!S$15,1,0)+IF(AH38='TempO Answers'!T$15,1,0)+IF(AI38='TempO Answers'!U$15,1,0)","v":4}]
[33,{"$f":"RANK(J39,$J$7:$J$138,1)","v":1},null,null,null,0,{"$f":"'TempO Answers'!$Y$19-F39","v":20},0,{"$f":"G39*'TempO Answers'!$N$7","v":600},{"$f":"IF(H39<0.1,9999,H39+I39)","v":9999},null,null,null,null,null,null,null,null,null,null,null,null,null,null,null,null,null,null,null,null,null,null,null,null,null,null,"",{"$f":"IF(L39='TempO Answers'!B$15,1,0)+IF(M39='TempO Answers'!C$15,1,0)+IF(N39='TempO Answers'!D$15,1,0)+IF(O39='TempO Answers'!E$15,1,0)","v":4},{"$f":"IF(Q39='TempO Answers'!F$15,1,0)+IF(R39='TempO Answers'!G$15,1,0)+IF(S39='TempO Answers'!H$15,1,0)+IF(T39='TempO Answers'!I$15,1,0)","v":4},{"$f":"IF(V39='TempO Answers'!J$15,1,0)+IF(W39='TempO Answers'!K$15,1,0)+IF(X39='TempO Answers'!L$15,1,0)+IF(Y39='TempO Answers'!M$15,1,0)","v":4},{"$f":"IF(AA39='TempO Answers'!N$15,1,0)+IF(AB39='TempO Answers'!O$15,1,0)+IF(AC39='TempO Answers'!P$15,1,0)+IF(AD39='TempO Answers'!Q$15,1,0)","v":4},{"$f":"IF(AF39='TempO Answers'!R$15,1,0)+IF(AG39='TempO Answers'!S$15,1,0)+IF(AH39='TempO Answers'!T$15,1,0)+IF(AI39='TempO Answers'!U$15,1,0)","v":4}]
[34,1,null,null,null,0,{"$f":"'TempO Answers'!$Y$19-F40","v":20},0,{"$f":"G40*'TempO Answers'!$N$7","v":600},9999,null,null,null,null,null,null,null,null,null,null,null,null,null,null,null,null,null,null,null,null,null,null,null,null,null,null,"",{"$f":"IF(L40='TempO Answers'!B$15,1,0)+IF(M40='TempO Answers'!C$15,1,0)+IF(N40='TempO Answers'!D$15,1,0)+IF(O40='TempO Answers'!E$15,1,0)","v":4},{"$f":"IF(Q40='TempO Answers'!F$15,1,0)+IF(R40='TempO Answers'!G$15,1,0)+IF(S40='TempO Answers'!H$15,1,0)+IF(T40='TempO Answers'!I$15,1,0)","v":4},{"$f":"IF(V40='TempO Answers'!J$15,1,0)+IF(W40='TempO Answers'!K$15,1,0)+IF(X40='TempO Answers'!L$15,1,0)+IF(Y40='TempO Answers'!M$15,1,0)","v":4},{"$f":"IF(AA40='TempO Answers'!N$15,1,0)+IF(AB40='TempO Answers'!O$15,1,0)+IF(AC40='TempO Answers'!P$15,1,0)+IF(AD40='TempO Answers'!Q$15,1,0)","v":4},{"$f":"IF(AF40='TempO Answers'!R$15,1,0)+IF(AG40='TempO Answers'!S$15,1,0)+IF(AH40='TempO Answers'!T$15,1,0)+IF(AI40='TempO Answers'!U$15,1,0)","v":4}]
[35,1,null,null,null,0,{"$f":"'TempO Answers'!$Y$19-F41","v":20},0,{"$f":"G41*'TempO Answers'!$N$7","v":600},9999,null,null,null,null,null,null,null,null,null,null,null,null,null,null,null,null,null,null,null,null,null,null,null,null,null,null,"",{"$f":"IF(L41='TempO Answers'!B$15,1,0)+IF(M41='TempO Answers'!C$15,1,0)+IF(N41='TempO Answers'!D$15,1,0)+IF(O41='TempO Answers'!E$15,1,0)","v":4},{"$f":"IF(Q41='TempO Answers'!F$15,1,0)+IF(R41='TempO Answers'!G$15,1,0)+IF(S41='TempO Answers'!H$15,1,0)+IF(T41='TempO Answers'!I$15,1,0)","v":4},{"$f":"IF(V41='TempO Answers'!J$15,1,0)+IF(W41='TempO Answers'!K$15,1,0)+IF(X41='TempO Answers'!L$15,1,0)+IF(Y41='TempO Answers'!M$15,1,0)","v":4},{"$f":"IF(AA41='TempO Answers'!N$15,1,0)+IF(AB41='TempO Answers'!O$15,1,0)+IF(AC41='TempO Answers'!P$15,1,0)+IF(AD41='TempO Answers'!Q$15,1,0)","v":4},{"$f":"IF(AF41='TempO Answers'!R$15,1,0)+IF(AG41='TempO Answers'!S$15,1,0)+IF(AH41='TempO Answers'!T$15,1,0)+IF(AI41='TempO Answers'!U$15,1,0)","v":4}]
[36,1,null,null,null,0,{"$f":"'TempO Answers'!$Y$19-F42","v":20},0,{"$f":"G42*'TempO Answers'!$N$7","v":600},9999,null,null,null,null,null,null,null,null,null,null,null,null,null,null,null,null,null,null,null,null,null,null,null,null,null,null,"",{"$f":"IF(L42='TempO Answers'!B$15,1,0)+IF(M42='TempO Answers'!C$15,1,0)+IF(N42='TempO Answers'!D$15,1,0)+IF(O42='TempO Answers'!E$15,1,0)","v":4},{"$f":"IF(Q42='TempO Answers'!F$15,1,0)+IF(R42='TempO Answers'!G$15,1,0)+IF(S42='TempO Answers'!H$15,1,0)+IF(T42='TempO Answers'!I$15,1,0)","v":4},{"$f":"IF(V42='TempO Answers'!J$15,1,0)+IF(W42='TempO Answers'!K$15,1,0)+IF(X42='TempO Answers'!L$15,1,0)+IF(Y42='TempO Answers'!M$15,1,0)","v":4},{"$f":"IF(AA42='TempO Answers'!N$15,1,0)+IF(AB42='TempO Answers'!O$15,1,0)+IF(AC42='TempO Answers'!P$15,1,0)+IF(AD42='TempO Answers'!Q$15,1,0)","v":4},{"$f":"IF(AF42='TempO Answers'!R$15,1,0)+IF(AG42='TempO Answers'!S$15,1,0)+IF(AH42='TempO Answers'!T$15,1,0)+IF(AI42='TempO Answers'!U$15,1,0)","v":4}]
[37,1,null,null,null,0,{"$f":"'TempO Answers'!$Y$19-F43","v":20},0,{"$f":"G43*'TempO Answers'!$N$7","v":600},9999,null,null,null,null,null,null,null,null,null,null,null,null,null,null,null,null,null,null,null,null,null,null,null,null,null,null,"",{"$f":"IF(L43='TempO Answers'!B$15,1,0)+IF(M43='TempO Answers'!C$15,1,0)+IF(N43='TempO Answers'!D$15,1,0)+IF(O43='TempO Answers'!E$15,1,0)","v":4},{"$f":"IF(Q43='TempO Answers'!F$15,1,0)+IF(R43='TempO Answers'!G$15,1,0)+IF(S43='TempO Answers'!H$15,1,0)+IF(T43='TempO Answers'!I$15,1,0)","v":4},{"$f":"IF(V43='TempO Answers'!J$15,1,0)+IF(W43='TempO Answers'!K$15,1,0)+IF(X43='TempO Answers'!L$15,1,0)+IF(Y43='TempO Answers'!M$15,1,0)","v":4},{"$f":"IF(AA43='TempO Answers'!N$15,1,0)+IF(AB43='TempO Answers'!O$15,1,0)+IF(AC43='TempO Answers'!P$15,1,0)+IF(AD43='TempO Answers'!Q$15,1,0)","v":4},{"$f":"IF(AF43='TempO Answers'!R$15,1,0)+IF(AG43='TempO Answers'!S$15,1,0)+IF(AH43='TempO Answers'!T$15,1,0)+IF(AI43='TempO Answers'!U$15,1,0)","v":4}]
[38,1,null,null,null,0,{"$f":"'TempO Answers'!$Y$19-F44","v":20},0,{"$f":"G44*'TempO Answers'!$N$7","v":600},9999,null,null,null,null,null,null,null,null,null,null,null,null,null,null,null,null,null,null,null,null,null,null,null,null,null,null,"",{"$f":"IF(L44='TempO Answers'!B$15,1,0)+IF(M44='TempO Answers'!C$15,1,0)+IF(N44='TempO Answers'!D$15,1,0)+IF(O44='TempO Answers'!E$15,1,0)","v":4},{"$f":"IF(Q44='TempO Answers'!F$15,1,0)+IF(R44='TempO Answers'!G$15,1,0)+IF(S44='TempO Answers'!H$15,1,0)+IF(T44='TempO Answers'!I$15,1,0)","v":4},{"$f":"IF(V44='TempO Answers'!J$15,1,0)+IF(W44='TempO Answers'!K$15,1,0)+IF(X44='TempO Answers'!L$15,1,0)+IF(Y44='TempO Answers'!M$15,1,0)","v":4},{"$f":"IF(AA44='TempO Answers'!N$15,1,0)+IF(AB44='TempO Answers'!O$15,1,0)+IF(AC44='TempO Answers'!P$15,1,0)+IF(AD44='TempO Answers'!Q$15,1,0)","v":4},{"$f":"IF(AF44='TempO Answers'!R$15,1,0)+IF(AG44='TempO Answers'!S$15,1,0)+IF(AH44='TempO Answers'!T$15,1,0)+IF(AI44='TempO Answers'!U$15,1,0)","v":4}]
[39,1,null,null,null,0,{"$f":"'TempO Answers'!$Y$19-F45","v":20},0,{"$f":"G45*'TempO Answers'!$N$7","v":600},9999,null,null,null,null,null,null,null,null,null,null,null,null,null,null,null,null,null,null,null,null,null,null,null,null,null,null,"",{"$f":"IF(L45='TempO Answers'!B$15,1,0)+IF(M45='TempO Answers'!C$15,1,0)+IF(N45='TempO Answers'!D$15,1,0)+IF(O45='TempO Answers'!E$15,1,0)","v":4},{"$f":"IF(Q45='TempO Answers'!F$15,1,0)+IF(R45='TempO Answers'!G$15,1,0)+IF(S45='TempO Answers'!H$15,1,0)+IF(T45='TempO Answers'!I$15,1,0)","v":4},{"$f":"IF(V45='TempO Answers'!J$15,1,0)+IF(W45='TempO Answers'!K$15,1,0)+IF(X45='TempO Answers'!L$15,1,0)+IF(Y45='TempO Answers'!M$15,1,0)","v":4},{"$f":"IF(AA45='TempO Answers'!N$15,1,0)+IF(AB45='TempO Answers'!O$15,1,0)+IF(AC45='TempO Answers'!P$15,1,0)+IF(AD45='TempO Answers'!Q$15,1,0)","v":4},{"$f":"IF(AF45='TempO Answers'!R$15,1,0)+IF(AG45='TempO Answers'!S$15,1,0)+IF(AH45='TempO Answers'!T$15,1,0)+IF(AI45='TempO Answers'!U$15,1,0)","v":4}]
[40,1,null,null,null,0,{"$f":"'TempO Answers'!$Y$19-F46","v":20},0,{"$f":"G46*'TempO Answers'!$N$7","v":600},9999,null,null,null,null,null,null,null,null,null,null,null,null,null,null,null,null,null,null,null,null,null,null,null,null,null,null,"",{"$f":"IF(L46='TempO Answers'!B$15,1,0)+IF(M46='TempO Answers'!C$15,1,0)+IF(N46='TempO Answers'!D$15,1,0)+IF(O46='TempO Answers'!E$15,1,0)","v":4},{"$f":"IF(Q46='TempO Answers'!F$15,1,0)+IF(R46='TempO Answers'!G$15,1,0)+IF(S46='TempO Answers'!H$15,1,0)+IF(T46='TempO Answers'!I$15,1,0)","v":4},{"$f":"IF(V46='TempO Answers'!J$15,1,0)+IF(W46='TempO Answers'!K$15,1,0)+IF(X46='TempO Answers'!L$15,1,0)+IF(Y46='TempO Answers'!M$15,1,0)","v":4},{"$f":"IF(AA46='TempO Answers'!N$15,1,0)+IF(AB46='TempO Answers'!O$15,1,0)+IF(AC46='TempO Answers'!P$15,1,0)+IF(AD46='TempO Answers'!Q$15,1,0)","v":4},{"$f":"IF(AF46='TempO Answers'!R$15,1,0)+IF(AG46='TempO Answers'!S$15,1,0)+IF(AH46='TempO Answers'!T$15,1,0)+IF(AI46='TempO Answers'!U$15,1,0)","v":4}]
[41,1,null,null,null,0,{"$f":"'TempO Answers'!$Y$19-F47","v":20},0,{"$f":"G47*'TempO Answers'!$N$7","v":600},9999,null,null,null,null,null,null,null,null,null,null,null,null,null,null,null,null,null,null,null,null,null,null,null,null,null,null,"",{"$f":"IF(L47='TempO Answers'!B$15,1,0)+IF(M47='TempO Answers'!C$15,1,0)+IF(N47='TempO Answers'!D$15,1,0)+IF(O47='TempO Answers'!E$15,1,0)","v":4},{"$f":"IF(Q47='TempO Answers'!F$15,1,0)+IF(R47='TempO Answers'!G$15,1,0)+IF(S47='TempO Answers'!H$15,1,0)+IF(T47='TempO Answers'!I$15,1,0)","v":4},{"$f":"IF(V47='TempO Answers'!J$15,1,0)+IF(W47='TempO Answers'!K$15,1,0)+IF(X47='TempO Answers'!L$15,1,0)+IF(Y47='TempO Answers'!M$15,1,0)","v":4},{"$f":"IF(AA47='TempO Answers'!N$15,1,0)+IF(AB47='TempO Answers'!O$15,1,0)+IF(AC47='TempO Answers'!P$15,1,0)+IF(AD47='TempO Answers'!Q$15,1,0)","v":4},{"$f":"IF(AF47='TempO Answers'!R$15,1,0)+IF(AG47='TempO Answers'!S$15,1,0)+IF(AH47='TempO Answers'!T$15,1,0)+IF(AI47='TempO Answers'!U$15,1,0)","v":4}]
[42,1,null,null,null,0,{"$f":"'TempO Answers'!$Y$19-F48","v":20},0,{"$f":"G48*'TempO Answers'!$N$7","v":600},9999,null,null,null,null,null,null,null,null,null,null,null,null,null,null,null,null,null,null,null,null,null,null,null,null,null,null,"",{"$f":"IF(L48='TempO Answers'!B$15,1,0)+IF(M48='TempO Answers'!C$15,1,0)+IF(N48='TempO Answers'!D$15,1,0)+IF(O48='TempO Answers'!E$15,1,0)","v":4},{"$f":"IF(Q48='TempO Answers'!F$15,1,0)+IF(R48='TempO Answers'!G$15,1,0)+IF(S48='TempO Answers'!H$15,1,0)+IF(T48='TempO Answers'!I$15,1,0)","v":4},{"$f":"IF(V48='TempO Answers'!J$15,1,0)+IF(W48='TempO Answers'!K$15,1,0)+IF(X48='TempO Answers'!L$15,1,0)+IF(Y48='TempO Answers'!M$15,1,0)","v":4},{"$f":"IF(AA48='TempO Answers'!N$15,1,0)+IF(AB48='TempO Answers'!O$15,1,0)+IF(AC48='TempO Answers'!P$15,1,0)+IF(AD48='TempO Answers'!Q$15,1,0)","v":4},{"$f":"IF(AF48='TempO Answers'!R$15,1,0)+IF(AG48='TempO Answers'!S$15,1,0)+IF(AH48='TempO Answers'!T$15,1,0)+IF(AI48='TempO Answers'!U$15,1,0)","v":4}]
[43,1,null,null,null,0,{"$f":"'TempO Answers'!$Y$19-F49","v":20},0,{"$f":"G49*'TempO Answers'!$N$7","v":600},9999,null,null,null,null,null,null,null,null,null,null,null,null,null,null,null,null,null,null,null,null,null,null,null,null,null,null,"",{"$f":"IF(L49='TempO Answers'!B$15,1,0)+IF(M49='TempO Answers'!C$15,1,0)+IF(N49='TempO Answers'!D$15,1,0)+IF(O49='TempO Answers'!E$15,1,0)","v":4},{"$f":"IF(Q49='TempO Answers'!F$15,1,0)+IF(R49='TempO Answers'!G$15,1,0)+IF(S49='TempO Answers'!H$15,1,0)+IF(T49='TempO Answers'!I$15,1,0)","v":4},{"$f":"IF(V49='TempO Answers'!J$15,1,0)+IF(W49='TempO Answers'!K$15,1,0)+IF(X49='TempO Answers'!L$15,1,0)+IF(Y49='TempO Answers'!M$15,1,0)","v":4},{"$f":"IF(AA49='TempO Answers'!N$15,1,0)+IF(AB49='TempO Answers'!O$15,1,0)+IF(AC49='TempO Answers'!P$15,1,0)+IF(AD49='TempO Answers'!Q$15,1,0)","v":4},{"$f":"IF(AF49='TempO Answers'!R$15,1,0)+IF(AG49='TempO Answers'!S$15,1,0)+IF(AH49='TempO Answers'!T$15,1,0)+IF(AI49='TempO Answers'!U$15,1,0)","v":4}]
[44,1,null,null,null,0,{"$f":"'TempO Answers'!$Y$19-F50","v":20},0,{"$f":"G50*'TempO Answers'!$N$7","v":600},9999,null,null,null,null,null,null,null,null,null,null,null,null,null,null,null,null,null,null,null,null,null,null,null,null,null,null,"",{"$f":"IF(L50='TempO Answers'!B$15,1,0)+IF(M50='TempO Answers'!C$15,1,0)+IF(N50='TempO Answers'!D$15,1,0)+IF(O50='TempO Answers'!E$15,1,0)","v":4},{"$f":"IF(Q50='TempO Answers'!F$15,1,0)+IF(R50='TempO Answers'!G$15,1,0)+IF(S50='TempO Answers'!H$15,1,0)+IF(T50='TempO Answers'!I$15,1,0)","v":4},{"$f":"IF(V50='TempO Answers'!J$15,1,0)+IF(W50='TempO Answers'!K$15,1,0)+IF(X50='TempO Answers'!L$15,1,0)+IF(Y50='TempO Answers'!M$15,1,0)","v":4},{"$f":"IF(AA50='TempO Answers'!N$15,1,0)+IF(AB50='TempO Answers'!O$15,1,0)+IF(AC50='TempO Answers'!P$15,1,0)+IF(AD50='TempO Answers'!Q$15,1,0)","v":4},{"$f":"IF(AF50='TempO Answers'!R$15,1,0)+IF(AG50='TempO Answers'!S$15,1,0)+IF(AH50='TempO Answers'!T$15,1,0)+IF(AI50='TempO Answers'!U$15,1,0)","v":4}]
[45,1,null,null,null,0,{"$f":"'TempO Answers'!$Y$19-F51","v":20},0,{"$f":"G51*'TempO Answers'!$N$7","v":600},9999,null,null,null,null,null,null,null,null,null,null,null,null,null,null,null,null,null,null,null,null,null,null,null,null,null,null,"",{"$f":"IF(L51='TempO Answers'!B$15,1,0)+IF(M51='TempO Answers'!C$15,1,0)+IF(N51='TempO Answers'!D$15,1,0)+IF(O51='TempO Answers'!E$15,1,0)","v":4},{"$f":"IF(Q51='TempO Answers'!F$15,1,0)+IF(R51='TempO Answers'!G$15,1,0)+IF(S51='TempO Answers'!H$15,1,0)+IF(T51='TempO Answers'!I$15,1,0)","v":4},{"$f":"IF(V51='TempO Answers'!J$15,1,0)+IF(W51='TempO Answers'!K$15,1,0)+IF(X51='TempO Answers'!L$15,1,0)+IF(Y51='TempO Answers'!M$15,1,0)","v":4},{"$f":"IF(AA51='TempO Answers'!N$15,1,0)+IF(AB51='TempO Answers'!O$15,1,0)+IF(AC51='TempO Answers'!P$15,1,0)+IF(AD51='TempO Answers'!Q$15,1,0)","v":4},{"$f":"IF(AF51='TempO Answers'!R$15,1,0)+IF(AG51='TempO Answers'!S$15,1,0)+IF(AH51='TempO Answers'!T$15,1,0)+IF(AI51='TempO Answers'!U$15,1,0)","v":4}]
[46,1,null,null,null,0,{"$f":"'TempO Answers'!$Y$19-F52","v":20},0,{"$f":"G52*'TempO Answers'!$N$7","v":600},9999,null,null,null,null,null,null,null,null,null,null,null,null,null,null,null,null,null,null,null,null,null,null,null,null,null,null,"",{"$f":"IF(L52='TempO Answers'!B$15,1,0)+IF(M52='TempO Answers'!C$15,1,0)+IF(N52='TempO Answers'!D$15,1,0)+IF(O52='TempO Answers'!E$15,1,0)","v":4},{"$f":"IF(Q52='TempO Answers'!F$15,1,0)+IF(R52='TempO Answers'!G$15,1,0)+IF(S52='TempO Answers'!H$15,1,0)+IF(T52='TempO Answers'!I$15,1,0)","v":4},{"$f":"IF(V52='TempO Answers'!J$15,1,0)+IF(W52='TempO Answers'!K$15,1,0)+IF(X52='TempO Answers'!L$15,1,0)+IF(Y52='TempO Answers'!M$15,1,0)","v":4},{"$f":"IF(AA52='TempO Answers'!N$15,1,0)+IF(AB52='TempO Answers'!O$15,1,0)+IF(AC52='TempO Answers'!P$15,1,0)+IF(AD52='TempO Answers'!Q$15,1,0)","v":4},{"$f":"IF(AF52='TempO Answers'!R$15,1,0)+IF(AG52='TempO Answers'!S$15,1,0)+IF(AH52='TempO Answers'!T$15,1,0)+IF(AI52='TempO Answers'!U$15,1,0)","v":4}]
[47,1,null,null,null,0,{"$f":"'TempO Answers'!$Y$19-F53","v":20},0,{"$f":"G53*'TempO Answers'!$N$7","v":600},9999,null,null,null,null,null,null,null,null,null,null,null,null,null,null,null,null,null,null,null,null,null,null,null,null,null,null,"",{"$f":"IF(L53='TempO Answers'!B$15,1,0)+IF(M53='TempO Answers'!C$15,1,0)+IF(N53='TempO Answers'!D$15,1,0)+IF(O53='TempO Answers'!E$15,1,0)","v":4},{"$f":"IF(Q53='TempO Answers'!F$15,1,0)+IF(R53='TempO Answers'!G$15,1,0)+IF(S53='TempO Answers'!H$15,1,0)+IF(T53='TempO Answers'!I$15,1,0)","v":4},{"$f":"IF(V53='TempO Answers'!J$15,1,0)+IF(W53='TempO Answers'!K$15,1,0)+IF(X53='TempO Answers'!L$15,1,0)+IF(Y53='TempO Answers'!M$15,1,0)","v":4},{"$f":"IF(AA53='TempO Answers'!N$15,1,0)+IF(AB53='TempO Answers'!O$15,1,0)+IF(AC53='TempO Answers'!P$15,1,0)+IF(AD53='TempO Answers'!Q$15,1,0)","v":4},{"$f":"IF(AF53='TempO Answers'!R$15,1,0)+IF(AG53='TempO Answers'!S$15,1,0)+IF(AH53='TempO Answers'!T$15,1,0)+IF(AI53='TempO Answers'!U$15,1,0)","v":4}]
[48,1,null,null,null,0,{"$f":"'TempO Answers'!$Y$19-F54","v":20},0,{"$f":"G54*'TempO Answers'!$N$7","v":600},9999,null,null,null,null,null,null,null,null,null,null,null,null,null,null,null,null,null,null,null,null,null,null,null,null,null,null,"",{"$f":"IF(L54='TempO Answers'!B$15,1,0)+IF(M54='TempO Answers'!C$15,1,0)+IF(N54='TempO Answers'!D$15,1,0)+IF(O54='TempO Answers'!E$15,1,0)","v":4},{"$f":"IF(Q54='TempO Answers'!F$15,1,0)+IF(R54='TempO Answers'!G$15,1,0)+IF(S54='TempO Answers'!H$15,1,0)+IF(T54='TempO Answers'!I$15,1,0)","v":4},{"$f":"IF(V54='TempO Answers'!J$15,1,0)+IF(W54='TempO Answers'!K$15,1,0)+IF(X54='TempO Answers'!L$15,1,0)+IF(Y54='TempO Answers'!M$15,1,0)","v":4},{"$f":"IF(AA54='TempO Answers'!N$15,1,0)+IF(AB54='TempO Answers'!O$15,1,0)+IF(AC54='TempO Answers'!P$15,1,0)+IF(AD54='TempO Answers'!Q$15,1,0)","v":4},{"$f":"IF(AF54='TempO Answers'!R$15,1,0)+IF(AG54='TempO Answers'!S$15,1,0)+IF(AH54='TempO Answers'!T$15,1,0)+IF(AI54='TempO Answers'!U$15,1,0)","v":4}]
[49,1,null,null,null,0,{"$f":"'TempO Answers'!$Y$19-F55","v":20},0,{"$f":"G55*'TempO Answers'!$N$7","v":600},9999,null,null,null,null,null,null,null,null,null,null,null,null,null,null,null,null,null,null,null,null,null,null,null,null,null,null,"",{"$f":"IF(L55='TempO Answers'!B$15,1,0)+IF(M55='TempO Answers'!C$15,1,0)+IF(N55='TempO Answers'!D$15,1,0)+IF(O55='TempO Answers'!E$15,1,0)","v":4},{"$f":"IF(Q55='TempO Answers'!F$15,1,0)+IF(R55='TempO Answers'!G$15,1,0)+IF(S55='TempO Answers'!H$15,1,0)+IF(T55='TempO Answers'!I$15,1,0)","v":4},{"$f":"IF(V55='TempO Answers'!J$15,1,0)+IF(W55='TempO Answers'!K$15,1,0)+IF(X55='TempO Answers'!L$15,1,0)+IF(Y55='TempO Answers'!M$15,1,0)","v":4},{"$f":"IF(AA55='TempO Answers'!N$15,1,0)+IF(AB55='TempO Answers'!O$15,1,0)+IF(AC55='TempO Answers'!P$15,1,0)+IF(AD55='TempO Answers'!Q$15,1,0)","v":4},{"$f":"IF(AF55='TempO Answers'!R$15,1,0)+IF(AG55='TempO Answers'!S$15,1,0)+IF(AH55='TempO Answers'!T$15,1,0)+IF(AI55='TempO Answers'!U$15,1,0)","v":4}]
[50,1,null,null,null,0,{"$f":"'TempO Answers'!$Y$19-F56","v":20},0,{"$f":"G56*'TempO Answers'!$N$7","v":600},9999,null,null,null,null,null,null,null,null,null,null,null,null,null,null,null,null,null,null,null,null,null,null,null,null,null,null,"",{"$f":"IF(L56='TempO Answers'!B$15,1,0)+IF(M56='TempO Answers'!C$15,1,0)+IF(N56='TempO Answers'!D$15,1,0)+IF(O56='TempO Answers'!E$15,1,0)","v":4},{"$f":"IF(Q56='TempO Answers'!F$15,1,0)+IF(R56='TempO Answers'!G$15,1,0)+IF(S56='TempO Answers'!H$15,1,0)+IF(T56='TempO Answers'!I$15,1,0)","v":4},{"$f":"IF(V56='TempO Answers'!J$15,1,0)+IF(W56='TempO Answers'!K$15,1,0)+IF(X56='TempO Answers'!L$15,1,0)+IF(Y56='TempO Answers'!M$15,1,0)","v":4},{"$f":"IF(AA56='TempO Answers'!N$15,1,0)+IF(AB56='TempO Answers'!O$15,1,0)+IF(AC56='TempO Answers'!P$15,1,0)+IF(AD56='TempO Answers'!Q$15,1,0)","v":4},{"$f":"IF(AF56='TempO Answers'!R$15,1,0)+IF(AG56='TempO Answers'!S$15,1,0)+IF(AH56='TempO Answers'!T$15,1,0)+IF(AI56='TempO Answers'!U$15,1,0)","v":4}]
[51,1,null,null,null,0,{"$f":"'TempO Answers'!$Y$19-F57","v":20},0,{"$f":"G57*'TempO Answers'!$N$7","v":600},9999,null,null,null,null,null,null,null,null,null,null,null,null,null,null,null,null,null,null,null,null,null,null,null,null,null,null,"",{"$f":"IF(L57='TempO Answers'!B$15,1,0)+IF(M57='TempO Answers'!C$15,1,0)+IF(N57='TempO Answers'!D$15,1,0)+IF(O57='TempO Answers'!E$15,1,0)","v":4},{"$f":"IF(Q57='TempO Answers'!F$15,1,0)+IF(R57='TempO Answers'!G$15,1,0)+IF(S57='TempO Answers'!H$15,1,0)+IF(T57='TempO Answers'!I$15,1,0)","v":4},{"$f":"IF(V57='TempO Answers'!J$15,1,0)+IF(W57='TempO Answers'!K$15,1,0)+IF(X57='TempO Answers'!L$15,1,0)+IF(Y57='TempO Answers'!M$15,1,0)","v":4},{"$f":"IF(AA57='TempO Answers'!N$15,1,0)+IF(AB57='TempO Answers'!O$15,1,0)+IF(AC57='TempO Answers'!P$15,1,0)+IF(AD57='TempO Answers'!Q$15,1,0)","v":4},{"$f":"IF(AF57='TempO Answers'!R$15,1,0)+IF(AG57='TempO Answers'!S$15,1,0)+IF(AH57='TempO Answers'!T$15,1,0)+IF(AI57='TempO Answers'!U$15,1,0)","v":4}]
[52,1,null,null,null,0,{"$f":"'TempO Answers'!$Y$19-F58","v":20},0,{"$f":"G58*'TempO Answers'!$N$7","v":600},9999,null,null,null,null,null,null,null,null,null,null,null,null,null,null,null,null,null,null,null,null,null,null,null,null,null,null,"",{"$f":"IF(L58='TempO Answers'!B$15,1,0)+IF(M58='TempO Answers'!C$15,1,0)+IF(N58='TempO Answers'!D$15,1,0)+IF(O58='TempO Answers'!E$15,1,0)","v":4},{"$f":"IF(Q58='TempO Answers'!F$15,1,0)+IF(R58='TempO Answers'!G$15,1,0)+IF(S58='TempO Answers'!H$15,1,0)+IF(T58='TempO Answers'!I$15,1,0)","v":4},{"$f":"IF(V58='TempO Answers'!J$15,1,0)+IF(W58='TempO Answers'!K$15,1,0)+IF(X58='TempO Answers'!L$15,1,0)+IF(Y58='TempO Answers'!M$15,1,0)","v":4},{"$f":"IF(AA58='TempO Answers'!N$15,1,0)+IF(AB58='TempO Answers'!O$15,1,0)+IF(AC58='TempO Answers'!P$15,1,0)+IF(AD58='TempO Answers'!Q$15,1,0)","v":4},{"$f":"IF(AF58='TempO Answers'!R$15,1,0)+IF(AG58='TempO Answers'!S$15,1,0)+IF(AH58='TempO Answers'!T$15,1,0)+IF(AI58='TempO Answers'!U$15,1,0)","v":4}]
[53,1,null,null,null,0,{"$f":"'TempO Answers'!$Y$19-F59","v":20},0,{"$f":"G59*'TempO Answers'!$N$7","v":600},9999,null,null,null,null,null,null,null,null,null,null,null,null,null,null,null,null,null,null,null,null,null,null,null,null,null,null,"",{"$f":"IF(L59='TempO Answers'!B$15,1,0)+IF(M59='TempO Answers'!C$15,1,0)+IF(N59='TempO Answers'!D$15,1,0)+IF(O59='TempO Answers'!E$15,1,0)","v":4},{"$f":"IF(Q59='TempO Answers'!F$15,1,0)+IF(R59='TempO Answers'!G$15,1,0)+IF(S59='TempO Answers'!H$15,1,0)+IF(T59='TempO Answers'!I$15,1,0)","v":4},{"$f":"IF(V59='TempO Answers'!J$15,1,0)+IF(W59='TempO Answers'!K$15,1,0)+IF(X59='TempO Answers'!L$15,1,0)+IF(Y59='TempO Answers'!M$15,1,0)","v":4},{"$f":"IF(AA59='TempO Answers'!N$15,1,0)+IF(AB59='TempO Answers'!O$15,1,0)+IF(AC59='TempO Answers'!P$15,1,0)+IF(AD59='TempO Answers'!Q$15,1,0)","v":4},{"$f":"IF(AF59='TempO Answers'!R$15,1,0)+IF(AG59='TempO Answers'!S$15,1,0)+IF(AH59='TempO Answers'!T$15,1,0)+IF(AI59='TempO Answers'!U$15,1,0)","v":4}]
[54,1,null,null,null,0,{"$f":"'TempO Answers'!$Y$19-F60","v":20},0,{"$f":"G60*'TempO Answers'!$N$7","v":600},9999,null,null,null,null,null,null,null,null,null,null,null,null,null,null,null,null,null,null,null,null,null,null,null,null,null,null,"",{"$f":"IF(L60='TempO Answers'!B$15,1,0)+IF(M60='TempO Answers'!C$15,1,0)+IF(N60='TempO Answers'!D$15,1,0)+IF(O60='TempO Answers'!E$15,1,0)","v":4},{"$f":"IF(Q60='TempO Answers'!F$15,1,0)+IF(R60='TempO Answers'!G$15,1,0)+IF(S60='TempO Answers'!H$15,1,0)+IF(T60='TempO Answers'!I$15,1,0)","v":4},{"$f":"IF(V60='TempO Answers'!J$15,1,0)+IF(W60='TempO Answers'!K$15,1,0)+IF(X60='TempO Answers'!L$15,1,0)+IF(Y60='TempO Answers'!M$15,1,0)","v":4},{"$f":"IF(AA60='TempO Answers'!N$15,1,0)+IF(AB60='TempO Answers'!O$15,1,0)+IF(AC60='TempO Answers'!P$15,1,0)+IF(AD60='TempO Answers'!Q$15,1,0)","v":4},{"$f":"IF(AF60='TempO Answers'!R$15,1,0)+IF(AG60='TempO Answers'!S$15,1,0)+IF(AH60='TempO Answers'!T$15,1,0)+IF(AI60='TempO Answers'!U$15,1,0)","v":4}]
[55,1,null,null,null,0,{"$f":"'TempO Answers'!$Y$19-F61","v":20},0,{"$f":"G61*'TempO Answers'!$N$7","v":600},9999,null,null,null,null,null,null,null,null,null,null,null,null,null,null,null,null,null,null,null,null,null,null,null,null,null,null,"",{"$f":"IF(L61='TempO Answers'!B$15,1,0)+IF(M61='TempO Answers'!C$15,1,0)+IF(N61='TempO Answers'!D$15,1,0)+IF(O61='TempO Answers'!E$15,1,0)","v":4},{"$f":"IF(Q61='TempO Answers'!F$15,1,0)+IF(R61='TempO Answers'!G$15,1,0)+IF(S61='TempO Answers'!H$15,1,0)+IF(T61='TempO Answers'!I$15,1,0)","v":4},{"$f":"IF(V61='TempO Answers'!J$15,1,0)+IF(W61='TempO Answers'!K$15,1,0)+IF(X61='TempO Answers'!L$15,1,0)+IF(Y61='TempO Answers'!M$15,1,0)","v":4},{"$f":"IF(AA61='TempO Answers'!N$15,1,0)+IF(AB61='TempO Answers'!O$15,1,0)+IF(AC61='TempO Answers'!P$15,1,0)+IF(AD61='TempO Answers'!Q$15,1,0)","v":4},{"$f":"IF(AF61='TempO Answers'!R$15,1,0)+IF(AG61='TempO Answers'!S$15,1,0)+IF(AH61='TempO Answers'!T$15,1,0)+IF(AI61='TempO Answers'!U$15,1,0)","v":4}]
[56,1,null,null,null,0,{"$f":"'TempO Answers'!$Y$19-F62","v":20},0,{"$f":"G62*'TempO Answers'!$N$7","v":600},9999,null,null,null,null,null,null,null,null,null,null,null,null,null,null,null,null,null,null,null,null,null,null,null,null,null,null,"",{"$f":"IF(L62='TempO Answers'!B$15,1,0)+IF(M62='TempO Answers'!C$15,1,0)+IF(N62='TempO Answers'!D$15,1,0)+IF(O62='TempO Answers'!E$15,1,0)","v":4},{"$f":"IF(Q62='TempO Answers'!F$15,1,0)+IF(R62='TempO Answers'!G$15,1,0)+IF(S62='TempO Answers'!H$15,1,0)+IF(T62='TempO Answers'!I$15,1,0)","v":4},{"$f":"IF(V62='TempO Answers'!J$15,1,0)+IF(W62='TempO Answers'!K$15,1,0)+IF(X62='TempO Answers'!L$15,1,0)+IF(Y62='TempO Answers'!M$15,1,0)","v":4},{"$f":"IF(AA62='TempO Answers'!N$15,1,0)+IF(AB62='TempO Answers'!O$15,1,0)+IF(AC62='TempO Answers'!P$15,1,0)+IF(AD62='TempO Answers'!Q$15,1,0)","v":4},{"$f":"IF(AF62='TempO Answers'!R$15,1,0)+IF(AG62='TempO Answers'!S$15,1,0)+IF(AH62='TempO Answers'!T$15,1,0)+IF(AI62='TempO Answers'!U$15,1,0)","v":4}]
[57,1,null,null,null,0,{"$f":"'TempO Answers'!$Y$19-F63","v":20},0,{"$f":"G63*'TempO Answers'!$N$7","v":600},9999,null,null,null,null,null,null,null,null,null,null,null,null,null,null,null,null,null,null,null,null,null,null,null,null,null,null,"",{"$f":"IF(L63='TempO Answers'!B$15,1,0)+IF(M63='TempO Answers'!C$15,1,0)+IF(N63='TempO Answers'!D$15,1,0)+IF(O63='TempO Answers'!E$15,1,0)","v":4},{"$f":"IF(Q63='TempO Answers'!F$15,1,0)+IF(R63='TempO Answers'!G$15,1,0)+IF(S63='TempO Answers'!H$15,1,0)+IF(T63='TempO Answers'!I$15,1,0)","v":4},{"$f":"IF(V63='TempO Answers'!J$15,1,0)+IF(W63='TempO Answers'!K$15,1,0)+IF(X63='TempO Answers'!L$15,1,0)+IF(Y63='TempO Answers'!M$15,1,0)","v":4},{"$f":"IF(AA63='TempO Answers'!N$15,1,0)+IF(AB63='TempO Answers'!O$15,1,0)+IF(AC63='TempO Answers'!P$15,1,0)+IF(AD63='TempO Answers'!Q$15,1,0)","v":4},{"$f":"IF(AF63='TempO Answers'!R$15,1,0)+IF(AG63='TempO Answers'!S$15,1,0)+IF(AH63='TempO Answers'!T$15,1,0)+IF(AI63='TempO Answers'!U$15,1,0)","v":4}]
[58,1,null,null,null,0,{"$f":"'TempO Answers'!$Y$19-F64","v":20},0,{"$f":"G64*'TempO Answers'!$N$7","v":600},9999,null,null,null,null,null,null,null,null,null,null,null,null,null,null,null,null,null,null,null,null,null,null,null,null,null,null,"",{"$f":"IF(L64='TempO Answers'!B$15,1,0)+IF(M64='TempO Answers'!C$15,1,0)+IF(N64='TempO Answers'!D$15,1,0)+IF(O64='TempO Answers'!E$15,1,0)","v":4},{"$f":"IF(Q64='TempO Answers'!F$15,1,0)+IF(R64='TempO Answers'!G$15,1,0)+IF(S64='TempO Answers'!H$15,1,0)+IF(T64='TempO Answers'!I$15,1,0)","v":4},{"$f":"IF(V64='TempO Answers'!J$15,1,0)+IF(W64='TempO Answers'!K$15,1,0)+IF(X64='TempO Answers'!L$15,1,0)+IF(Y64='TempO Answers'!M$15,1,0)","v":4},{"$f":"IF(AA64='TempO Answers'!N$15,1,0)+IF(AB64='TempO Answers'!O$15,1,0)+IF(AC64='TempO Answers'!P$15,1,0)+IF(AD64='TempO Answers'!Q$15,1,0)","v":4},{"$f":"IF(AF64='TempO Answers'!R$15,1,0)+IF(AG64='TempO Answers'!S$15,1,0)+IF(AH64='TempO Answers'!T$15,1,0)+IF(AI64='TempO Answers'!U$15,1,0)","v":4}]
[59,1,null,null,null,0,{"$f":"'TempO Answers'!$Y$19-F65","v":20},0,{"$f":"G65*'TempO Answers'!$N$7","v":600},9999,null,null,null,null,null,null,null,null,null,null,null,null,null,null,null,null,null,null,null,null,null,null,null,null,null,null,"",{"$f":"IF(L65='TempO Answers'!B$15,1,0)+IF(M65='TempO Answers'!C$15,1,0)+IF(N65='TempO Answers'!D$15,1,0)+IF(O65='TempO Answers'!E$15,1,0)","v":4},{"$f":"IF(Q65='TempO Answers'!F$15,1,0)+IF(R65='TempO Answers'!G$15,1,0)+IF(S65='TempO Answers'!H$15,1,0)+IF(T65='TempO Answers'!I$15,1,0)","v":4},{"$f":"IF(V65='TempO Answers'!J$15,1,0)+IF(W65='TempO Answers'!K$15,1,0)+IF(X65='TempO Answers'!L$15,1,0)+IF(Y65='TempO Answers'!M$15,1,0)","v":4},{"$f":"IF(AA65='TempO Answers'!N$15,1,0)+IF(AB65='TempO Answers'!O$15,1,0)+IF(AC65='TempO Answers'!P$15,1,0)+IF(AD65='TempO Answers'!Q$15,1,0)","v":4},{"$f":"IF(AF65='TempO Answers'!R$15,1,0)+IF(AG65='TempO Answers'!S$15,1,0)+IF(AH65='TempO Answers'!T$15,1,0)+IF(AI65='TempO Answers'!U$15,1,0)","v":4}]
[60,1,null,null,null,0,{"$f":"'TempO Answers'!$Y$19-F66","v":20},0,{"$f":"G66*'TempO Answers'!$N$7","v":600},9999,null,null,null,null,null,null,null,null,null,null,null,null,null,null,null,null,null,null,null,null,null,null,null,null,null,null,"",{"$f":"IF(L66='TempO Answers'!B$15,1,0)+IF(M66='TempO Answers'!C$15,1,0)+IF(N66='TempO Answers'!D$15,1,0)+IF(O66='TempO Answers'!E$15,1,0)","v":4},{"$f":"IF(Q66='TempO Answers'!F$15,1,0)+IF(R66='TempO Answers'!G$15,1,0)+IF(S66='TempO Answers'!H$15,1,0)+IF(T66='TempO Answers'!I$15,1,0)","v":4},{"$f":"IF(V66='TempO Answers'!J$15,1,0)+IF(W66='TempO Answers'!K$15,1,0)+IF(X66='TempO Answers'!L$15,1,0)+IF(Y66='TempO Answers'!M$15,1,0)","v":4},{"$f":"IF(AA66='TempO Answers'!N$15,1,0)+IF(AB66='TempO Answers'!O$15,1,0)+IF(AC66='TempO Answers'!P$15,1,0)+IF(AD66='TempO Answers'!Q$15,1,0)","v":4},{"$f":"IF(AF66='TempO Answers'!R$15,1,0)+IF(AG66='TempO Answers'!S$15,1,0)+IF(AH66='TempO Answers'!T$15,1,0)+IF(AI66='TempO Answers'!U$15,1,0)","v":4}]
[61,1,null,null,null,0,{"$f":"'TempO Answers'!$Y$19-F67","v":20},0,{"$f":"G67*'TempO Answers'!$N$7","v":600},9999,null,null,null,null,null,null,null,null,null,null,null,null,null,null,null,null,null,null,null,null,null,null,null,null,null,null,"",{"$f":"IF(L67='TempO Answers'!B$15,1,0)+IF(M67='TempO Answers'!C$15,1,0)+IF(N67='TempO Answers'!D$15,1,0)+IF(O67='TempO Answers'!E$15,1,0)","v":4},{"$f":"IF(Q67='TempO Answers'!F$15,1,0)+IF(R67='TempO Answers'!G$15,1,0)+IF(S67='TempO Answers'!H$15,1,0)+IF(T67='TempO Answers'!I$15,1,0)","v":4},{"$f":"IF(V67='TempO Answers'!J$15,1,0)+IF(W67='TempO Answers'!K$15,1,0)+IF(X67='TempO Answers'!L$15,1,0)+IF(Y67='TempO Answers'!M$15,1,0)","v":4},{"$f":"IF(AA67='TempO Answers'!N$15,1,0)+IF(AB67='TempO Answers'!O$15,1,0)+IF(AC67='TempO Answers'!P$15,1,0)+IF(AD67='TempO Answers'!Q$15,1,0)","v":4},{"$f":"IF(AF67='TempO Answers'!R$15,1,0)+IF(AG67='TempO Answers'!S$15,1,0)+IF(AH67='TempO Answers'!T$15,1,0)+IF(AI67='TempO Answers'!U$15,1,0)","v":4}]
[62,1,null,null,null,0,{"$f":"'TempO Answers'!$Y$19-F68","v":20},0,{"$f":"G68*'TempO Answers'!$N$7","v":600},9999,null,null,null,null,null,null,null,null,null,null,null,null,null,null,null,null,null,null,null,null,null,null,null,null,null,null,"",{"$f":"IF(L68='TempO Answers'!B$15,1,0)+IF(M68='TempO Answers'!C$15,1,0)+IF(N68='TempO Answers'!D$15,1,0)+IF(O68='TempO Answers'!E$15,1,0)","v":4},{"$f":"IF(Q68='TempO Answers'!F$15,1,0)+IF(R68='TempO Answers'!G$15,1,0)+IF(S68='TempO Answers'!H$15,1,0)+IF(T68='TempO Answers'!I$15,1,0)","v":4},{"$f":"IF(V68='TempO Answers'!J$15,1,0)+IF(W68='TempO Answers'!K$15,1,0)+IF(X68='TempO Answers'!L$15,1,0)+IF(Y68='TempO Answers'!M$15,1,0)","v":4},{"$f":"IF(AA68='TempO Answers'!N$15,1,0)+IF(AB68='TempO Answers'!O$15,1,0)+IF(AC68='TempO Answers'!P$15,1,0)+IF(AD68='TempO Answers'!Q$15,1,0)","v":4},{"$f":"IF(AF68='TempO Answers'!R$15,1,0)+IF(AG68='TempO Answers'!S$15,1,0)+IF(AH68='TempO Answers'!T$15,1,0)+IF(AI68='TempO Answers'!U$15,1,0)","v":4}]
[63,1,null,null,null,0,{"$f":"'TempO Answers'!$Y$19-F69","v":20},0,{"$f":"G69*'TempO Answers'!$N$7","v":600},9999,null,null,null,null,null,null,null,null,null,null,null,null,null,null,null,null,null,null,null,null,null,null,null,null,null,null,"",{"$f":"IF(L69='TempO Answers'!B$15,1,0)+IF(M69='TempO Answers'!C$15,1,0)+IF(N69='TempO Answers'!D$15,1,0)+IF(O69='TempO Answers'!E$15,1,0)","v":4},{"$f":"IF(Q69='TempO Answers'!F$15,1,0)+IF(R69='TempO Answers'!G$15,1,0)+IF(S69='TempO Answers'!H$15,1,0)+IF(T69='TempO Answers'!I$15,1,0)","v":4},{"$f":"IF(V69='TempO Answers'!J$15,1,0)+IF(W69='TempO Answers'!K$15,1,0)+IF(X69='TempO Answers'!L$15,1,0)+IF(Y69='TempO Answers'!M$15,1,0)","v":4},{"$f":"IF(AA69='TempO Answers'!N$15,1,0)+IF(AB69='TempO Answers'!O$15,1,0)+IF(AC69='TempO Answers'!P$15,1,0)+IF(AD69='TempO Answers'!Q$15,1,0)","v":4},{"$f":"IF(AF69='TempO Answers'!R$15,1,0)+IF(AG69='TempO Answers'!S$15,1,0)+IF(AH69='TempO Answers'!T$15,1,0)+IF(AI69='TempO Answers'!U$15,1,0)","v":4}]
[64,1,null,null,null,0,{"$f":"'TempO Answers'!$Y$19-F70","v":20},0,{"$f":"G70*'TempO Answers'!$N$7","v":600},9999,null,null,null,null,null,null,null,null,null,null,null,null,null,null,null,null,null,null,null,null,null,null,null,null,null,null,"",{"$f":"IF(L70='TempO Answers'!B$15,1,0)+IF(M70='TempO Answers'!C$15,1,0)+IF(N70='TempO Answers'!D$15,1,0)+IF(O70='TempO Answers'!E$15,1,0)","v":4},{"$f":"IF(Q70='TempO Answers'!F$15,1,0)+IF(R70='TempO Answers'!G$15,1,0)+IF(S70='TempO Answers'!H$15,1,0)+IF(T70='TempO Answers'!I$15,1,0)","v":4},{"$f":"IF(V70='TempO Answers'!J$15,1,0)+IF(W70='TempO Answers'!K$15,1,0)+IF(X70='TempO Answers'!L$15,1,0)+IF(Y70='TempO Answers'!M$15,1,0)","v":4},{"$f":"IF(AA70='TempO Answers'!N$15,1,0)+IF(AB70='TempO Answers'!O$15,1,0)+IF(AC70='TempO Answers'!P$15,1,0)+IF(AD70='TempO Answers'!Q$15,1,0)","v":4},{"$f":"IF(AF70='TempO Answers'!R$15,1,0)+IF(AG70='TempO Answers'!S$15,1,0)+IF(AH70='TempO Answers'!T$15,1,0)+IF(AI70='TempO Answers'!U$15,1,0)","v":4}]
[65,{"$f":"RANK(J71,$J$7:$J$138,1)","v":1},null,null,null,0,{"$f":"'TempO Answers'!$Y$19-F71","v":20},0,{"$f":"G71*'TempO Answers'!$N$7","v":600},{"$f":"IF(H71<0.1,9999,H71+I71)","v":9999},null,null,null,null,null,null,null,null,null,null,null,null,null,null,null,null,null,null,null,null,null,null,null,null,null,null,"",{"$f":"IF(L71='TempO Answers'!B$15,1,0)+IF(M71='TempO Answers'!C$15,1,0)+IF(N71='TempO Answers'!D$15,1,0)+IF(O71='TempO Answers'!E$15,1,0)","v":4},{"$f":"IF(Q71='TempO Answers'!F$15,1,0)+IF(R71='TempO Answers'!G$15,1,0)+IF(S71='TempO Answers'!H$15,1,0)+IF(T71='TempO Answers'!I$15,1,0)","v":4},{"$f":"IF(V71='TempO Answers'!J$15,1,0)+IF(W71='TempO Answers'!K$15,1,0)+IF(X71='TempO Answers'!L$15,1,0)+IF(Y71='TempO Answers'!M$15,1,0)","v":4},{"$f":"IF(AA71='TempO Answers'!N$15,1,0)+IF(AB71='TempO Answers'!O$15,1,0)+IF(AC71='TempO Answers'!P$15,1,0)+IF(AD71='TempO Answers'!Q$15,1,0)","v":4},{"$f":"IF(AF71='TempO Answers'!R$15,1,0)+IF(AG71='TempO Answers'!S$15,1,0)+IF(AH71='TempO Answers'!T$15,1,0)+IF(AI71='TempO Answers'!U$15,1,0)","v":4}]
[66,1,null,null,null,{"$f":"IF(H72<0.5,0,SUM(AL72:AP72))","v":0},{"$f":"'TempO Answers'!$Y$19-F72","v":20},{"$f":"SUM(AJ72,AE72,Z72,U72,P72)","v":0},{"$f":"G72*'TempO Answers'!$N$7","v":600},9999,null,null,null,null,null,null,null,null,null,null,null,null,null,null,null,null,null,null,null,null,null,null,null,null,null,null,{"$f":"IF(AND(H72>0.1,OR(P72<0.1,U72<0.1,Z72<0.1,AE72<0.1,AJ72<0.1)),\"  Warning:  Station times incomplete\",IF(ISNA(HLOOKUP(\"X\",L72:AI72,1,FALSE)),\"\",\"  Error: X answer is not allowed \"))","v":""},{"$f":"IF(L72='TempO Answers'!B$15,1,0)+IF(M72='TempO Answers'!C$15,1,0)+IF(N72='TempO Answers'!D$15,1,0)+IF(O72='TempO Answers'!E$15,1,0)","v":4},{"$f":"IF(Q72='TempO Answers'!F$15,1,0)+IF(R72='TempO Answers'!G$15,1,0)+IF(S72='TempO Answers'!H$15,1,0)+IF(T72='TempO Answers'!I$15,1,0)","v":4},{"$f":"IF(V72='TempO Answers'!J$15,1,0)+IF(W72='TempO Answers'!K$15,1,0)+IF(X72='TempO Answers'!L$15,1,0)+IF(Y72='TempO Answers'!M$15,1,0)","v":4},{"$f":"IF(AA72='TempO Answers'!N$15,1,0)+IF(AB72='TempO Answers'!O$15,1,0)+IF(AC72='TempO Answers'!P$15,1,0)+IF(AD72='TempO Answers'!Q$15,1,0)","v":4},{"$f":"IF(AF72='TempO Answers'!R$15,1,0)+IF(AG72='TempO Answers'!S$15,1,0)+IF(AH72='TempO Answers'!T$15,1,0)+IF(AI72='TempO Answers'!U$15,1,0)","v":4}]
[67,1,null,null,null,0,{"$f":"'TempO Answers'!$Y$19-F73","v":20},0,{"$f":"G73*'TempO Answers'!$N$7","v":600},9999,null,null,null,null,null,null,null,null,null,null,null,null,null,null,null,null,null,null,null,null,null,null,null,null,null,null,"",{"$f":"IF(L73='TempO Answers'!B$15,1,0)+IF(M73='TempO Answers'!C$15,1,0)+IF(N73='TempO Answers'!D$15,1,0)+IF(O73='TempO Answers'!E$15,1,0)","v":4},{"$f":"IF(Q73='TempO Answers'!F$15,1,0)+IF(R73='TempO Answers'!G$15,1,0)+IF(S73='TempO Answers'!H$15,1,0)+IF(T73='TempO Answers'!I$15,1,0)","v":4},{"$f":"IF(V73='TempO Answers'!J$15,1,0)+IF(W73='TempO Answers'!K$15,1,0)+IF(X73='TempO Answers'!L$15,1,0)+IF(Y73='TempO Answers'!M$15,1,0)","v":4},{"$f":"IF(AA73='TempO Answers'!N$15,1,0)+IF(AB73='TempO Answers'!O$15,1,0)+IF(AC73='TempO Answers'!P$15,1,0)+IF(AD73='TempO Answers'!Q$15,1,0)","v":4},{"$f":"IF(AF73='TempO Answers'!R$15,1,0)+IF(AG73='TempO Answers'!S$15,1,0)+IF(AH73='TempO Answers'!T$15,1,0)+IF(AI73='TempO Answers'!U$15,1,0)","v":4}]
[68,1,null,null,null,0,{"$f":"'TempO Answers'!$Y$19-F74","v":20},0,{"$f":"G74*'TempO Answers'!$N$7","v":600},9999,null,null,null,null,null,null,null,null,null,null,null,null,null,null,null,null,null,null,null,null,null,null,null,null,null,null,"",{"$f":"IF(L74='TempO Answers'!B$15,1,0)+IF(M74='TempO Answers'!C$15,1,0)+IF(N74='TempO Answers'!D$15,1,0)+IF(O74='TempO Answers'!E$15,1,0)","v":4},{"$f":"IF(Q74='TempO Answers'!F$15,1,0)+IF(R74='TempO Answers'!G$15,1,0)+IF(S74='TempO Answers'!H$15,1,0)+IF(T74='TempO Answers'!I$15,1,0)","v":4},{"$f":"IF(V74='TempO Answers'!J$15,1,0)+IF(W74='TempO Answers'!K$15,1,0)+IF(X74='TempO Answers'!L$15,1,0)+IF(Y74='TempO Answers'!M$15,1,0)","v":4},{"$f":"IF(AA74='TempO Answers'!N$15,1,0)+IF(AB74='TempO Answers'!O$15,1,0)+IF(AC74='TempO Answers'!P$15,1,0)+IF(AD74='TempO Answers'!Q$15,1,0)","v":4},{"$f":"IF(AF74='TempO Answers'!R$15,1,0)+IF(AG74='TempO Answers'!S$15,1,0)+IF(AH74='TempO Answers'!T$15,1,0)+IF(AI74='TempO Answers'!U$15,1,0)","v":4}]
[69,1,null,null,null,0,{"$f":"'TempO Answers'!$Y$19-F75","v":20},0,{"$f":"G75*'TempO Answers'!$N$7","v":600},9999,null,null,null,null,null,null,null,null,null,null,null,null,null,null,null,null,null,null,null,null,null,null,null,null,null,null,"",{"$f":"IF(L75='TempO Answers'!B$15,1,0)+IF(M75='TempO Answers'!C$15,1,0)+IF(N75='TempO Answers'!D$15,1,0)+IF(O75='TempO Answers'!E$15,1,0)","v":4},{"$f":"IF(Q75='TempO Answers'!F$15,1,0)+IF(R75='TempO Answers'!G$15,1,0)+IF(S75='TempO Answers'!H$15,1,0)+IF(T75='TempO Answers'!I$15,1,0)","v":4},{"$f":"IF(V75='TempO Answers'!J$15,1,0)+IF(W75='TempO Answers'!K$15,1,0)+IF(X75='TempO Answers'!L$15,1,0)+IF(Y75='TempO Answers'!M$15,1,0)","v":4},{"$f":"IF(AA75='TempO Answers'!N$15,1,0)+IF(AB75='TempO Answers'!O$15,1,0)+IF(AC75='TempO Answers'!P$15,1,0)+IF(AD75='TempO Answers'!Q$15,1,0)","v":4},{"$f":"IF(AF75='TempO Answers'!R$15,1,0)+IF(AG75='TempO Answers'!S$15,1,0)+IF(AH75='TempO Answers'!T$15,1,0)+IF(AI75='TempO Answers'!U$15,1,0)","v":4}]
[70,1,null,null,null,0,{"$f":"'TempO Answers'!$Y$19-F76","v":20},0,{"$f":"G76*'TempO Answers'!$N$7","v":600},9999,null,null,null,null,null,null,null,null,null,null,null,null,null,null,null,null,null,null,null,null,null,null,null,null,null,null,"",{"$f":"IF(L76='TempO Answers'!B$15,1,0)+IF(M76='TempO Answers'!C$15,1,0)+IF(N76='TempO Answers'!D$15,1,0)+IF(O76='TempO Answers'!E$15,1,0)","v":4},{"$f":"IF(Q76='TempO Answers'!F$15,1,0)+IF(R76='TempO Answers'!G$15,1,0)+IF(S76='TempO Answers'!H$15,1,0)+IF(T76='TempO Answers'!I$15,1,0)","v":4},{"$f":"IF(V76='TempO Answers'!J$15,1,0)+IF(W76='TempO Answers'!K$15,1,0)+IF(X76='TempO Answers'!L$15,1,0)+IF(Y76='TempO Answers'!M$15,1,0)","v":4},{"$f":"IF(AA76='TempO Answers'!N$15,1,0)+IF(AB76='TempO Answers'!O$15,1,0)+IF(AC76='TempO Answers'!P$15,1,0)+IF(AD76='TempO Answers'!Q$15,1,0)","v":4},{"$f":"IF(AF76='TempO Answers'!R$15,1,0)+IF(AG76='TempO Answers'!S$15,1,0)+IF(AH76='TempO Answers'!T$15,1,0)+IF(AI76='TempO Answers'!U$15,1,0)","v":4}]
[71,1,null,null,null,0,{"$f":"'TempO Answers'!$Y$19-F77","v":20},0,{"$f":"G77*'TempO Answers'!$N$7","v":600},9999,null,null,null,null,null,null,null,null,null,null,null,null,null,null,null,null,null,null,null,null,null,null,null,null,null,null,"",{"$f":"IF(L77='TempO Answers'!B$15,1,0)+IF(M77='TempO Answers'!C$15,1,0)+IF(N77='TempO Answers'!D$15,1,0)+IF(O77='TempO Answers'!E$15,1,0)","v":4},{"$f":"IF(Q77='TempO Answers'!F$15,1,0)+IF(R77='TempO Answers'!G$15,1,0)+IF(S77='TempO Answers'!H$15,1,0)+IF(T77='TempO Answers'!I$15,1,0)","v":4},{"$f":"IF(V77='TempO Answers'!J$15,1,0)+IF(W77='TempO Answers'!K$15,1,0)+IF(X77='TempO Answers'!L$15,1,0)+IF(Y77='TempO Answers'!M$15,1,0)","v":4},{"$f":"IF(AA77='TempO Answers'!N$15,1,0)+IF(AB77='TempO Answers'!O$15,1,0)+IF(AC77='TempO Answers'!P$15,1,0)+IF(AD77='TempO Answers'!Q$15,1,0)","v":4},{"$f":"IF(AF77='TempO Answers'!R$15,1,0)+IF(AG77='TempO Answers'!S$15,1,0)+IF(AH77='TempO Answers'!T$15,1,0)+IF(AI77='TempO Answers'!U$15,1,0)","v":4}]
[72,1,null,null,null,0,{"$f":"'TempO Answers'!$Y$19-F78","v":20},0,{"$f":"G78*'TempO Answers'!$N$7","v":600},9999,null,null,null,null,null,null,null,null,null,null,null,null,null,null,null,null,null,null,null,null,null,null,null,null,null,null,"",{"$f":"IF(L78='TempO Answers'!B$15,1,0)+IF(M78='TempO Answers'!C$15,1,0)+IF(N78='TempO Answers'!D$15,1,0)+IF(O78='TempO Answers'!E$15,1,0)","v":4},{"$f":"IF(Q78='TempO Answers'!F$15,1,0)+IF(R78='TempO Answers'!G$15,1,0)+IF(S78='TempO Answers'!H$15,1,0)+IF(T78='TempO Answers'!I$15,1,0)","v":4},{"$f":"IF(V78='TempO Answers'!J$15,1,0)+IF(W78='TempO Answers'!K$15,1,0)+IF(X78='TempO Answers'!L$15,1,0)+IF(Y78='TempO Answers'!M$15,1,0)","v":4},{"$f":"IF(AA78='TempO Answers'!N$15,1,0)+IF(AB78='TempO Answers'!O$15,1,0)+IF(AC78='TempO Answers'!P$15,1,0)+IF(AD78='TempO Answers'!Q$15,1,0)","v":4},{"$f":"IF(AF78='TempO Answers'!R$15,1,0)+IF(AG78='TempO Answers'!S$15,1,0)+IF(AH78='TempO Answers'!T$15,1,0)+IF(AI78='TempO Answers'!U$15,1,0)","v":4}]
[73,1,null,null,null,0,{"$f":"'TempO Answers'!$Y$19-F79","v":20},0,{"$f":"G79*'TempO Answers'!$N$7","v":600},9999,null,null,null,null,null,null,null,null,null,null,null,null,null,null,null,null,null,null,null,null,null,null,null,null,null,null,"",{"$f":"IF(L79='TempO Answers'!B$15,1,0)+IF(M79='TempO Answers'!C$15,1,0)+IF(N79='TempO Answers'!D$15,1,0)+IF(O79='TempO Answers'!E$15,1,0)","v":4},{"$f":"IF(Q79='TempO Answers'!F$15,1,0)+IF(R79='TempO Answers'!G$15,1,0)+IF(S79='TempO Answers'!H$15,1,0)+IF(T79='TempO Answers'!I$15,1,0)","v":4},{"$f":"IF(V79='TempO Answers'!J$15,1,0)+IF(W79='TempO Answers'!K$15,1,0)+IF(X79='TempO Answers'!L$15,1,0)+IF(Y79='TempO Answers'!M$15,1,0)","v":4},{"$f":"IF(AA79='TempO Answers'!N$15,1,0)+IF(AB79='TempO Answers'!O$15,1,0)+IF(AC79='TempO Answers'!P$15,1,0)+IF(AD79='TempO Answers'!Q$15,1,0)","v":4},{"$f":"IF(AF79='TempO Answers'!R$15,1,0)+IF(AG79='TempO Answers'!S$15,1,0)+IF(AH79='TempO Answers'!T$15,1,0)+IF(AI79='TempO Answers'!U$15,1,0)","v":4}]
[74,1,null,null,null,0,{"$f":"'TempO Answers'!$Y$19-F80","v":20},0,{"$f":"G80*'TempO Answers'!$N$7","v":600},9999,null,null,null,null,null,null,null,null,null,null,null,null,null,null,null,null,null,null,null,null,null,null,null,null,null,null,"",{"$f":"IF(L80='TempO Answers'!B$15,1,0)+IF(M80='TempO Answers'!C$15,1,0)+IF(N80='TempO Answers'!D$15,1,0)+IF(O80='TempO Answers'!E$15,1,0)","v":4},{"$f":"IF(Q80='TempO Answers'!F$15,1,0)+IF(R80='TempO Answers'!G$15,1,0)+IF(S80='TempO Answers'!H$15,1,0)+IF(T80='TempO Answers'!I$15,1,0)","v":4},{"$f":"IF(V80='TempO Answers'!J$15,1,0)+IF(W80='TempO Answers'!K$15,1,0)+IF(X80='TempO Answers'!L$15,1,0)+IF(Y80='TempO Answers'!M$15,1,0)","v":4},{"$f":"IF(AA80='TempO Answers'!N$15,1,0)+IF(AB80='TempO Answers'!O$15,1,0)+IF(AC80='TempO Answers'!P$15,1,0)+IF(AD80='TempO Answers'!Q$15,1,0)","v":4},{"$f":"IF(AF80='TempO Answers'!R$15,1,0)+IF(AG80='TempO Answers'!S$15,1,0)+IF(AH80='TempO Answers'!T$15,1,0)+IF(AI80='TempO Answers'!U$15,1,0)","v":4}]
[75,1,null,null,null,0,{"$f":"'TempO Answers'!$Y$19-F81","v":20},0,{"$f":"G81*'TempO Answers'!$N$7","v":600},9999,null,null,null,null,null,null,null,null,null,null,null,null,null,null,null,null,null,null,null,null,null,null,null,null,null,null,"",{"$f":"IF(L81='TempO Answers'!B$15,1,0)+IF(M81='TempO Answers'!C$15,1,0)+IF(N81='TempO Answers'!D$15,1,0)+IF(O81='TempO Answers'!E$15,1,0)","v":4},{"$f":"IF(Q81='TempO Answers'!F$15,1,0)+IF(R81='TempO Answers'!G$15,1,0)+IF(S81='TempO Answers'!H$15,1,0)+IF(T81='TempO Answers'!I$15,1,0)","v":4},{"$f":"IF(V81='TempO Answers'!J$15,1,0)+IF(W81='TempO Answers'!K$15,1,0)+IF(X81='TempO Answers'!L$15,1,0)+IF(Y81='TempO Answers'!M$15,1,0)","v":4},{"$f":"IF(AA81='TempO Answers'!N$15,1,0)+IF(AB81='TempO Answers'!O$15,1,0)+IF(AC81='TempO Answers'!P$15,1,0)+IF(AD81='TempO Answers'!Q$15,1,0)","v":4},{"$f":"IF(AF81='TempO Answers'!R$15,1,0)+IF(AG81='TempO Answers'!S$15,1,0)+IF(AH81='TempO Answers'!T$15,1,0)+IF(AI81='TempO Answers'!U$15,1,0)","v":4}]
[76,1,null,null,null,0,{"$f":"'TempO Answers'!$Y$19-F82","v":20},0,{"$f":"G82*'TempO Answers'!$N$7","v":600},9999,null,null,null,null,null,null,null,null,null,null,null,null,null,null,null,null,null,null,null,null,null,null,null,null,null,null,"",{"$f":"IF(L82='TempO Answers'!B$15,1,0)+IF(M82='TempO Answers'!C$15,1,0)+IF(N82='TempO Answers'!D$15,1,0)+IF(O82='TempO Answers'!E$15,1,0)","v":4},{"$f":"IF(Q82='TempO Answers'!F$15,1,0)+IF(R82='TempO Answers'!G$15,1,0)+IF(S82='TempO Answers'!H$15,1,0)+IF(T82='TempO Answers'!I$15,1,0)","v":4},{"$f":"IF(V82='TempO Answers'!J$15,1,0)+IF(W82='TempO Answers'!K$15,1,0)+IF(X82='TempO Answers'!L$15,1,0)+IF(Y82='TempO Answers'!M$15,1,0)","v":4},{"$f":"IF(AA82='TempO Answers'!N$15,1,0)+IF(AB82='TempO Answers'!O$15,1,0)+IF(AC82='TempO Answers'!P$15,1,0)+IF(AD82='TempO Answers'!Q$15,1,0)","v":4},{"$f":"IF(AF82='TempO Answers'!R$15,1,0)+IF(AG82='TempO Answers'!S$15,1,0)+IF(AH82='TempO Answers'!T$15,1,0)+IF(AI82='TempO Answers'!U$15,1,0)","v":4}]
[77,1,null,null,null,0,{"$f":"'TempO Answers'!$Y$19-F83","v":20},0,{"$f":"G83*'TempO Answers'!$N$7","v":600},9999,null,null,null,null,null,null,null,null,null,null,null,null,null,null,null,null,null,null,null,null,null,null,null,null,null,null,"",{"$f":"IF(L83='TempO Answers'!B$15,1,0)+IF(M83='TempO Answers'!C$15,1,0)+IF(N83='TempO Answers'!D$15,1,0)+IF(O83='TempO Answers'!E$15,1,0)","v":4},{"$f":"IF(Q83='TempO Answers'!F$15,1,0)+IF(R83='TempO Answers'!G$15,1,0)+IF(S83='TempO Answers'!H$15,1,0)+IF(T83='TempO Answers'!I$15,1,0)","v":4},{"$f":"IF(V83='TempO Answers'!J$15,1,0)+IF(W83='TempO Answers'!K$15,1,0)+IF(X83='TempO Answers'!L$15,1,0)+IF(Y83='TempO Answers'!M$15,1,0)","v":4},{"$f":"IF(AA83='TempO Answers'!N$15,1,0)+IF(AB83='TempO Answers'!O$15,1,0)+IF(AC83='TempO Answers'!P$15,1,0)+IF(AD83='TempO Answers'!Q$15,1,0)","v":4},{"$f":"IF(AF83='TempO Answers'!R$15,1,0)+IF(AG83='TempO Answers'!S$15,1,0)+IF(AH83='TempO Answers'!T$15,1,0)+IF(AI83='TempO Answers'!U$15,1,0)","v":4}]
[78,1,null,null,null,0,{"$f":"'TempO Answers'!$Y$19-F84","v":20},0,{"$f":"G84*'TempO Answers'!$N$7","v":600},9999,null,null,null,null,null,null,null,null,null,null,null,null,null,null,null,null,null,null,null,null,null,null,null,null,null,null,"",{"$f":"IF(L84='TempO Answers'!B$15,1,0)+IF(M84='TempO Answers'!C$15,1,0)+IF(N84='TempO Answers'!D$15,1,0)+IF(O84='TempO Answers'!E$15,1,0)","v":4},{"$f":"IF(Q84='TempO Answers'!F$15,1,0)+IF(R84='TempO Answers'!G$15,1,0)+IF(S84='TempO Answers'!H$15,1,0)+IF(T84='TempO Answers'!I$15,1,0)","v":4},{"$f":"IF(V84='TempO Answers'!J$15,1,0)+IF(W84='TempO Answers'!K$15,1,0)+IF(X84='TempO Answers'!L$15,1,0)+IF(Y84='TempO Answers'!M$15,1,0)","v":4},{"$f":"IF(AA84='TempO Answers'!N$15,1,0)+IF(AB84='TempO Answers'!O$15,1,0)+IF(AC84='TempO Answers'!P$15,1,0)+IF(AD84='TempO Answers'!Q$15,1,0)","v":4},{"$f":"IF(AF84='TempO Answers'!R$15,1,0)+IF(AG84='TempO Answers'!S$15,1,0)+IF(AH84='TempO Answers'!T$15,1,0)+IF(AI84='TempO Answers'!U$15,1,0)","v":4}]
[79,1,null,null,null,0,{"$f":"'TempO Answers'!$Y$19-F85","v":20},0,{"$f":"G85*'TempO Answers'!$N$7","v":600},9999,null,null,null,null,null,null,null,null,null,null,null,null,null,null,null,null,null,null,null,null,null,null,null,null,null,null,"",{"$f":"IF(L85='TempO Answers'!B$15,1,0)+IF(M85='TempO Answers'!C$15,1,0)+IF(N85='TempO Answers'!D$15,1,0)+IF(O85='TempO Answers'!E$15,1,0)","v":4},{"$f":"IF(Q85='TempO Answers'!F$15,1,0)+IF(R85='TempO Answers'!G$15,1,0)+IF(S85='TempO Answers'!H$15,1,0)+IF(T85='TempO Answers'!I$15,1,0)","v":4},{"$f":"IF(V85='TempO Answers'!J$15,1,0)+IF(W85='TempO Answers'!K$15,1,0)+IF(X85='TempO Answers'!L$15,1,0)+IF(Y85='TempO Answers'!M$15,1,0)","v":4},{"$f":"IF(AA85='TempO Answers'!N$15,1,0)+IF(AB85='TempO Answers'!O$15,1,0)+IF(AC85='TempO Answers'!P$15,1,0)+IF(AD85='TempO Answers'!Q$15,1,0)","v":4},{"$f":"IF(AF85='TempO Answers'!R$15,1,0)+IF(AG85='TempO Answers'!S$15,1,0)+IF(AH85='TempO Answers'!T$15,1,0)+IF(AI85='TempO Answers'!U$15,1,0)","v":4}]
[80,1,null,null,null,0,{"$f":"'TempO Answers'!$Y$19-F86","v":20},0,{"$f":"G86*'TempO Answers'!$N$7","v":600},9999,null,null,null,null,null,null,null,null,null,null,null,null,null,null,null,null,null,null,null,null,null,null,null,null,null,null,"",{"$f":"IF(L86='TempO Answers'!B$15,1,0)+IF(M86='TempO Answers'!C$15,1,0)+IF(N86='TempO Answers'!D$15,1,0)+IF(O86='TempO Answers'!E$15,1,0)","v":4},{"$f":"IF(Q86='TempO Answers'!F$15,1,0)+IF(R86='TempO Answers'!G$15,1,0)+IF(S86='TempO Answers'!H$15,1,0)+IF(T86='TempO Answers'!I$15,1,0)","v":4},{"$f":"IF(V86='TempO Answers'!J$15,1,0)+IF(W86='TempO Answers'!K$15,1,0)+IF(X86='TempO Answers'!L$15,1,0)+IF(Y86='TempO Answers'!M$15,1,0)","v":4},{"$f":"IF(AA86='TempO Answers'!N$15,1,0)+IF(AB86='TempO Answers'!O$15,1,0)+IF(AC86='TempO Answers'!P$15,1,0)+IF(AD86='TempO Answers'!Q$15,1,0)","v":4},{"$f":"IF(AF86='TempO Answers'!R$15,1,0)+IF(AG86='TempO Answers'!S$15,1,0)+IF(AH86='TempO Answers'!T$15,1,0)+IF(AI86='TempO Answers'!U$15,1,0)","v":4}]
[81,1,null,null,null,0,{"$f":"'TempO Answers'!$Y$19-F87","v":20},0,{"$f":"G87*'TempO Answers'!$N$7","v":600},9999,null,null,null,null,null,null,null,null,null,null,null,null,null,null,null,null,null,null,null,null,null,null,null,null,null,null,"",{"$f":"IF(L87='TempO Answers'!B$15,1,0)+IF(M87='TempO Answers'!C$15,1,0)+IF(N87='TempO Answers'!D$15,1,0)+IF(O87='TempO Answers'!E$15,1,0)","v":4},{"$f":"IF(Q87='TempO Answers'!F$15,1,0)+IF(R87='TempO Answers'!G$15,1,0)+IF(S87='TempO Answers'!H$15,1,0)+IF(T87='TempO Answers'!I$15,1,0)","v":4},{"$f":"IF(V87='TempO Answers'!J$15,1,0)+IF(W87='TempO Answers'!K$15,1,0)+IF(X87='TempO Answers'!L$15,1,0)+IF(Y87='TempO Answers'!M$15,1,0)","v":4},{"$f":"IF(AA87='TempO Answers'!N$15,1,0)+IF(AB87='TempO Answers'!O$15,1,0)+IF(AC87='TempO Answers'!P$15,1,0)+IF(AD87='TempO Answers'!Q$15,1,0)","v":4},{"$f":"IF(AF87='TempO Answers'!R$15,1,0)+IF(AG87='TempO Answers'!S$15,1,0)+IF(AH87='TempO Answers'!T$15,1,0)+IF(AI87='TempO Answers'!U$15,1,0)","v":4}]
[82,1,null,null,null,0,{"$f":"'TempO Answers'!$Y$19-F88","v":20},0,{"$f":"G88*'TempO Answers'!$N$7","v":600},9999,null,null,null,null,null,null,null,null,null,null,null,null,null,null,null,null,null,null,null,null,null,null,null,null,null,null,"",{"$f":"IF(L88='TempO Answers'!B$15,1,0)+IF(M88='TempO Answers'!C$15,1,0)+IF(N88='TempO Answers'!D$15,1,0)+IF(O88='TempO Answers'!E$15,1,0)","v":4},{"$f":"IF(Q88='TempO Answers'!F$15,1,0)+IF(R88='TempO Answers'!G$15,1,0)+IF(S88='TempO Answers'!H$15,1,0)+IF(T88='TempO Answers'!I$15,1,0)","v":4},{"$f":"IF(V88='TempO Answers'!J$15,1,0)+IF(W88='TempO Answers'!K$15,1,0)+IF(X88='TempO Answers'!L$15,1,0)+IF(Y88='TempO Answers'!M$15,1,0)","v":4},{"$f":"IF(AA88='TempO Answers'!N$15,1,0)+IF(AB88='TempO Answers'!O$15,1,0)+IF(AC88='TempO Answers'!P$15,1,0)+IF(AD88='TempO Answers'!Q$15,1,0)","v":4},{"$f":"IF(AF88='TempO Answers'!R$15,1,0)+IF(AG88='TempO Answers'!S$15,1,0)+IF(AH88='TempO Answers'!T$15,1,0)+IF(AI88='TempO Answers'!U$15,1,0)","v":4}]
[83,1,null,null,null,0,{"$f":"'TempO Answers'!$Y$19-F89","v":20},0,{"$f":"G89*'TempO Answers'!$N$7","v":600},9999,null,null,null,null,null,null,null,null,null,null,null,null,null,null,null,null,null,null,null,null,null,null,null,null,null,null,"",{"$f":"IF(L89='TempO Answers'!B$15,1,0)+IF(M89='TempO Answers'!C$15,1,0)+IF(N89='TempO Answers'!D$15,1,0)+IF(O89='TempO Answers'!E$15,1,0)","v":4},{"$f":"IF(Q89='TempO Answers'!F$15,1,0)+IF(R89='TempO Answers'!G$15,1,0)+IF(S89='TempO Answers'!H$15,1,0)+IF(T89='TempO Answers'!I$15,1,0)","v":4},{"$f":"IF(V89='TempO Answers'!J$15,1,0)+IF(W89='TempO Answers'!K$15,1,0)+IF(X89='TempO Answers'!L$15,1,0)+IF(Y89='TempO Answers'!M$15,1,0)","v":4},{"$f":"IF(AA89='TempO Answers'!N$15,1,0)+IF(AB89='TempO Answers'!O$15,1,0)+IF(AC89='TempO Answers'!P$15,1,0)+IF(AD89='TempO Answers'!Q$15,1,0)","v":4},{"$f":"IF(AF89='TempO Answers'!R$15,1,0)+IF(AG89='TempO Answers'!S$15,1,0)+IF(AH89='TempO Answers'!T$15,1,0)+IF(AI89='TempO Answers'!U$15,1,0)","v":4}]
[84,1,null,null,null,0,{"$f":"'TempO Answers'!$Y$19-F90","v":20},0,{"$f":"G90*'TempO Answers'!$N$7","v":600},9999,null,null,null,null,null,null,null,null,null,null,null,null,null,null,null,null,null,null,null,null,null,null,null,null,null,null,"",{"$f":"IF(L90='TempO Answers'!B$15,1,0)+IF(M90='TempO Answers'!C$15,1,0)+IF(N90='TempO Answers'!D$15,1,0)+IF(O90='TempO Answers'!E$15,1,0)","v":4},{"$f":"IF(Q90='TempO Answers'!F$15,1,0)+IF(R90='TempO Answers'!G$15,1,0)+IF(S90='TempO Answers'!H$15,1,0)+IF(T90='TempO Answers'!I$15,1,0)","v":4},{"$f":"IF(V90='TempO Answers'!J$15,1,0)+IF(W90='TempO Answers'!K$15,1,0)+IF(X90='TempO Answers'!L$15,1,0)+IF(Y90='TempO Answers'!M$15,1,0)","v":4},{"$f":"IF(AA90='TempO Answers'!N$15,1,0)+IF(AB90='TempO Answers'!O$15,1,0)+IF(AC90='TempO Answers'!P$15,1,0)+IF(AD90='TempO Answers'!Q$15,1,0)","v":4},{"$f":"IF(AF90='TempO Answers'!R$15,1,0)+IF(AG90='TempO Answers'!S$15,1,0)+IF(AH90='TempO Answers'!T$15,1,0)+IF(AI90='TempO Answers'!U$15,1,0)","v":4}]
[85,1,null,null,null,0,{"$f":"'TempO Answers'!$Y$19-F91","v":20},0,{"$f":"G91*'TempO Answers'!$N$7","v":600},9999,null,null,null,null,null,null,null,null,null,null,null,null,null,null,null,null,null,null,null,null,null,null,null,null,null,null,"",{"$f":"IF(L91='TempO Answers'!B$15,1,0)+IF(M91='TempO Answers'!C$15,1,0)+IF(N91='TempO Answers'!D$15,1,0)+IF(O91='TempO Answers'!E$15,1,0)","v":4},{"$f":"IF(Q91='TempO Answers'!F$15,1,0)+IF(R91='TempO Answers'!G$15,1,0)+IF(S91='TempO Answers'!H$15,1,0)+IF(T91='TempO Answers'!I$15,1,0)","v":4},{"$f":"IF(V91='TempO Answers'!J$15,1,0)+IF(W91='TempO Answers'!K$15,1,0)+IF(X91='TempO Answers'!L$15,1,0)+IF(Y91='TempO Answers'!M$15,1,0)","v":4},{"$f":"IF(AA91='TempO Answers'!N$15,1,0)+IF(AB91='TempO Answers'!O$15,1,0)+IF(AC91='TempO Answers'!P$15,1,0)+IF(AD91='TempO Answers'!Q$15,1,0)","v":4},{"$f":"IF(AF91='TempO Answers'!R$15,1,0)+IF(AG91='TempO Answers'!S$15,1,0)+IF(AH91='TempO Answers'!T$15,1,0)+IF(AI91='TempO Answers'!U$15,1,0)","v":4}]
[86,1,null,null,null,0,{"$f":"'TempO Answers'!$Y$19-F92","v":20},0,{"$f":"G92*'TempO Answers'!$N$7","v":600},9999,null,null,null,null,null,null,null,null,null,null,null,null,null,null,null,null,null,null,null,null,null,null,null,null,null,null,"",{"$f":"IF(L92='TempO Answers'!B$15,1,0)+IF(M92='TempO Answers'!C$15,1,0)+IF(N92='TempO Answers'!D$15,1,0)+IF(O92='TempO Answers'!E$15,1,0)","v":4},{"$f":"IF(Q92='TempO Answers'!F$15,1,0)+IF(R92='TempO Answers'!G$15,1,0)+IF(S92='TempO Answers'!H$15,1,0)+IF(T92='TempO Answers'!I$15,1,0)","v":4},{"$f":"IF(V92='TempO Answers'!J$15,1,0)+IF(W92='TempO Answers'!K$15,1,0)+IF(X92='TempO Answers'!L$15,1,0)+IF(Y92='TempO Answers'!M$15,1,0)","v":4},{"$f":"IF(AA92='TempO Answers'!N$15,1,0)+IF(AB92='TempO Answers'!O$15,1,0)+IF(AC92='TempO Answers'!P$15,1,0)+IF(AD92='TempO Answers'!Q$15,1,0)","v":4},{"$f":"IF(AF92='TempO Answers'!R$15,1,0)+IF(AG92='TempO Answers'!S$15,1,0)+IF(AH92='TempO Answers'!T$15,1,0)+IF(AI92='TempO Answers'!U$15,1,0)","v":4}]
[87,1,null,null,null,0,{"$f":"'TempO Answers'!$Y$19-F93","v":20},0,{"$f":"G93*'TempO Answers'!$N$7","v":600},9999,null,null,null,null,null,null,null,null,null,null,null,null,null,null,null,null,null,null,null,null,null,null,null,null,null,null,"",{"$f":"IF(L93='TempO Answers'!B$15,1,0)+IF(M93='TempO Answers'!C$15,1,0)+IF(N93='TempO Answers'!D$15,1,0)+IF(O93='TempO Answers'!E$15,1,0)","v":4},{"$f":"IF(Q93='TempO Answers'!F$15,1,0)+IF(R93='TempO Answers'!G$15,1,0)+IF(S93='TempO Answers'!H$15,1,0)+IF(T93='TempO Answers'!I$15,1,0)","v":4},{"$f":"IF(V93='TempO Answers'!J$15,1,0)+IF(W93='TempO Answers'!K$15,1,0)+IF(X93='TempO Answers'!L$15,1,0)+IF(Y93='TempO Answers'!M$15,1,0)","v":4},{"$f":"IF(AA93='TempO Answers'!N$15,1,0)+IF(AB93='TempO Answers'!O$15,1,0)+IF(AC93='TempO Answers'!P$15,1,0)+IF(AD93='TempO Answers'!Q$15,1,0)","v":4},{"$f":"IF(AF93='TempO Answers'!R$15,1,0)+IF(AG93='TempO Answers'!S$15,1,0)+IF(AH93='TempO Answers'!T$15,1,0)+IF(AI93='TempO Answers'!U$15,1,0)","v":4}]
[88,1,null,null,null,0,{"$f":"'TempO Answers'!$Y$19-F94","v":20},0,{"$f":"G94*'TempO Answers'!$N$7","v":600},9999,null,null,null,null,null,null,null,null,null,null,null,null,null,null,null,null,null,null,null,null,null,null,null,null,null,null,"",{"$f":"IF(L94='TempO Answers'!B$15,1,0)+IF(M94='TempO Answers'!C$15,1,0)+IF(N94='TempO Answers'!D$15,1,0)+IF(O94='TempO Answers'!E$15,1,0)","v":4},{"$f":"IF(Q94='TempO Answers'!F$15,1,0)+IF(R94='TempO Answers'!G$15,1,0)+IF(S94='TempO Answers'!H$15,1,0)+IF(T94='TempO Answers'!I$15,1,0)","v":4},{"$f":"IF(V94='TempO Answers'!J$15,1,0)+IF(W94='TempO Answers'!K$15,1,0)+IF(X94='TempO Answers'!L$15,1,0)+IF(Y94='TempO Answers'!M$15,1,0)","v":4},{"$f":"IF(AA94='TempO Answers'!N$15,1,0)+IF(AB94='TempO Answers'!O$15,1,0)+IF(AC94='TempO Answers'!P$15,1,0)+IF(AD94='TempO Answers'!Q$15,1,0)","v":4},{"$f":"IF(AF94='TempO Answers'!R$15,1,0)+IF(AG94='TempO Answers'!S$15,1,0)+IF(AH94='TempO Answers'!T$15,1,0)+IF(AI94='TempO Answers'!U$15,1,0)","v":4}]
[89,1,null,null,null,0,{"$f":"'TempO Answers'!$Y$19-F95","v":20},0,{"$f":"G95*'TempO Answers'!$N$7","v":600},9999,null,null,null,null,null,null,null,null,null,null,null,null,null,null,null,null,null,null,null,null,null,null,null,null,null,null,"",{"$f":"IF(L95='TempO Answers'!B$15,1,0)+IF(M95='TempO Answers'!C$15,1,0)+IF(N95='TempO Answers'!D$15,1,0)+IF(O95='TempO Answers'!E$15,1,0)","v":4},{"$f":"IF(Q95='TempO Answers'!F$15,1,0)+IF(R95='TempO Answers'!G$15,1,0)+IF(S95='TempO Answers'!H$15,1,0)+IF(T95='TempO Answers'!I$15,1,0)","v":4},{"$f":"IF(V95='TempO Answers'!J$15,1,0)+IF(W95='TempO Answers'!K$15,1,0)+IF(X95='TempO Answers'!L$15,1,0)+IF(Y95='TempO Answers'!M$15,1,0)","v":4},{"$f":"IF(AA95='TempO Answers'!N$15,1,0)+IF(AB95='TempO Answers'!O$15,1,0)+IF(AC95='TempO Answers'!P$15,1,0)+IF(AD95='TempO Answers'!Q$15,1,0)","v":4},{"$f":"IF(AF95='TempO Answers'!R$15,1,0)+IF(AG95='TempO Answers'!S$15,1,0)+IF(AH95='TempO Answers'!T$15,1,0)+IF(AI95='TempO Answers'!U$15,1,0)","v":4}]
[90,1,null,null,null,0,{"$f":"'TempO Answers'!$Y$19-F96","v":20},0,{"$f":"G96*'TempO Answers'!$N$7","v":600},9999,null,null,null,null,null,null,null,null,null,null,null,null,null,null,null,null,null,null,null,null,null,null,null,null,null,null,"",{"$f":"IF(L96='TempO Answers'!B$15,1,0)+IF(M96='TempO Answers'!C$15,1,0)+IF(N96='TempO Answers'!D$15,1,0)+IF(O96='TempO Answers'!E$15,1,0)","v":4},{"$f":"IF(Q96='TempO Answers'!F$15,1,0)+IF(R96='TempO Answers'!G$15,1,0)+IF(S96='TempO Answers'!H$15,1,0)+IF(T96='TempO Answers'!I$15,1,0)","v":4},{"$f":"IF(V96='TempO Answers'!J$15,1,0)+IF(W96='TempO Answers'!K$15,1,0)+IF(X96='TempO Answers'!L$15,1,0)+IF(Y96='TempO Answers'!M$15,1,0)","v":4},{"$f":"IF(AA96='TempO Answers'!N$15,1,0)+IF(AB96='TempO Answers'!O$15,1,0)+IF(AC96='TempO Answers'!P$15,1,0)+IF(AD96='TempO Answers'!Q$15,1,0)","v":4},{"$f":"IF(AF96='TempO Answers'!R$15,1,0)+IF(AG96='TempO Answers'!S$15,1,0)+IF(AH96='TempO Answers'!T$15,1,0)+IF(AI96='TempO Answers'!U$15,1,0)","v":4}]
[91,1,null,null,null,0,{"$f":"'TempO Answers'!$Y$19-F97","v":20},0,{"$f":"G97*'TempO Answers'!$N$7","v":600},9999,null,null,null,null,null,null,null,null,null,null,null,null,null,null,null,null,null,null,null,null,null,null,null,null,null,null,"",{"$f":"IF(L97='TempO Answers'!B$15,1,0)+IF(M97='TempO Answers'!C$15,1,0)+IF(N97='TempO Answers'!D$15,1,0)+IF(O97='TempO Answers'!E$15,1,0)","v":4},{"$f":"IF(Q97='TempO Answers'!F$15,1,0)+IF(R97='TempO Answers'!G$15,1,0)+IF(S97='TempO Answers'!H$15,1,0)+IF(T97='TempO Answers'!I$15,1,0)","v":4},{"$f":"IF(V97='TempO Answers'!J$15,1,0)+IF(W97='TempO Answers'!K$15,1,0)+IF(X97='TempO Answers'!L$15,1,0)+IF(Y97='TempO Answers'!M$15,1,0)","v":4},{"$f":"IF(AA97='TempO Answers'!N$15,1,0)+IF(AB97='TempO Answers'!O$15,1,0)+IF(AC97='TempO Answers'!P$15,1,0)+IF(AD97='TempO Answers'!Q$15,1,0)","v":4},{"$f":"IF(AF97='TempO Answers'!R$15,1,0)+IF(AG97='TempO Answers'!S$15,1,0)+IF(AH97='TempO Answers'!T$15,1,0)+IF(AI97='TempO Answers'!U$15,1,0)","v":4}]
[92,1,null,null,null,0,{"$f":"'TempO Answers'!$Y$19-F98","v":20},0,{"$f":"G98*'TempO Answers'!$N$7","v":600},9999,null,null,null,null,null,null,null,null,null,null,null,null,null,null,null,null,null,null,null,null,null,null,null,null,null,null,"",{"$f":"IF(L98='TempO Answers'!B$15,1,0)+IF(M98='TempO Answers'!C$15,1,0)+IF(N98='TempO Answers'!D$15,1,0)+IF(O98='TempO Answers'!E$15,1,0)","v":4},{"$f":"IF(Q98='TempO Answers'!F$15,1,0)+IF(R98='TempO Answers'!G$15,1,0)+IF(S98='TempO Answers'!H$15,1,0)+IF(T98='TempO Answers'!I$15,1,0)","v":4},{"$f":"IF(V98='TempO Answers'!J$15,1,0)+IF(W98='TempO Answers'!K$15,1,0)+IF(X98='TempO Answers'!L$15,1,0)+IF(Y98='TempO Answers'!M$15,1,0)","v":4},{"$f":"IF(AA98='TempO Answers'!N$15,1,0)+IF(AB98='TempO Answers'!O$15,1,0)+IF(AC98='TempO Answers'!P$15,1,0)+IF(AD98='TempO Answers'!Q$15,1,0)","v":4},{"$f":"IF(AF98='TempO Answers'!R$15,1,0)+IF(AG98='TempO Answers'!S$15,1,0)+IF(AH98='TempO Answers'!T$15,1,0)+IF(AI98='TempO Answers'!U$15,1,0)","v":4}]
[93,1,null,null,null,0,{"$f":"'TempO Answers'!$Y$19-F99","v":20},0,{"$f":"G99*'TempO Answers'!$N$7","v":600},9999,null,null,null,null,null,null,null,null,null,null,null,null,null,null,null,null,null,null,null,null,null,null,null,null,null,null,"",{"$f":"IF(L99='TempO Answers'!B$15,1,0)+IF(M99='TempO Answers'!C$15,1,0)+IF(N99='TempO Answers'!D$15,1,0)+IF(O99='TempO Answers'!E$15,1,0)","v":4},{"$f":"IF(Q99='TempO Answers'!F$15,1,0)+IF(R99='TempO Answers'!G$15,1,0)+IF(S99='TempO Answers'!H$15,1,0)+IF(T99='TempO Answers'!I$15,1,0)","v":4},{"$f":"IF(V99='TempO Answers'!J$15,1,0)+IF(W99='TempO Answers'!K$15,1,0)+IF(X99='TempO Answers'!L$15,1,0)+IF(Y99='TempO Answers'!M$15,1,0)","v":4},{"$f":"IF(AA99='TempO Answers'!N$15,1,0)+IF(AB99='TempO Answers'!O$15,1,0)+IF(AC99='TempO Answers'!P$15,1,0)+IF(AD99='TempO Answers'!Q$15,1,0)","v":4},{"$f":"IF(AF99='TempO Answers'!R$15,1,0)+IF(AG99='TempO Answers'!S$15,1,0)+IF(AH99='TempO Answers'!T$15,1,0)+IF(AI99='TempO Answers'!U$15,1,0)","v":4}]
[94,1,null,null,null,0,{"$f":"'TempO Answers'!$Y$19-F100","v":20},0,{"$f":"G100*'TempO Answers'!$N$7","v":600},9999,null,null,null,null,null,null,null,null,null,null,null,null,null,null,null,null,null,null,null,null,null,null,null,null,null,null,"",{"$f":"IF(L100='TempO Answers'!B$15,1,0)+IF(M100='TempO Answers'!C$15,1,0)+IF(N100='TempO Answers'!D$15,1,0)+IF(O100='TempO Answers'!E$15,1,0)","v":4},{"$f":"IF(Q100='TempO Answers'!F$15,1,0)+IF(R100='TempO Answers'!G$15,1,0)+IF(S100='TempO Answers'!H$15,1,0)+IF(T100='TempO Answers'!I$15,1,0)","v":4},{"$f":"IF(V100='TempO Answers'!J$15,1,0)+IF(W100='TempO Answers'!K$15,1,0)+IF(X100='TempO Answers'!L$15,1,0)+IF(Y100='TempO Answers'!M$15,1,0)","v":4},{"$f":"IF(AA100='TempO Answers'!N$15,1,0)+IF(AB100='TempO Answers'!O$15,1,0)+IF(AC100='TempO Answers'!P$15,1,0)+IF(AD100='TempO Answers'!Q$15,1,0)","v":4},{"$f":"IF(AF100='TempO Answers'!R$15,1,0)+IF(AG100='TempO Answers'!S$15,1,0)+IF(AH100='TempO Answers'!T$15,1,0)+IF(AI100='TempO Answers'!U$15,1,0)","v":4}]
[95,1,null,null,null,0,{"$f":"'TempO Answers'!$Y$19-F101","v":20},0,{"$f":"G101*'TempO Answers'!$N$7","v":600},9999,null,null,null,null,null,null,null,null,null,null,null,null,null,null,null,null,null,null,null,null,null,null,null,null,null,null,"",{"$f":"IF(L101='TempO Answers'!B$15,1,0)+IF(M101='TempO Answers'!C$15,1,0)+IF(N101='TempO Answers'!D$15,1,0)+IF(O101='TempO Answers'!E$15,1,0)","v":4},{"$f":"IF(Q101='TempO Answers'!F$15,1,0)+IF(R101='TempO Answers'!G$15,1,0)+IF(S101='TempO Answers'!H$15,1,0)+IF(T101='TempO Answers'!I$15,1,0)","v":4},{"$f":"IF(V101='TempO Answers'!J$15,1,0)+IF(W101='TempO Answers'!K$15,1,0)+IF(X101='TempO Answers'!L$15,1,0)+IF(Y101='TempO Answers'!M$15,1,0)","v":4},{"$f":"IF(AA101='TempO Answers'!N$15,1,0)+IF(AB101='TempO Answers'!O$15,1,0)+IF(AC101='TempO Answers'!P$15,1,0)+IF(AD101='TempO Answers'!Q$15,1,0)","v":4},{"$f":"IF(AF101='TempO Answers'!R$15,1,0)+IF(AG101='TempO Answers'!S$15,1,0)+IF(AH101='TempO Answers'!T$15,1,0)+IF(AI101='TempO Answers'!U$15,1,0)","v":4}]
[96,1,null,null,null,0,{"$f":"'TempO Answers'!$Y$19-F102","v":20},0,{"$f":"G102*'TempO Answers'!$N$7","v":600},9999,null,null,null,null,null,null,null,null,null,null,null,null,null,null,null,null,null,null,null,null,null,null,null,null,null,null,"",{"$f":"IF(L102='TempO Answers'!B$15,1,0)+IF(M102='TempO Answers'!C$15,1,0)+IF(N102='TempO Answers'!D$15,1,0)+IF(O102='TempO Answers'!E$15,1,0)","v":4},{"$f":"IF(Q102='TempO Answers'!F$15,1,0)+IF(R102='TempO Answers'!G$15,1,0)+IF(S102='TempO Answers'!H$15,1,0)+IF(T102='TempO Answers'!I$15,1,0)","v":4},{"$f":"IF(V102='TempO Answers'!J$15,1,0)+IF(W102='TempO Answers'!K$15,1,0)+IF(X102='TempO Answers'!L$15,1,0)+IF(Y102='TempO Answers'!M$15,1,0)","v":4},{"$f":"IF(AA102='TempO Answers'!N$15,1,0)+IF(AB102='TempO Answers'!O$15,1,0)+IF(AC102='TempO Answers'!P$15,1,0)+IF(AD102='TempO Answers'!Q$15,1,0)","v":4},{"$f":"IF(AF102='TempO Answers'!R$15,1,0)+IF(AG102='TempO Answers'!S$15,1,0)+IF(AH102='TempO Answers'!T$15,1,0)+IF(AI102='TempO Answers'!U$15,1,0)","v":4}]
[97,1,null,null,null,0,{"$f":"'TempO Answers'!$Y$19-F103","v":20},0,{"$f":"G103*'TempO Answers'!$N$7","v":600},{"$f":"IF(H103<0.1,9999,H103+I103)","v":9999},null,null,null,null,null,null,null,null,null,null,null,null,null,null,null,null,null,null,null,null,null,null,null,null,null,null,"",{"$f":"IF(L103='TempO Answers'!B$15,1,0)+IF(M103='TempO Answers'!C$15,1,0)+IF(N103='TempO Answers'!D$15,1,0)+IF(O103='TempO Answers'!E$15,1,0)","v":4},{"$f":"IF(Q103='TempO Answers'!F$15,1,0)+IF(R103='TempO Answers'!G$15,1,0)+IF(S103='TempO Answers'!H$15,1,0)+IF(T103='TempO Answers'!I$15,1,0)","v":4},{"$f":"IF(V103='TempO Answers'!J$15,1,0)+IF(W103='TempO Answers'!K$15,1,0)+IF(X103='TempO Answers'!L$15,1,0)+IF(Y103='TempO Answers'!M$15,1,0)","v":4},{"$f":"IF(AA103='TempO Answers'!N$15,1,0)+IF(AB103='TempO Answers'!O$15,1,0)+IF(AC103='TempO Answers'!P$15,1,0)+IF(AD103='TempO Answers'!Q$15,1,0)","v":4},{"$f":"IF(AF103='TempO Answers'!R$15,1,0)+IF(AG103='TempO Answers'!S$15,1,0)+IF(AH103='TempO Answers'!T$15,1,0)+IF(AI103='TempO Answers'!U$15,1,0)","v":4}]
[98,1,null,null,null,0,{"$f":"'TempO Answers'!$Y$19-F104","v":20},0,{"$f":"G104*'TempO Answers'!$N$7","v":600},9999,null,null,null,null,null,null,null,null,null,null,null,null,null,null,null,null,null,null,null,null,null,null,null,null,null,null,"",{"$f":"IF(L104='TempO Answers'!B$15,1,0)+IF(M104='TempO Answers'!C$15,1,0)+IF(N104='TempO Answers'!D$15,1,0)+IF(O104='TempO Answers'!E$15,1,0)","v":4},{"$f":"IF(Q104='TempO Answers'!F$15,1,0)+IF(R104='TempO Answers'!G$15,1,0)+IF(S104='TempO Answers'!H$15,1,0)+IF(T104='TempO Answers'!I$15,1,0)","v":4},{"$f":"IF(V104='TempO Answers'!J$15,1,0)+IF(W104='TempO Answers'!K$15,1,0)+IF(X104='TempO Answers'!L$15,1,0)+IF(Y104='TempO Answers'!M$15,1,0)","v":4},{"$f":"IF(AA104='TempO Answers'!N$15,1,0)+IF(AB104='TempO Answers'!O$15,1,0)+IF(AC104='TempO Answers'!P$15,1,0)+IF(AD104='TempO Answers'!Q$15,1,0)","v":4},{"$f":"IF(AF104='TempO Answers'!R$15,1,0)+IF(AG104='TempO Answers'!S$15,1,0)+IF(AH104='TempO Answers'!T$15,1,0)+IF(AI104='TempO Answers'!U$15,1,0)","v":4}]
[99,1,null,null,null,0,{"$f":"'TempO Answers'!$Y$19-F105","v":20},0,{"$f":"G105*'TempO Answers'!$N$7","v":600},9999,null,null,null,null,null,null,null,null,null,null,null,null,null,null,null,null,null,null,null,null,null,null,null,null,null,null,"",{"$f":"IF(L105='TempO Answers'!B$15,1,0)+IF(M105='TempO Answers'!C$15,1,0)+IF(N105='TempO Answers'!D$15,1,0)+IF(O105='TempO Answers'!E$15,1,0)","v":4},{"$f":"IF(Q105='TempO Answers'!F$15,1,0)+IF(R105='TempO Answers'!G$15,1,0)+IF(S105='TempO Answers'!H$15,1,0)+IF(T105='TempO Answers'!I$15,1,0)","v":4},{"$f":"IF(V105='TempO Answers'!J$15,1,0)+IF(W105='TempO Answers'!K$15,1,0)+IF(X105='TempO Answers'!L$15,1,0)+IF(Y105='TempO Answers'!M$15,1,0)","v":4},{"$f":"IF(AA105='TempO Answers'!N$15,1,0)+IF(AB105='TempO Answers'!O$15,1,0)+IF(AC105='TempO Answers'!P$15,1,0)+IF(AD105='TempO Answers'!Q$15,1,0)","v":4},{"$f":"IF(AF105='TempO Answers'!R$15,1,0)+IF(AG105='TempO Answers'!S$15,1,0)+IF(AH105='TempO Answers'!T$15,1,0)+IF(AI105='TempO Answers'!U$15,1,0)","v":4}]
[100,{"$f":"RANK(J106,$J$7:$J$138,1)","v":1},null,null,null,{"$f":"IF(H106<0.5,0,SUM(AL106:AP106))","v":0},{"$f":"'TempO Answers'!$Y$19-F106","v":20},{"$f":"SUM(AJ106,AE106,Z106,U106,P106)","v":0},{"$f":"G106*'TempO Answers'!$N$7","v":600},{"$f":"IF(H106<0.1,9999,H106+I106)","v":9999},null,null,null,null,null,null,null,null,null,null,null,null,null,null,null,null,null,null,null,null,null,null,null,null,null,null,{"$f":"IF(AND(H106>0.1,OR(P106<0.1,U106<0.1,Z106<0.1,AE106<0.1,AJ106<0.1)),\"  Warning:  Station times incomplete\",IF(ISNA(HLOOKUP(\"X\",L106:AI106,1,FALSE)),\"\",\"  Error: X answer is not allowed \"))","v":""},{"$f":"IF(L106='TempO Answers'!B$15,1,0)+IF(M106='TempO Answers'!C$15,1,0)+IF(N106='TempO Answers'!D$15,1,0)+IF(O106='TempO Answers'!E$15,1,0)","v":4},{"$f":"IF(Q106='TempO Answers'!F$15,1,0)+IF(R106='TempO Answers'!G$15,1,0)+IF(S106='TempO Answers'!H$15,1,0)+IF(T106='TempO Answers'!I$15,1,0)","v":4},{"$f":"IF(V106='TempO Answers'!J$15,1,0)+IF(W106='TempO Answers'!K$15,1,0)+IF(X106='TempO Answers'!L$15,1,0)+IF(Y106='TempO Answers'!M$15,1,0)","v":4},{"$f":"IF(AA106='TempO Answers'!N$15,1,0)+IF(AB106='TempO Answers'!O$15,1,0)+IF(AC106='TempO Answers'!P$15,1,0)+IF(AD106='TempO Answers'!Q$15,1,0)","v":4},{"$f":"IF(AF106='TempO Answers'!R$15,1,0)+IF(AG106='TempO Answers'!S$15,1,0)+IF(AH106='TempO Answers'!T$15,1,0)+IF(AI106='TempO Answers'!U$15,1,0)","v":4}]
[101,1,null,null,null,0,{"$f":"'TempO Answers'!$Y$19-F107","v":20},0,{"$f":"G107*'TempO Answers'!$N$7","v":600},9999,null,null,null,null,null,null,null,null,null,null,null,null,null,null,null,null,null,null,null,null,null,null,null,null,null,null,"",{"$f":"IF(L107='TempO Answers'!B$15,1,0)+IF(M107='TempO Answers'!C$15,1,0)+IF(N107='TempO Answers'!D$15,1,0)+IF(O107='TempO Answers'!E$15,1,0)","v":4},{"$f":"IF(Q107='TempO Answers'!F$15,1,0)+IF(R107='TempO Answers'!G$15,1,0)+IF(S107='TempO Answers'!H$15,1,0)+IF(T107='TempO Answers'!I$15,1,0)","v":4},{"$f":"IF(V107='TempO Answers'!J$15,1,0)+IF(W107='TempO Answers'!K$15,1,0)+IF(X107='TempO Answers'!L$15,1,0)+IF(Y107='TempO Answers'!M$15,1,0)","v":4},{"$f":"IF(AA107='TempO Answers'!N$15,1,0)+IF(AB107='TempO Answers'!O$15,1,0)+IF(AC107='TempO Answers'!P$15,1,0)+IF(AD107='TempO Answers'!Q$15,1,0)","v":4},{"$f":"IF(AF107='TempO Answers'!R$15,1,0)+IF(AG107='TempO Answers'!S$15,1,0)+IF(AH107='TempO Answers'!T$15,1,0)+IF(AI107='TempO Answers'!U$15,1,0)","v":4}]
[102,1,null,null,null,0,{"$f":"'TempO Answers'!$Y$19-F108","v":20},0,{"$f":"G108*'TempO Answers'!$N$7","v":600},9999,null,null,null,null,null,null,null,null,null,null,null,null,null,null,null,null,null,null,null,null,null,null,null,null,null,null,"",{"$f":"IF(L108='TempO Answers'!B$15,1,0)+IF(M108='TempO Answers'!C$15,1,0)+IF(N108='TempO Answers'!D$15,1,0)+IF(O108='TempO Answers'!E$15,1,0)","v":4},{"$f":"IF(Q108='TempO Answers'!F$15,1,0)+IF(R108='TempO Answers'!G$15,1,0)+IF(S108='TempO Answers'!H$15,1,0)+IF(T108='TempO Answers'!I$15,1,0)","v":4},{"$f":"IF(V108='TempO Answers'!J$15,1,0)+IF(W108='TempO Answers'!K$15,1,0)+IF(X108='TempO Answers'!L$15,1,0)+IF(Y108='TempO Answers'!M$15,1,0)","v":4},{"$f":"IF(AA108='TempO Answers'!N$15,1,0)+IF(AB108='TempO Answers'!O$15,1,0)+IF(AC108='TempO Answers'!P$15,1,0)+IF(AD108='TempO Answers'!Q$15,1,0)","v":4},{"$f":"IF(AF108='TempO Answers'!R$15,1,0)+IF(AG108='TempO Answers'!S$15,1,0)+IF(AH108='TempO Answers'!T$15,1,0)+IF(AI108='TempO Answers'!U$15,1,0)","v":4}]
[103,1,null,null,null,0,{"$f":"'TempO Answers'!$Y$19-F109","v":20},0,{"$f":"G109*'TempO Answers'!$N$7","v":600},9999,null,null,null,null,null,null,null,null,null,null,null,null,null,null,null,null,null,null,null,null,null,null,null,null,null,null,"",{"$f":"IF(L109='TempO Answers'!B$15,1,0)+IF(M109='TempO Answers'!C$15,1,0)+IF(N109='TempO Answers'!D$15,1,0)+IF(O109='TempO Answers'!E$15,1,0)","v":4},{"$f":"IF(Q109='TempO Answers'!F$15,1,0)+IF(R109='TempO Answers'!G$15,1,0)+IF(S109='TempO Answers'!H$15,1,0)+IF(T109='TempO Answers'!I$15,1,0)","v":4},{"$f":"IF(V109='TempO Answers'!J$15,1,0)+IF(W109='TempO Answers'!K$15,1,0)+IF(X109='TempO Answers'!L$15,1,0)+IF(Y109='TempO Answers'!M$15,1,0)","v":4},{"$f":"IF(AA109='TempO Answers'!N$15,1,0)+IF(AB109='TempO Answers'!O$15,1,0)+IF(AC109='TempO Answers'!P$15,1,0)+IF(AD109='TempO Answers'!Q$15,1,0)","v":4},{"$f":"IF(AF109='TempO Answers'!R$15,1,0)+IF(AG109='TempO Answers'!S$15,1,0)+IF(AH109='TempO Answers'!T$15,1,0)+IF(AI109='TempO Answers'!U$15,1,0)","v":4}]
[104,1,null,null,null,0,{"$f":"'TempO Answers'!$Y$19-F110","v":20},0,{"$f":"G110*'TempO Answers'!$N$7","v":600},9999,null,null,null,null,null,null,null,null,null,null,null,null,null,null,null,null,null,null,null,null,null,null,null,null,null,null,"",{"$f":"IF(L110='TempO Answers'!B$15,1,0)+IF(M110='TempO Answers'!C$15,1,0)+IF(N110='TempO Answers'!D$15,1,0)+IF(O110='TempO Answers'!E$15,1,0)","v":4},{"$f":"IF(Q110='TempO Answers'!F$15,1,0)+IF(R110='TempO Answers'!G$15,1,0)+IF(S110='TempO Answers'!H$15,1,0)+IF(T110='TempO Answers'!I$15,1,0)","v":4},{"$f":"IF(V110='TempO Answers'!J$15,1,0)+IF(W110='TempO Answers'!K$15,1,0)+IF(X110='TempO Answers'!L$15,1,0)+IF(Y110='TempO Answers'!M$15,1,0)","v":4},{"$f":"IF(AA110='TempO Answers'!N$15,1,0)+IF(AB110='TempO Answers'!O$15,1,0)+IF(AC110='TempO Answers'!P$15,1,0)+IF(AD110='TempO Answers'!Q$15,1,0)","v":4},{"$f":"IF(AF110='TempO Answers'!R$15,1,0)+IF(AG110='TempO Answers'!S$15,1,0)+IF(AH110='TempO Answers'!T$15,1,0)+IF(AI110='TempO Answers'!U$15,1,0)","v":4}]
[105,1,null,null,null,0,{"$f":"'TempO Answers'!$Y$19-F111","v":20},0,{"$f":"G111*'TempO Answers'!$N$7","v":600},9999,null,null,null,null,null,null,null,null,null,null,null,null,null,null,null,null,null,null,null,null,null,null,null,null,null,null,"",{"$f":"IF(L111='TempO Answers'!B$15,1,0)+IF(M111='TempO Answers'!C$15,1,0)+IF(N111='TempO Answers'!D$15,1,0)+IF(O111='TempO Answers'!E$15,1,0)","v":4},{"$f":"IF(Q111='TempO Answers'!F$15,1,0)+IF(R111='TempO Answers'!G$15,1,0)+IF(S111='TempO Answers'!H$15,1,0)+IF(T111='TempO Answers'!I$15,1,0)","v":4},{"$f":"IF(V111='TempO Answers'!J$15,1,0)+IF(W111='TempO Answers'!K$15,1,0)+IF(X111='TempO Answers'!L$15,1,0)+IF(Y111='TempO Answers'!M$15,1,0)","v":4},{"$f":"IF(AA111='TempO Answers'!N$15,1,0)+IF(AB111='TempO Answers'!O$15,1,0)+IF(AC111='TempO Answers'!P$15,1,0)+IF(AD111='TempO Answers'!Q$15,1,0)","v":4},{"$f":"IF(AF111='TempO Answers'!R$15,1,0)+IF(AG111='TempO Answers'!S$15,1,0)+IF(AH111='TempO Answers'!T$15,1,0)+IF(AI111='TempO Answers'!U$15,1,0)","v":4}]
[106,1,null,null,null,0,{"$f":"'TempO Answers'!$Y$19-F112","v":20},0,{"$f":"G112*'TempO Answers'!$N$7","v":600},9999,null,null,null,null,null,null,null,null,null,null,null,null,null,null,null,null,null,null,null,null,null,null,null,null,null,null,"",{"$f":"IF(L112='TempO Answers'!B$15,1,0)+IF(M112='TempO Answers'!C$15,1,0)+IF(N112='TempO Answers'!D$15,1,0)+IF(O112='TempO Answers'!E$15,1,0)","v":4},{"$f":"IF(Q112='TempO Answers'!F$15,1,0)+IF(R112='TempO Answers'!G$15,1,0)+IF(S112='TempO Answers'!H$15,1,0)+IF(T112='TempO Answers'!I$15,1,0)","v":4},{"$f":"IF(V112='TempO Answers'!J$15,1,0)+IF(W112='TempO Answers'!K$15,1,0)+IF(X112='TempO Answers'!L$15,1,0)+IF(Y112='TempO Answers'!M$15,1,0)","v":4},{"$f":"IF(AA112='TempO Answers'!N$15,1,0)+IF(AB112='TempO Answers'!O$15,1,0)+IF(AC112='TempO Answers'!P$15,1,0)+IF(AD112='TempO Answers'!Q$15,1,0)","v":4},{"$f":"IF(AF112='TempO Answers'!R$15,1,0)+IF(AG112='TempO Answers'!S$15,1,0)+IF(AH112='TempO Answers'!T$15,1,0)+IF(AI112='TempO Answers'!U$15,1,0)","v":4}]
[107,1,null,null,null,0,{"$f":"'TempO Answers'!$Y$19-F113","v":20},0,{"$f":"G113*'TempO Answers'!$N$7","v":600},9999,null,null,null,null,null,null,null,null,null,null,null,null,null,null,null,null,null,null,null,null,null,null,null,null,null,null,"",{"$f":"IF(L113='TempO Answers'!B$15,1,0)+IF(M113='TempO Answers'!C$15,1,0)+IF(N113='TempO Answers'!D$15,1,0)+IF(O113='TempO Answers'!E$15,1,0)","v":4},{"$f":"IF(Q113='TempO Answers'!F$15,1,0)+IF(R113='TempO Answers'!G$15,1,0)+IF(S113='TempO Answers'!H$15,1,0)+IF(T113='TempO Answers'!I$15,1,0)","v":4},{"$f":"IF(V113='TempO Answers'!J$15,1,0)+IF(W113='TempO Answers'!K$15,1,0)+IF(X113='TempO Answers'!L$15,1,0)+IF(Y113='TempO Answers'!M$15,1,0)","v":4},{"$f":"IF(AA113='TempO Answers'!N$15,1,0)+IF(AB113='TempO Answers'!O$15,1,0)+IF(AC113='TempO Answers'!P$15,1,0)+IF(AD113='TempO Answers'!Q$15,1,0)","v":4},{"$f":"IF(AF113='TempO Answers'!R$15,1,0)+IF(AG113='TempO Answers'!S$15,1,0)+IF(AH113='TempO Answers'!T$15,1,0)+IF(AI113='TempO Answers'!U$15,1,0)","v":4}]
[108,1,null,null,null,0,{"$f":"'TempO Answers'!$Y$19-F114","v":20},0,{"$f":"G114*'TempO Answers'!$N$7","v":600},9999,null,null,null,null,null,null,null,null,null,null,null,null,null,null,null,null,null,null,null,null,null,null,null,null,null,null,"",{"$f":"IF(L114='TempO Answers'!B$15,1,0)+IF(M114='TempO Answers'!C$15,1,0)+IF(N114='TempO Answers'!D$15,1,0)+IF(O114='TempO Answers'!E$15,1,0)","v":4},{"$f":"IF(Q114='TempO Answers'!F$15,1,0)+IF(R114='TempO Answers'!G$15,1,0)+IF(S114='TempO Answers'!H$15,1,0)+IF(T114='TempO Answers'!I$15,1,0)","v":4},{"$f":"IF(V114='TempO Answers'!J$15,1,0)+IF(W114='TempO Answers'!K$15,1,0)+IF(X114='TempO Answers'!L$15,1,0)+IF(Y114='TempO Answers'!M$15,1,0)","v":4},{"$f":"IF(AA114='TempO Answers'!N$15,1,0)+IF(AB114='TempO Answers'!O$15,1,0)+IF(AC114='TempO Answers'!P$15,1,0)+IF(AD114='TempO Answers'!Q$15,1,0)","v":4},{"$f":"IF(AF114='TempO Answers'!R$15,1,0)+IF(AG114='TempO Answers'!S$15,1,0)+IF(AH114='TempO Answers'!T$15,1,0)+IF(AI114='TempO Answers'!U$15,1,0)","v":4}]
[109,1,null,null,null,0,{"$f":"'TempO Answers'!$Y$19-F115","v":20},0,{"$f":"G115*'TempO Answers'!$N$7","v":600},9999,null,null,null,null,null,null,null,null,null,null,null,null,null,null,null,null,null,null,null,null,null,null,null,null,null,null,"",{"$f":"IF(L115='TempO Answers'!B$15,1,0)+IF(M115='TempO Answers'!C$15,1,0)+IF(N115='TempO Answers'!D$15,1,0)+IF(O115='TempO Answers'!E$15,1,0)","v":4},{"$f":"IF(Q115='TempO Answers'!F$15,1,0)+IF(R115='TempO Answers'!G$15,1,0)+IF(S115='TempO Answers'!H$15,1,0)+IF(T115='TempO Answers'!I$15,1,0)","v":4},{"$f":"IF(V115='TempO Answers'!J$15,1,0)+IF(W115='TempO Answers'!K$15,1,0)+IF(X115='TempO Answers'!L$15,1,0)+IF(Y115='TempO Answers'!M$15,1,0)","v":4},{"$f":"IF(AA115='TempO Answers'!N$15,1,0)+IF(AB115='TempO Answers'!O$15,1,0)+IF(AC115='TempO Answers'!P$15,1,0)+IF(AD115='TempO Answers'!Q$15,1,0)","v":4},{"$f":"IF(AF115='TempO Answers'!R$15,1,0)+IF(AG115='TempO Answers'!S$15,1,0)+IF(AH115='TempO Answers'!T$15,1,0)+IF(AI115='TempO Answers'!U$15,1,0)","v":4}]
[110,1,null,null,null,0,{"$f":"'TempO Answers'!$Y$19-F116","v":20},0,{"$f":"G116*'TempO Answers'!$N$7","v":600},9999,null,null,null,null,null,null,null,null,null,null,null,null,null,null,null,null,null,null,null,null,null,null,null,null,null,null,"",{"$f":"IF(L116='TempO Answers'!B$15,1,0)+IF(M116='TempO Answers'!C$15,1,0)+IF(N116='TempO Answers'!D$15,1,0)+IF(O116='TempO Answers'!E$15,1,0)","v":4},{"$f":"IF(Q116='TempO Answers'!F$15,1,0)+IF(R116='TempO Answers'!G$15,1,0)+IF(S116='TempO Answers'!H$15,1,0)+IF(T116='TempO Answers'!I$15,1,0)","v":4},{"$f":"IF(V116='TempO Answers'!J$15,1,0)+IF(W116='TempO Answers'!K$15,1,0)+IF(X116='TempO Answers'!L$15,1,0)+IF(Y116='TempO Answers'!M$15,1,0)","v":4},{"$f":"IF(AA116='TempO Answers'!N$15,1,0)+IF(AB116='TempO Answers'!O$15,1,0)+IF(AC116='TempO Answers'!P$15,1,0)+IF(AD116='TempO Answers'!Q$15,1,0)","v":4},{"$f":"IF(AF116='TempO Answers'!R$15,1,0)+IF(AG116='TempO Answers'!S$15,1,0)+IF(AH116='TempO Answers'!T$15,1,0)+IF(AI116='TempO Answers'!U$15,1,0)","v":4}]
[111,1,null,null,null,0,{"$f":"'TempO Answers'!$Y$19-F117","v":20},0,{"$f":"G117*'TempO Answers'!$N$7","v":600},9999,null,null,null,null,null,null,null,null,null,null,null,null,null,null,null,null,null,null,null,null,null,null,null,null,null,null,"",{"$f":"IF(L117='TempO Answers'!B$15,1,0)+IF(M117='TempO Answers'!C$15,1,0)+IF(N117='TempO Answers'!D$15,1,0)+IF(O117='TempO Answers'!E$15,1,0)","v":4},{"$f":"IF(Q117='TempO Answers'!F$15,1,0)+IF(R117='TempO Answers'!G$15,1,0)+IF(S117='TempO Answers'!H$15,1,0)+IF(T117='TempO Answers'!I$15,1,0)","v":4},{"$f":"IF(V117='TempO Answers'!J$15,1,0)+IF(W117='TempO Answers'!K$15,1,0)+IF(X117='TempO Answers'!L$15,1,0)+IF(Y117='TempO Answers'!M$15,1,0)","v":4},{"$f":"IF(AA117='TempO Answers'!N$15,1,0)+IF(AB117='TempO Answers'!O$15,1,0)+IF(AC117='TempO Answers'!P$15,1,0)+IF(AD117='TempO Answers'!Q$15,1,0)","v":4},{"$f":"IF(AF117='TempO Answers'!R$15,1,0)+IF(AG117='TempO Answers'!S$15,1,0)+IF(AH117='TempO Answers'!T$15,1,0)+IF(AI117='TempO Answers'!U$15,1,0)","v":4}]
[112,1,null,null,null,0,{"$f":"'TempO Answers'!$Y$19-F118","v":20},0,{"$f":"G118*'TempO Answers'!$N$7","v":600},9999,null,null,null,null,null,null,null,null,null,null,null,null,null,null,null,null,null,null,null,null,null,null,null,null,null,null,"",{"$f":"IF(L118='TempO Answers'!B$15,1,0)+IF(M118='TempO Answers'!C$15,1,0)+IF(N118='TempO Answers'!D$15,1,0)+IF(O118='TempO Answers'!E$15,1,0)","v":4},{"$f":"IF(Q118='TempO Answers'!F$15,1,0)+IF(R118='TempO Answers'!G$15,1,0)+IF(S118='TempO Answers'!H$15,1,0)+IF(T118='TempO Answers'!I$15,1,0)","v":4},{"$f":"IF(V118='TempO Answers'!J$15,1,0)+IF(W118='TempO Answers'!K$15,1,0)+IF(X118='TempO Answers'!L$15,1,0)+IF(Y118='TempO Answers'!M$15,1,0)","v":4},{"$f":"IF(AA118='TempO Answers'!N$15,1,0)+IF(AB118='TempO Answers'!O$15,1,0)+IF(AC118='TempO Answers'!P$15,1,0)+IF(AD118='TempO Answers'!Q$15,1,0)","v":4},{"$f":"IF(AF118='TempO Answers'!R$15,1,0)+IF(AG118='TempO Answers'!S$15,1,0)+IF(AH118='TempO Answers'!T$15,1,0)+IF(AI118='TempO Answers'!U$15,1,0)","v":4}]
[113,1,null,null,null,0,{"$f":"'TempO Answers'!$Y$19-F119","v":20},0,{"$f":"G119*'TempO Answers'!$N$7","v":600},9999,null,null,null,null,null,null,null,null,null,null,null,null,null,null,null,null,null,null,null,null,null,null,null,null,null,null,"",{"$f":"IF(L119='TempO Answers'!B$15,1,0)+IF(M119='TempO Answers'!C$15,1,0)+IF(N119='TempO Answers'!D$15,1,0)+IF(O119='TempO Answers'!E$15,1,0)","v":4},{"$f":"IF(Q119='TempO Answers'!F$15,1,0)+IF(R119='TempO Answers'!G$15,1,0)+IF(S119='TempO Answers'!H$15,1,0)+IF(T119='TempO Answers'!I$15,1,0)","v":4},{"$f":"IF(V119='TempO Answers'!J$15,1,0)+IF(W119='TempO Answers'!K$15,1,0)+IF(X119='TempO Answers'!L$15,1,0)+IF(Y119='TempO Answers'!M$15,1,0)","v":4},{"$f":"IF(AA119='TempO Answers'!N$15,1,0)+IF(AB119='TempO Answers'!O$15,1,0)+IF(AC119='TempO Answers'!P$15,1,0)+IF(AD119='TempO Answers'!Q$15,1,0)","v":4},{"$f":"IF(AF119='TempO Answers'!R$15,1,0)+IF(AG119='TempO Answers'!S$15,1,0)+IF(AH119='TempO Answers'!T$15,1,0)+IF(AI119='TempO Answers'!U$15,1,0)","v":4}]
[114,1,null,null,null,0,{"$f":"'TempO Answers'!$Y$19-F120","v":20},0,{"$f":"G120*'TempO Answers'!$N$7","v":600},9999,null,null,null,null,null,null,null,null,null,null,null,null,null,null,null,null,null,null,null,null,null,null,null,null,null,null,"",{"$f":"IF(L120='TempO Answers'!B$15,1,0)+IF(M120='TempO Answers'!C$15,1,0)+IF(N120='TempO Answers'!D$15,1,0)+IF(O120='TempO Answers'!E$15,1,0)","v":4},{"$f":"IF(Q120='TempO Answers'!F$15,1,0)+IF(R120='TempO Answers'!G$15,1,0)+IF(S120='TempO Answers'!H$15,1,0)+IF(T120='TempO Answers'!I$15,1,0)","v":4},{"$f":"IF(V120='TempO Answers'!J$15,1,0)+IF(W120='TempO Answers'!K$15,1,0)+IF(X120='TempO Answers'!L$15,1,0)+IF(Y120='TempO Answers'!M$15,1,0)","v":4},{"$f":"IF(AA120='TempO Answers'!N$15,1,0)+IF(AB120='TempO Answers'!O$15,1,0)+IF(AC120='TempO Answers'!P$15,1,0)+IF(AD120='TempO Answers'!Q$15,1,0)","v":4},{"$f":"IF(AF120='TempO Answers'!R$15,1,0)+IF(AG120='TempO Answers'!S$15,1,0)+IF(AH120='TempO Answers'!T$15,1,0)+IF(AI120='TempO Answers'!U$15,1,0)","v":4}]
[115,1,null,null,null,0,{"$f":"'TempO Answers'!$Y$19-F121","v":20},0,{"$f":"G121*'TempO Answers'!$N$7","v":600},9999,null,null,null,null,null,null,null,null,null,null,null,null,null,null,null,null,null,null,null,null,null,null,null,null,null,null,"",{"$f":"IF(L121='TempO Answers'!B$15,1,0)+IF(M121='TempO Answers'!C$15,1,0)+IF(N121='TempO Answers'!D$15,1,0)+IF(O121='TempO Answers'!E$15,1,0)","v":4},{"$f":"IF(Q121='TempO Answers'!F$15,1,0)+IF(R121='TempO Answers'!G$15,1,0)+IF(S121='TempO Answers'!H$15,1,0)+IF(T121='TempO Answers'!I$15,1,0)","v":4},{"$f":"IF(V121='TempO Answers'!J$15,1,0)+IF(W121='TempO Answers'!K$15,1,0)+IF(X121='TempO Answers'!L$15,1,0)+IF(Y121='TempO Answers'!M$15,1,0)","v":4},{"$f":"IF(AA121='TempO Answers'!N$15,1,0)+IF(AB121='TempO Answers'!O$15,1,0)+IF(AC121='TempO Answers'!P$15,1,0)+IF(AD121='TempO Answers'!Q$15,1,0)","v":4},{"$f":"IF(AF121='TempO Answers'!R$15,1,0)+IF(AG121='TempO Answers'!S$15,1,0)+IF(AH121='TempO Answers'!T$15,1,0)+IF(AI121='TempO Answers'!U$15,1,0)","v":4}]
[116,1,null,null,null,0,{"$f":"'TempO Answers'!$Y$19-F122","v":20},0,{"$f":"G122*'TempO Answers'!$N$7","v":600},9999,null,null,null,null,null,null,null,null,null,null,null,null,null,null,null,null,null,null,null,null,null,null,null,null,null,null,"",{"$f":"IF(L122='TempO Answers'!B$15,1,0)+IF(M122='TempO Answers'!C$15,1,0)+IF(N122='TempO Answers'!D$15,1,0)+IF(O122='TempO Answers'!E$15,1,0)","v":4},{"$f":"IF(Q122='TempO Answers'!F$15,1,0)+IF(R122='TempO Answers'!G$15,1,0)+IF(S122='TempO Answers'!H$15,1,0)+IF(T122='TempO Answers'!I$15,1,0)","v":4},{"$f":"IF(V122='TempO Answers'!J$15,1,0)+IF(W122='TempO Answers'!K$15,1,0)+IF(X122='TempO Answers'!L$15,1,0)+IF(Y122='TempO Answers'!M$15,1,0)","v":4},{"$f":"IF(AA122='TempO Answers'!N$15,1,0)+IF(AB122='TempO Answers'!O$15,1,0)+IF(AC122='TempO Answers'!P$15,1,0)+IF(AD122='TempO Answers'!Q$15,1,0)","v":4},{"$f":"IF(AF122='TempO Answers'!R$15,1,0)+IF(AG122='TempO Answers'!S$15,1,0)+IF(AH122='TempO Answers'!T$15,1,0)+IF(AI122='TempO Answers'!U$15,1,0)","v":4}]
[117,1,null,null,null,0,{"$f":"'TempO Answers'!$Y$19-F123","v":20},0,{"$f":"G123*'TempO Answers'!$N$7","v":600},9999,null,null,null,null,null,null,null,null,null,null,null,null,null,null,null,null,null,null,null,null,null,null,null,null,null,null,"",{"$f":"IF(L123='TempO Answers'!B$15,1,0)+IF(M123='TempO Answers'!C$15,1,0)+IF(N123='TempO Answers'!D$15,1,0)+IF(O123='TempO Answers'!E$15,1,0)","v":4},{"$f":"IF(Q123='TempO Answers'!F$15,1,0)+IF(R123='TempO Answers'!G$15,1,0)+IF(S123='TempO Answers'!H$15,1,0)+IF(T123='TempO Answers'!I$15,1,0)","v":4},{"$f":"IF(V123='TempO Answers'!J$15,1,0)+IF(W123='TempO Answers'!K$15,1,0)+IF(X123='TempO Answers'!L$15,1,0)+IF(Y123='TempO Answers'!M$15,1,0)","v":4},{"$f":"IF(AA123='TempO Answers'!N$15,1,0)+IF(AB123='TempO Answers'!O$15,1,0)+IF(AC123='TempO Answers'!P$15,1,0)+IF(AD123='TempO Answers'!Q$15,1,0)","v":4},{"$f":"IF(AF123='TempO Answers'!R$15,1,0)+IF(AG123='TempO Answers'!S$15,1,0)+IF(AH123='TempO Answers'!T$15,1,0)+IF(AI123='TempO Answers'!U$15,1,0)","v":4}]
[118,1,null,null,null,0,{"$f":"'TempO Answers'!$Y$19-F124","v":20},0,{"$f":"G124*'TempO Answers'!$N$7","v":600},9999,null,null,null,null,null,null,null,null,null,null,null,null,null,null,null,null,null,null,null,null,null,null,null,null,null,null,"",{"$f":"IF(L124='TempO Answers'!B$15,1,0)+IF(M124='TempO Answers'!C$15,1,0)+IF(N124='TempO Answers'!D$15,1,0)+IF(O124='TempO Answers'!E$15,1,0)","v":4},{"$f":"IF(Q124='TempO Answers'!F$15,1,0)+IF(R124='TempO Answers'!G$15,1,0)+IF(S124='TempO Answers'!H$15,1,0)+IF(T124='TempO Answers'!I$15,1,0)","v":4},{"$f":"IF(V124='TempO Answers'!J$15,1,0)+IF(W124='TempO Answers'!K$15,1,0)+IF(X124='TempO Answers'!L$15,1,0)+IF(Y124='TempO Answers'!M$15,1,0)","v":4},{"$f":"IF(AA124='TempO Answers'!N$15,1,0)+IF(AB124='TempO Answers'!O$15,1,0)+IF(AC124='TempO Answers'!P$15,1,0)+IF(AD124='TempO Answers'!Q$15,1,0)","v":4},{"$f":"IF(AF124='TempO Answers'!R$15,1,0)+IF(AG124='TempO Answers'!S$15,1,0)+IF(AH124='TempO Answers'!T$15,1,0)+IF(AI124='TempO Answers'!U$15,1,0)","v":4}]
[119,1,null,null,null,0,{"$f":"'TempO Answers'!$Y$19-F125","v":20},0,{"$f":"G125*'TempO Answers'!$N$7","v":600},9999,null,null,null,null,null,null,null,null,null,null,null,null,null,null,null,null,null,null,null,null,null,null,null,null,null,null,"",{"$f":"IF(L125='TempO Answers'!B$15,1,0)+IF(M125='TempO Answers'!C$15,1,0)+IF(N125='TempO Answers'!D$15,1,0)+IF(O125='TempO Answers'!E$15,1,0)","v":4},{"$f":"IF(Q125='TempO Answers'!F$15,1,0)+IF(R125='TempO Answers'!G$15,1,0)+IF(S125='TempO Answers'!H$15,1,0)+IF(T125='TempO Answers'!I$15,1,0)","v":4},{"$f":"IF(V125='TempO Answers'!J$15,1,0)+IF(W125='TempO Answers'!K$15,1,0)+IF(X125='TempO Answers'!L$15,1,0)+IF(Y125='TempO Answers'!M$15,1,0)","v":4},{"$f":"IF(AA125='TempO Answers'!N$15,1,0)+IF(AB125='TempO Answers'!O$15,1,0)+IF(AC125='TempO Answers'!P$15,1,0)+IF(AD125='TempO Answers'!Q$15,1,0)","v":4},{"$f":"IF(AF125='TempO Answers'!R$15,1,0)+IF(AG125='TempO Answers'!S$15,1,0)+IF(AH125='TempO Answers'!T$15,1,0)+IF(AI125='TempO Answers'!U$15,1,0)","v":4}]
[120,1,null,null,null,0,{"$f":"'TempO Answers'!$Y$19-F126","v":20},0,{"$f":"G126*'TempO Answers'!$N$7","v":600},9999,null,null,null,null,null,null,null,null,null,null,null,null,null,null,null,null,null,null,null,null,null,null,null,null,null,null,"",{"$f":"IF(L126='TempO Answers'!B$15,1,0)+IF(M126='TempO Answers'!C$15,1,0)+IF(N126='TempO Answers'!D$15,1,0)+IF(O126='TempO Answers'!E$15,1,0)","v":4},{"$f":"IF(Q126='TempO Answers'!F$15,1,0)+IF(R126='TempO Answers'!G$15,1,0)+IF(S126='TempO Answers'!H$15,1,0)+IF(T126='TempO Answers'!I$15,1,0)","v":4},{"$f":"IF(V126='TempO Answers'!J$15,1,0)+IF(W126='TempO Answers'!K$15,1,0)+IF(X126='TempO Answers'!L$15,1,0)+IF(Y126='TempO Answers'!M$15,1,0)","v":4},{"$f":"IF(AA126='TempO Answers'!N$15,1,0)+IF(AB126='TempO Answers'!O$15,1,0)+IF(AC126='TempO Answers'!P$15,1,0)+IF(AD126='TempO Answers'!Q$15,1,0)","v":4},{"$f":"IF(AF126='TempO Answers'!R$15,1,0)+IF(AG126='TempO Answers'!S$15,1,0)+IF(AH126='TempO Answers'!T$15,1,0)+IF(AI126='TempO Answers'!U$15,1,0)","v":4}]
[121,1,null,null,null,0,{"$f":"'TempO Answers'!$Y$19-F127","v":20},0,{"$f":"G127*'TempO Answers'!$N$7","v":600},9999,null,null,null,null,null,null,null,null,null,null,null,null,null,null,null,null,null,null,null,null,null,null,null,null,null,null,"",{"$f":"IF(L127='TempO Answers'!B$15,1,0)+IF(M127='TempO Answers'!C$15,1,0)+IF(N127='TempO Answers'!D$15,1,0)+IF(O127='TempO Answers'!E$15,1,0)","v":4},{"$f":"IF(Q127='TempO Answers'!F$15,1,0)+IF(R127='TempO Answers'!G$15,1,0)+IF(S127='TempO Answers'!H$15,1,0)+IF(T127='TempO Answers'!I$15,1,0)","v":4},{"$f":"IF(V127='TempO Answers'!J$15,1,0)+IF(W127='TempO Answers'!K$15,1,0)+IF(X127='TempO Answers'!L$15,1,0)+IF(Y127='TempO Answers'!M$15,1,0)","v":4},{"$f":"IF(AA127='TempO Answers'!N$15,1,0)+IF(AB127='TempO Answers'!O$15,1,0)+IF(AC127='TempO Answers'!P$15,1,0)+IF(AD127='TempO Answers'!Q$15,1,0)","v":4},{"$f":"IF(AF127='TempO Answers'!R$15,1,0)+IF(AG127='TempO Answers'!S$15,1,0)+IF(AH127='TempO Answers'!T$15,1,0)+IF(AI127='TempO Answers'!U$15,1,0)","v":4}]
[122,1,null,null,null,0,{"$f":"'TempO Answers'!$Y$19-F128","v":20},0,{"$f":"G128*'TempO Answers'!$N$7","v":600},9999,null,null,null,null,null,null,null,null,null,null,null,null,null,null,null,null,null,null,null,null,null,null,null,null,null,null,"",{"$f":"IF(L128='TempO Answers'!B$15,1,0)+IF(M128='TempO Answers'!C$15,1,0)+IF(N128='TempO Answers'!D$15,1,0)+IF(O128='TempO Answers'!E$15,1,0)","v":4},{"$f":"IF(Q128='TempO Answers'!F$15,1,0)+IF(R128='TempO Answers'!G$15,1,0)+IF(S128='TempO Answers'!H$15,1,0)+IF(T128='TempO Answers'!I$15,1,0)","v":4},{"$f":"IF(V128='TempO Answers'!J$15,1,0)+IF(W128='TempO Answers'!K$15,1,0)+IF(X128='TempO Answers'!L$15,1,0)+IF(Y128='TempO Answers'!M$15,1,0)","v":4},{"$f":"IF(AA128='TempO Answers'!N$15,1,0)+IF(AB128='TempO Answers'!O$15,1,0)+IF(AC128='TempO Answers'!P$15,1,0)+IF(AD128='TempO Answers'!Q$15,1,0)","v":4},{"$f":"IF(AF128='TempO Answers'!R$15,1,0)+IF(AG128='TempO Answers'!S$15,1,0)+IF(AH128='TempO Answers'!T$15,1,0)+IF(AI128='TempO Answers'!U$15,1,0)","v":4}]
[123,1,null,null,null,0,{"$f":"'TempO Answers'!$Y$19-F129","v":20},0,{"$f":"G129*'TempO Answers'!$N$7","v":600},9999,null,null,null,null,null,null,null,null,null,null,null,null,null,null,null,null,null,null,null,null,null,null,null,null,null,null,"",{"$f":"IF(L129='TempO Answers'!B$15,1,0)+IF(M129='TempO Answers'!C$15,1,0)+IF(N129='TempO Answers'!D$15,1,0)+IF(O129='TempO Answers'!E$15,1,0)","v":4},{"$f":"IF(Q129='TempO Answers'!F$15,1,0)+IF(R129='TempO Answers'!G$15,1,0)+IF(S129='TempO Answers'!H$15,1,0)+IF(T129='TempO Answers'!I$15,1,0)","v":4},{"$f":"IF(V129='TempO Answers'!J$15,1,0)+IF(W129='TempO Answers'!K$15,1,0)+IF(X129='TempO Answers'!L$15,1,0)+IF(Y129='TempO Answers'!M$15,1,0)","v":4},{"$f":"IF(AA129='TempO Answers'!N$15,1,0)+IF(AB129='TempO Answers'!O$15,1,0)+IF(AC129='TempO Answers'!P$15,1,0)+IF(AD129='TempO Answers'!Q$15,1,0)","v":4},{"$f":"IF(AF129='TempO Answers'!R$15,1,0)+IF(AG129='TempO Answers'!S$15,1,0)+IF(AH129='TempO Answers'!T$15,1,0)+IF(AI129='TempO Answers'!U$15,1,0)","v":4}]
[124,1,null,null,null,0,{"$f":"'TempO Answers'!$Y$19-F130","v":20},0,{"$f":"G130*'TempO Answers'!$N$7","v":600},9999,null,null,null,null,null,null,null,null,null,null,null,null,null,null,null,null,null,null,null,null,null,null,null,null,null,null,"",{"$f":"IF(L130='TempO Answers'!B$15,1,0)+IF(M130='TempO Answers'!C$15,1,0)+IF(N130='TempO Answers'!D$15,1,0)+IF(O130='TempO Answers'!E$15,1,0)","v":4},{"$f":"IF(Q130='TempO Answers'!F$15,1,0)+IF(R130='TempO Answers'!G$15,1,0)+IF(S130='TempO Answers'!H$15,1,0)+IF(T130='TempO Answers'!I$15,1,0)","v":4},{"$f":"IF(V130='TempO Answers'!J$15,1,0)+IF(W130='TempO Answers'!K$15,1,0)+IF(X130='TempO Answers'!L$15,1,0)+IF(Y130='TempO Answers'!M$15,1,0)","v":4},{"$f":"IF(AA130='TempO Answers'!N$15,1,0)+IF(AB130='TempO Answers'!O$15,1,0)+IF(AC130='TempO Answers'!P$15,1,0)+IF(AD130='TempO Answers'!Q$15,1,0)","v":4},{"$f":"IF(AF130='TempO Answers'!R$15,1,0)+IF(AG130='TempO Answers'!S$15,1,0)+IF(AH130='TempO Answers'!T$15,1,0)+IF(AI130='TempO Answers'!U$15,1,0)","v":4}]
[125,1,null,null,null,0,{"$f":"'TempO Answers'!$Y$19-F131","v":20},0,{"$f":"G131*'TempO Answers'!$N$7","v":600},9999,null,null,null,null,null,null,null,null,null,null,null,null,null,null,null,null,null,null,null,null,null,null,null,null,null,null,"",{"$f":"IF(L131='TempO Answers'!B$15,1,0)+IF(M131='TempO Answers'!C$15,1,0)+IF(N131='TempO Answers'!D$15,1,0)+IF(O131='TempO Answers'!E$15,1,0)","v":4},{"$f":"IF(Q131='TempO Answers'!F$15,1,0)+IF(R131='TempO Answers'!G$15,1,0)+IF(S131='TempO Answers'!H$15,1,0)+IF(T131='TempO Answers'!I$15,1,0)","v":4},{"$f":"IF(V131='TempO Answers'!J$15,1,0)+IF(W131='TempO Answers'!K$15,1,0)+IF(X131='TempO Answers'!L$15,1,0)+IF(Y131='TempO Answers'!M$15,1,0)","v":4},{"$f":"IF(AA131='TempO Answers'!N$15,1,0)+IF(AB131='TempO Answers'!O$15,1,0)+IF(AC131='TempO Answers'!P$15,1,0)+IF(AD131='TempO Answers'!Q$15,1,0)","v":4},{"$f":"IF(AF131='TempO Answers'!R$15,1,0)+IF(AG131='TempO Answers'!S$15,1,0)+IF(AH131='TempO Answers'!T$15,1,0)+IF(AI131='TempO Answers'!U$15,1,0)","v":4}]
[126,1,null,null,null,0,{"$f":"'TempO Answers'!$Y$19-F132","v":20},0,{"$f":"G132*'TempO Answers'!$N$7","v":600},9999,null,null,null,null,null,null,null,null,null,null,null,null,null,null,null,null,null,null,null,null,null,null,null,null,null,null,"",{"$f":"IF(L132='TempO Answers'!B$15,1,0)+IF(M132='TempO Answers'!C$15,1,0)+IF(N132='TempO Answers'!D$15,1,0)+IF(O132='TempO Answers'!E$15,1,0)","v":4},{"$f":"IF(Q132='TempO Answers'!F$15,1,0)+IF(R132='TempO Answers'!G$15,1,0)+IF(S132='TempO Answers'!H$15,1,0)+IF(T132='TempO Answers'!I$15,1,0)","v":4},{"$f":"IF(V132='TempO Answers'!J$15,1,0)+IF(W132='TempO Answers'!K$15,1,0)+IF(X132='TempO Answers'!L$15,1,0)+IF(Y132='TempO Answers'!M$15,1,0)","v":4},{"$f":"IF(AA132='TempO Answers'!N$15,1,0)+IF(AB132='TempO Answers'!O$15,1,0)+IF(AC132='TempO Answers'!P$15,1,0)+IF(AD132='TempO Answers'!Q$15,1,0)","v":4},{"$f":"IF(AF132='TempO Answers'!R$15,1,0)+IF(AG132='TempO Answers'!S$15,1,0)+IF(AH132='TempO Answers'!T$15,1,0)+IF(AI132='TempO Answers'!U$15,1,0)","v":4}]
[127,1,null,null,null,0,{"$f":"'TempO Answers'!$Y$19-F133","v":20},0,{"$f":"G133*'TempO Answers'!$N$7","v":600},9999,null,null,null,null,null,null,null,null,null,null,null,null,null,null,null,null,null,null,null,null,null,null,null,null,null,null,"",{"$f":"IF(L133='TempO Answers'!B$15,1,0)+IF(M133='TempO Answers'!C$15,1,0)+IF(N133='TempO Answers'!D$15,1,0)+IF(O133='TempO Answers'!E$15,1,0)","v":4},{"$f":"IF(Q133='TempO Answers'!F$15,1,0)+IF(R133='TempO Answers'!G$15,1,0)+IF(S133='TempO Answers'!H$15,1,0)+IF(T133='TempO Answers'!I$15,1,0)","v":4},{"$f":"IF(V133='TempO Answers'!J$15,1,0)+IF(W133='TempO Answers'!K$15,1,0)+IF(X133='TempO Answers'!L$15,1,0)+IF(Y133='TempO Answers'!M$15,1,0)","v":4},{"$f":"IF(AA133='TempO Answers'!N$15,1,0)+IF(AB133='TempO Answers'!O$15,1,0)+IF(AC133='TempO Answers'!P$15,1,0)+IF(AD133='TempO Answers'!Q$15,1,0)","v":4},{"$f":"IF(AF133='TempO Answers'!R$15,1,0)+IF(AG133='TempO Answers'!S$15,1,0)+IF(AH133='TempO Answers'!T$15,1,0)+IF(AI133='TempO Answers'!U$15,1,0)","v":4}]
[128,1,null,null,null,0,{"$f":"'TempO Answers'!$Y$19-F134","v":20},0,{"$f":"G134*'TempO Answers'!$N$7","v":600},9999,null,null,null,null,null,null,null,null,null,null,null,null,null,null,null,null,null,null,null,null,null,null,null,null,null,null,"",{"$f":"IF(L134='TempO Answers'!B$15,1,0)+IF(M134='TempO Answers'!C$15,1,0)+IF(N134='TempO Answers'!D$15,1,0)+IF(O134='TempO Answers'!E$15,1,0)","v":4},{"$f":"IF(Q134='TempO Answers'!F$15,1,0)+IF(R134='TempO Answers'!G$15,1,0)+IF(S134='TempO Answers'!H$15,1,0)+IF(T134='TempO Answers'!I$15,1,0)","v":4},{"$f":"IF(V134='TempO Answers'!J$15,1,0)+IF(W134='TempO Answers'!K$15,1,0)+IF(X134='TempO Answers'!L$15,1,0)+IF(Y134='TempO Answers'!M$15,1,0)","v":4},{"$f":"IF(AA134='TempO Answers'!N$15,1,0)+IF(AB134='TempO Answers'!O$15,1,0)+IF(AC134='TempO Answers'!P$15,1,0)+IF(AD134='TempO Answers'!Q$15,1,0)","v":4},{"$f":"IF(AF134='TempO Answers'!R$15,1,0)+IF(AG134='TempO Answers'!S$15,1,0)+IF(AH134='TempO Answers'!T$15,1,0)+IF(AI134='TempO Answers'!U$15,1,0)","v":4}]
[129,1,null,null,null,0,{"$f":"'TempO Answers'!$Y$19-F135","v":20},0,{"$f":"G135*'TempO Answers'!$N$7","v":600},9999,null,null,null,null,null,null,null,null,null,null,null,null,null,null,null,null,null,null,null,null,null,null,null,null,null,null,"",{"$f":"IF(L135='TempO Answers'!B$15,1,0)+IF(M135='TempO Answers'!C$15,1,0)+IF(N135='TempO Answers'!D$15,1,0)+IF(O135='TempO Answers'!E$15,1,0)","v":4},{"$f":"IF(Q135='TempO Answers'!F$15,1,0)+IF(R135='TempO Answers'!G$15,1,0)+IF(S135='TempO Answers'!H$15,1,0)+IF(T135='TempO Answers'!I$15,1,0)","v":4},{"$f":"IF(V135='TempO Answers'!J$15,1,0)+IF(W135='TempO Answers'!K$15,1,0)+IF(X135='TempO Answers'!L$15,1,0)+IF(Y135='TempO Answers'!M$15,1,0)","v":4},{"$f":"IF(AA135='TempO Answers'!N$15,1,0)+IF(AB135='TempO Answers'!O$15,1,0)+IF(AC135='TempO Answers'!P$15,1,0)+IF(AD135='TempO Answers'!Q$15,1,0)","v":4},{"$f":"IF(AF135='TempO Answers'!R$15,1,0)+IF(AG135='TempO Answers'!S$15,1,0)+IF(AH135='TempO Answers'!T$15,1,0)+IF(AI135='TempO Answers'!U$15,1,0)","v":4}]
[130,1,null,null,null,0,{"$f":"'TempO Answers'!$Y$19-F136","v":20},0,{"$f":"G136*'TempO Answers'!$N$7","v":600},9999,null,null,null,null,null,null,null,null,null,null,null,null,null,null,null,null,null,null,null,null,null,null,null,null,null,null,"",{"$f":"IF(L136='TempO Answers'!B$15,1,0)+IF(M136='TempO Answers'!C$15,1,0)+IF(N136='TempO Answers'!D$15,1,0)+IF(O136='TempO Answers'!E$15,1,0)","v":4},{"$f":"IF(Q136='TempO Answers'!F$15,1,0)+IF(R136='TempO Answers'!G$15,1,0)+IF(S136='TempO Answers'!H$15,1,0)+IF(T136='TempO Answers'!I$15,1,0)","v":4},{"$f":"IF(V136='TempO Answers'!J$15,1,0)+IF(W136='TempO Answers'!K$15,1,0)+IF(X136='TempO Answers'!L$15,1,0)+IF(Y136='TempO Answers'!M$15,1,0)","v":4},{"$f":"IF(AA136='TempO Answers'!N$15,1,0)+IF(AB136='TempO Answers'!O$15,1,0)+IF(AC136='TempO Answers'!P$15,1,0)+IF(AD136='TempO Answers'!Q$15,1,0)","v":4},{"$f":"IF(AF136='TempO Answers'!R$15,1,0)+IF(AG136='TempO Answers'!S$15,1,0)+IF(AH136='TempO Answers'!T$15,1,0)+IF(AI136='TempO Answers'!U$15,1,0)","v":4}]
[131,1,null,null,null,0,{"$f":"'TempO Answers'!$Y$19-F137","v":20},0,{"$f":"G137*'TempO Answers'!$N$7","v":600},9999,null,null,null,null,null,null,null,null,null,null,null,null,null,null,null,null,null,null,null,null,null,null,null,null,null,null,"",{"$f":"IF(L137='TempO Answers'!B$15,1,0)+IF(M137='TempO Answers'!C$15,1,0)+IF(N137='TempO Answers'!D$15,1,0)+IF(O137='TempO Answers'!E$15,1,0)","v":4},{"$f":"IF(Q137='TempO Answers'!F$15,1,0)+IF(R137='TempO Answers'!G$15,1,0)+IF(S137='TempO Answers'!H$15,1,0)+IF(T137='TempO Answers'!I$15,1,0)","v":4},{"$f":"IF(V137='TempO Answers'!J$15,1,0)+IF(W137='TempO Answers'!K$15,1,0)+IF(X137='TempO Answers'!L$15,1,0)+IF(Y137='TempO Answers'!M$15,1,0)","v":4},{"$f":"IF(AA137='TempO Answers'!N$15,1,0)+IF(AB137='TempO Answers'!O$15,1,0)+IF(AC137='TempO Answers'!P$15,1,0)+IF(AD137='TempO Answers'!Q$15,1,0)","v":4},{"$f":"IF(AF137='TempO Answers'!R$15,1,0)+IF(AG137='TempO Answers'!S$15,1,0)+IF(AH137='TempO Answers'!T$15,1,0)+IF(AI137='TempO Answers'!U$15,1,0)","v":4}]
[132,1,null,null,null,0,{"$f":"'TempO Answers'!$Y$19-F138","v":20},0,{"$f":"G138*'TempO Answers'!$N$7","v":600},9999,null,null,null,null,null,null,null,null,null,null,null,null,null,null,null,null,null,null,null,null,null,null,null,null,null,null,"",{"$f":"IF(L138='TempO Answers'!B$15,1,0)+IF(M138='TempO Answers'!C$15,1,0)+IF(N138='TempO Answers'!D$15,1,0)+IF(O138='TempO Answers'!E$15,1,0)","v":4},{"$f":"IF(Q138='TempO Answers'!F$15,1,0)+IF(R138='TempO Answers'!G$15,1,0)+IF(S138='TempO Answers'!H$15,1,0)+IF(T138='TempO Answers'!I$15,1,0)","v":4},{"$f":"IF(V138='TempO Answers'!J$15,1,0)+IF(W138='TempO Answers'!K$15,1,0)+IF(X138='TempO Answers'!L$15,1,0)+IF(Y138='TempO Answers'!M$15,1,0)","v":4},{"$f":"IF(AA138='TempO Answers'!N$15,1,0)+IF(AB138='TempO Answers'!O$15,1,0)+IF(AC138='TempO Answers'!P$15,1,0)+IF(AD138='TempO Answers'!Q$15,1,0)","v":4},{"$f":"IF(AF138='TempO Answers'!R$15,1,0)+IF(AG138='TempO Answers'!S$15,1,0)+IF(AH138='TempO Answers'!T$15,1,0)+IF(AI138='TempO Answers'!U$15,1,0)","v":4}]
[" "," "," "," "," "," "," "," "," "," "," "," "," "," "," "," "," "," "," "," "," "," "," "," "," "," "," "," "," "," "," "," "," "," "," "," "]

{"sheet":"Sorted Results","index":2,"n_rows":137,"n_cols":16,"rows_kept":137,"cut":false,"hidden":false,"merged":[[0,7,0,15],[1,7,1,15],[0,3,0,5],[2,13,2,15]]}
[null,"Re-calculated at:",null,{"$f":"NOW()","v":"2018-01-18T17:54:24.310"},null,null,null,{"$f":"T('TempO Answers'!A1)","v":"Type Event Name here"}]
[null,null,null,null,null,null,null,{"$f":"T('TempO Answers'!A2)","v":"Type Event Date here"}]
[null,"Click on the button to refresh and sort results:",null,null,null,null,null,null,null,null,"   Results produced at :",null,null,"2016-01-15T12:52:46.600"]
[null,null,null,null,null,null,null,"Rank","Name","Club","Nation","No. Correct","No. Incorrect","Agg. Time","Penal -ties","Result (sec)"]
[null,null,null,null,null,null,null,1,null,null,null,0,20,0,600,9999]
[null,null,null,null,null,null,null,1,null,null,null,0,20,0,600,9999]
[null,"To print, choose the desired print area by clicking",null,null,null,null,null,1,null,null,null,0,20,0,600,9999]
[null,"on a button below.  Then use the normal Print command.",null,null,null,null,null,1,null,null,null,0,20,0,600,9999]
[null,"Use portrait printing on A4, no reduction.",null,null,null,null,null,1,null,null,null,0,20,0,600,9999]
[null,null,null,null,null,null,null,1,null,null,null,0,20,0,600,9999]
[null,"Select one page print area (top 44):",null,null,null,null,null,1,null,null,null,0,20,0,600,9999]
[null,null,null,null,null,null,null,1,null,null,null,0,20,0,600,9999]
[null,null,null,null,null,null,null,1,null,null,null,0,20,0,600,9999]
[null,null,null,null,null,null,null,1,null,null,null,0,20,0,600,9999]
[null,null,null,null,null,null,null,1,null,null,null,0,20,0,600,9999]
[null,"Select two page print area (top 88):",null,null,null,null,null,1,null,null,null,0,20,0,600,9999]
[null,null,null,null,null,null,null,1,null,null,null,0,20,0,600,9999]
[null,null,null,null,null,null,null,1,null,null,null,0,20,0,600,9999]
[null,null,null,null,null,null,null,1,null,null,null,0,20,0,600,9999]
[null,null,null,null,null,null,null,1,null,null,null,0,20,0,600,9999]
[null,"Select 3 page print area (all 132):",null,null,null,null,null,1,null,null,null,0,20,0,600,9999]
[null,null,null,null,null,null,null,1,null,null,null,0,20,0,600,9999]
[null,null,null,null,null,null,null,1,null,null,null,0,20,0,600,9999]
[null,null,null,null,null,null,null,1,null,null,null,0,20,0,600,9999]
[null,null,null,null,null,null,null,1,null,null,null,0,20,0,600,9999]
[null,null,null,null,null,null,null,1,null,null,null,0,20,0,600,9999]
[null,null,null,null,null,null,null,1,null,null,null,0,20,0,600,9999]
[null,null,null,null,null,null,null,1,null,null,null,0,20,0,600,9999]
[null,null,null,null,null,null,null,1,null,null,null,0,20,0,600,9999]
[null,null,null,null,null,null,null,1,null,null,null,0,20,0,600,9999]
[null,null,null,null,null,null,null,1,null,null,null,0,20,0,600,9999]
[null,null,null,null,null,null,null,1,null,null,null,0,20,0,600,9999]
[null,null,null,null,null,null,null,1,null,null,null,0,20,0,600,9999]
[null,null,null,null,null,null,null,1,null,null,null,0,20,0,600,9999]
[null,null,null,null,null,null,null,1,null,null,null,0,20,0,600,9999]
[null,null,null,null,null,null,null,1,null,null,null,0,20,0,600,9999]
[null,null,null,null,null,null,null,1,null,null,null,0,20,0,600,9999]
[null,null,null,null,null,null,null,1,null,null,null,0,20,0,600,9999]
[null,null,null,null,null,null,null,1,null,null,null,0,20,0,600,9999]
[null,null,null,null,null,null,null,1,null,null,null,0,20,0,600,9999]
[null,null,null,null,null,null,null,1,null,null,null,0,20,0,600,9999]
[null,null,null,null,null,null,null,1,null,null,null,0,20,0,600,9999]
[null,null,null,null,null,null,null,1,null,null,null,0,20,0,600,9999]
[null,null,null,null,null,null,null,1,null,null,null,0,20,0,600,9999]
[null,null,null,null,null,null,null,1,null,null,null,0,20,0,600,9999]
[null,null,null,null,null,null,null,1,null,null,null,0,20,0,600,9999]
[null,null,null,null,null,null,null,1,null,null,null,0,20,0,600,9999]
[null,null,null,null,null,null,null,1,null,null,null,0,20,0,600,9999]
[null,null,null,null,null,null,null,1,null,null,null,0,20,0,600,9999]
[null,null,null,null,null,null,null,1,null,null,null,0,20,0,600,9999]
[null,null,null,null,null,null,null,1,null,null,null,0,20,0,600,9999]
[null,null,null,null,null,null,null,1,null,null,null,0,20,0,600,9999]
[null,null,null,null,null,null,null,1,null,null,null,0,20,0,600,9999]
[null,null,null,null,null,null,null,1,null,null,null,0,20,0,600,9999]
[null,null,null,null,null,null,null,1,null,null,null,0,20,0,600,9999]
[null,null,null,null,null,null,null,1,null,null,null,0,20,0,600,9999]
[null,null,null,null,null,null,null,1,null,null,null,0,20,0,600,9999]
[null,null,null,null,null,null,null,1,null,null,null,0,20,0,600,9999]
[null,null,null,null,null,null,null,1,null,null,null,0,20,0,600,9999]
[null,null,null,null,null,null,null,1,null,null,null,0,20,0,600,9999]
[null,null,null,null,null,null,null,1,null,null,null,0,20,0,600,9999]
[null,null,null,null,null,null,null,1,null,null,null,0,20,0,600,9999]
[null,null,null,null,null,null,null,1,null,null,null,0,20,0,600,9999]
[null,null,null,null,null,null,null,1,null,null,null,0,20,0,600,9999]
[null,null,null,null,null,null,null,1,null,null,null,0,20,0,600,9999]
[null,null,null,null,null,null,null,1,null,null,null,0,20,0,600,9999]
[null,null,null,null,null,null,null,1,null,null,null,0,20,0,600,9999]
[null,null,null,null,null,null,null,1,null,null,null,0,20,0,600,9999]
[null,null,null,null,null,null,null,1,null,null,null,0,20,0,600,9999]
[null,null,null,null,null,null,null,1,null,null,null,0,20,0,600,9999]
[null,null,null,null,null,null,null,1,null,null,null,0,20,0,600,9999]
[null,null,null,null,null,null,null,1,null,null,null,0,20,0,600,9999]
[null,null,null,null,null,null,null,1,null,null,null,0,20,0,600,9999]
[null,null,null,null,null,null,null,1,null,null,null,0,20,0,600,9999]
[null,null,null,null,null,null,null,1,null,null,null,0,20,0,600,9999]
[null,null,null,null,null,null,null,1,null,null,null,0,20,0,600,9999]
[null,null,null,null,null,null,null,1,null,null,null,0,20,0,600,9999]
[null,null,null,null,null,null,null,1,null,null,null,0,20,0,600,9999]
[null,null,null,null,null,null,null,1,null,null,null,0,20,0,600,9999]
[null,null,null,null,null,null,null,1,null,null,null,0,20,0,600,9999]
[null,null,null,null,null,null,null,1,null,null,null,0,20,0,600,9999]
[null,null,null,null,null,null,null,1,null,null,null,0,20,0,600,9999]
[null,null,null,null,null,null,null,1,null,null,null,0,20,0,600,9999]
[null,null,null,null,null,null,null,1,null,null,null,0,20,0,600,9999]
[null,null,null,null,null,null,null,1,null,null,null,0,20,0,600,9999]
[null,null,null,null,null,null,null,1,null,null,null,0,20,0,600,9999]
[null,null,null,null,null,null,null,1,null,null,null,0,20,0,600,9999]
[null,null,null,null,null,null,null,1,null,null,null,0,20,0,600,9999]
[null,null,null,null,null,null,null,1,null,null,null,0,20,0,600,9999]
[null,null,null,null,null,null,null,1,null,null,null,0,20,0,600,9999]
[null,null,null,null,null,null,null,1,null,null,null,0,20,0,600,9999]
[null,null,null,null,null,null,null,1,null,null,null,0,20,0,600,9999]
[null,null,null,null,null,null,null,1,null,null,null,0,20,0,600,9999]
[null,null,null,null,null,null,null,1,null,null,null,0,20,0,600,9999]
[null,null,null,null,null,null,null,1,null,null,null,0,20,0,600,9999]
[null,null,null,null,null,null,null,1,null,null,null,0,20,0,600,9999]
[null,null,null,null,null,null,null,1,null,null,null,0,20,0,600,9999]
[null,null,null,null,null,null,null,1,null,null,null,0,20,0,600,9999]
[null,null,null,null,null,null,null,1,null,null,null,0,20,0,600,9999]
[null,null,null,null,null,null,null,1,null,null,null,0,20,0,600,9999]
[null,null,null,null,null,null,null,1,null,null,null,0,20,0,600,9999]
[null,null,null,null,null,null,null,1,null,null,null,0,20,0,600,9999]
[null,null,null,null,null,null,null,1,null,null,null,0,20,0,600,9999]
[null,null,null,null,null,null,null,1,null,null,null,0,20,0,600,9999]
[null,null,null,null,null,null,null,1,null,null,null,0,20,0,600,9999]
[null,null,null,null,null,null,null,1,null,null,null,0,20,0,600,9999]
[null,null,null,null,null,null,null,1,null,null,null,0,20,0,600,9999]
[null,null,null,null,null,null,null,1,null,null,null,0,20,0,600,9999]
[null,null,null,null,null,null,null,1,null,null,null,0,20,0,600,9999]
[null,null,null,null,null,null,null,1,null,null,null,0,20,0,600,9999]
[null,null,null,null,null,null,null,1,null,null,null,0,20,0,600,9999]
[null,null,null,null,null,null,null,1,null,null,null,0,20,0,600,9999]
[null,null,null,null,null,null,null,1,null,null,null,0,20,0,600,9999]
[null,null,null,null,null,null,null,1,null,null,null,0,20,0,600,9999]
[null,null,null,null,null,null,null,1,null,null,null,0,20,0,600,9999]
[null,null,null,null,null,null,null,1,null,null,null,0,20,0,600,9999]
[null,null,null,null,null,null,null,1,null,null,null,0,20,0,600,9999]
[null,null,null,null,null,null,null,1,null,null,null,0,20,0,600,9999]
[null,null,null,null,null,null,null,1,null,null,null,0,20,0,600,9999]
[null,null,null,null,null,null,null,1,null,null,null,0,20,0,600,9999]
[null,null,null,null,null,null,null,1,null,null,null,0,20,0,600,9999]
[null,null,null,null,null,null,null,1,null,null,null,0,20,0,600,9999]
[null,null,null,null,null,null,null,1,null,null,null,0,20,0,600,9999]
[null,null,null,null,null,null,null,1,null,null,null,0,20,0,600,9999]
[null,null,null,null,null,null,null,1,null,null,null,0,20,0,600,9999]
[null,null,null,null,null,null,null,1,null,null,null,0,20,0,600,9999]
[null,null,null,null,null,null,null,1,null,null,null,0,20,0,600,9999]
[null,null,null,null,null,null,null,1,null,null,null,0,20,0,600,9999]
[null,null,null,null,null,null,null,1,null,null,null,0,20,0,600,9999]
[null,null,null,null,null,null,null,1,null,null,null,0,20,0,600,9999]
[null,null,null,null,null,null,null,1,null,null,null,0,20,0,600,9999]
[null,null,null,null,null,null,null,1,null,null,null,0,20,0,600,9999]
[null,null,null,null,null,null,null,1,null,null,null,0,20,0,600,9999]
[null,null,null,null,null,null,null,1,null,null,null,0,20,0,600,9999]
[null,null,null,null,null,null,null,1,null,null,null,0,20,0,600,9999]
[null,null,null,null,null,null,null,1,null,null,null,0,20,0,600,9999]
[" ",null,null,null,null,null,null," "," "," "," "," "," "," "," "," "]

{"sheet":"Sorted Table","index":3,"n_rows":137,"n_cols":42,"rows_kept":137,"cut":false,"hidden":false,"merged":[[1,37,1,41],[2,13,2,15],[0,3,0,5],[0,7,0,15],[1,7,1,15],[1,17,1,21],[1,22,1,26],[1,27,1,31],[1,32,1,36]]}
[null,"Re-calculated at:",null,{"$f":"NOW()","v":"2018-01-18T17:54:24.310"},null,null,null,{"$f":"T('TempO Answers'!A1)","v":"Type Event Name here"}]
[null,null,null,null,null,null,null,{"$f":"T('TempO Answers'!A2)","v":"Type Event Date here"},null,null,null,null,null,null,null,null,null,"Station 1",null,null,null,null,"Station 2",null,null,null,null,"Station 3",null,null,null,null,"Station 4",null,null,null,null,"Station 5"]
[null,"Click on the button to refresh and sort the full results table:",null,null,null,null,null,null,null,null,"   Results produced at :",null,null,"2016-01-15T12:53:02.480",null,null,null,{"$f":"T('TempO Answers'!B15)","v":""},{"$f":"T('TempO Answers'!C15)","v":""},{"$f":"T('TempO Answers'!D15)","v":""},{"$f":"T('TempO Answers'!E15)","v":""},null,{"$f":"T('TempO Answers'!F15)","v":""},{"$f":"T('TempO Answers'!G15)","v":""},{"$f":"T('TempO Answers'!H15)","v":""},{"$f":"T('TempO Answers'!I15)","v":""},null,{"$f":"T('TempO Answers'!J15)","v":""},{"$f":"T('TempO Answers'!K15)","v":""},{"$f":"T('TempO Answers'!L15)","v":""},{"$f":"T('TempO Answers'!M15)","v":""},null,{"$f":"T('TempO Answers'!N15)","v":""},{"$f":"T('TempO Answers'!O15)","v":""},{"$f":"T('TempO Answers'!P15)","v":""},{"$f":"T('TempO Answers'!Q15)","v":""},null,{"$f":"T('TempO Answers'!R15)","v":""},{"$f":"T('TempO Answers'!S15)","v":""},{"$f":"T('TempO Answers'!T15)","v":""},{"$f":"T('TempO Answers'!U15)","v":""}]
[null,null,null,null,null,null,null,"Rank","Name","Club","Nat.","No. Correct","No. Incorrect","Agg. Time","Penal -ties","Result (sec)",null,1,2,3,4,"Time (sec)",5,6,7,8,"Time (sec)",9,10,11,12,"Time (sec)",13,14,15,16,"Time (sec)",17,18,19,20,"Time (sec)"]
[null,null,null,null,null,null,null,1,null,null,null,0,20,0,600,9999]
[null,null,null,null,null,null,null,1,null,null,null,0,20,0,600,9999]
[null,"To print, choose the desired print area by clicking",null,null,null,null,null,1,null,null,null,0,20,0,600,9999]
[null,"on a button below.  Then use the normal Print command.",null,null,null,null,null,1,null,null,null,0,20,0,600,9999]
[null,"Use landscape printing on A4, with 85% reduction.",null,null,null,null,null,1,null,null,null,0,20,0,600,9999]
[null,null,null,null,null,null,null,1,null,null,null,0,20,0,600,9999]
[null,"Select one page print area (top 33):",null,null,null,null,null,1,null,null,null,0,20,0,600,9999]
[null,null,null,null,null,null,null,1,null,null,null,0,20,0,600,9999]
[null,null,null,null,null,null,null,1,null,null,null,0,20,0,600,9999]
[null,null,null,null,null,null,null,1,null,null,null,0,20,0,600,9999]
[null,"Select two page print area (top 66):",null,null,null,null,null,1,null,null,null,0,20,0,600,9999]
[null,null,null,null,null,null,null,1,null,null,null,0,20,0,600,9999]
[null,null,null,null,null,null,null,1,null,null,null,0,20,0,600,9999]
[null,null,null,null,null,null,null,1,null,null,null,0,20,0,600,9999]
[null,"Select three page print area (top 99):",null,null,null,null,null,1,null,null,null,0,20,0,600,9999]
[null,null,null,null,null,null,null,1,null,null,null,0,20,0,600,9999]
[null,null,null,null,null,null,null,1,null,null,null,0,20,0,600,9999]
[null,null,null,null,null,null,null,1,null,null,null,0,20,0,600,9999]
[null,"Select four page print area (all 132):",null,null,null,null,null,1,null,null,null,0,20,0,600,9999]
[null,null,null,null,null,null,null,1,null,null,null,0,20,0,600,9999]
[null,null,null,null,null,null,null,1,null,null,null,0,20,0,600,9999]
[null,null,null,null,null,null,null,1,null,null,null,0,20,0,600,9999]
[null,null,null,null,null,null,null,1,null,null,null,0,20,0,600,9999]
[null,null,null,null,null,null,null,1,null,null,null,0,20,0,600,9999]
[null,null,null,null,null,null,null,1,null,null,null,0,20,0,600,9999]
[null,null,null,null,null,null,null,1,null,null,null,0,20,0,600,9999]
[null,null,null,null,null,null,null,1,null,null,null,0,20,0,600,9999]
[null,null,null,null,null,null,null,1,null,null,null,0,20,0,600,9999]
[null,null,null,null,null,null,null,1,null,null,null,0,20,0,600,9999]
[null,null,null,null,null,null,null,1,null,null,null,0,20,0,600,9999]
[null,null,null,null,null,null,null,1,null,null,null,0,20,0,600,9999]
[null,null,null,null,null,null,null,1,null,null,null,0,20,0,600,9999]
[null,null,null,null,null,null,null,1,null,null,null,0,20,0,600,9999]
[null,null,null,null,null,null,null,1,null,null,null,0,20,0,600,9999]
[null,null,null,null,null,null,null,1,null,null,null,0,20,0,600,9999]
[null,null,null,null,null,null,null,1,null,null,null,0,20,0,600,9999]
[null,null,null,null,null,null,null,1,null,null,null,0,20,0,600,9999]
[null,null,null,null,null,null,null,1,null,null,null,0,20,0,600,9999]
[null,null,null,null,null,null,null,1,null,null,null,0,20,0,600,9999]
[null,null,null,null,null,null,null,1,null,null,null,0,20,0,600,9999]
[null,null,null,null,null,null,null,1,null,null,null,0,20,0,600,9999]
[null,null,null,null,null,null,null,1,null,null,null,0,20,0,600,9999]
[null,null,null,null,null,null,null,1,null,null,null,0,20,0,600,9999]
[null,null,null,null,null,null,null,1,null,null,null,0,20,0,600,9999]
[null,null,null,null,null,null,null,1,null,null,null,0,20,0,600,9999]
[null,null,null,null,null,null,null,1,null,null,null,0,20,0,600,9999]
[null,null,null,null,null,null,null,1,null,null,null,0,20,0,600,9999]
[null,null,null,null,null,null,null,1,null,null,null,0,20,0,600,9999]
[null,null,null,null,null,null,null,1,null,null,null,0,20,0,600,9999]
[null,null,null,null,null,null,null,1,null,null,null,0,20,0,600,9999]
[null,null,null,null,null,null,null,1,null,null,null,0,20,0,600,9999]
[null,null,null,null,null,null,null,1,null,null,null,0,20,0,600,9999]
[null,null,null,null,null,null,null,1,null,null,null,0,20,0,600,9999]
[null,null,null,null,null,null,null,1,null,null,null,0,20,0,600,9999]
[null,null,null,null,null,null,null,1,null,null,null,0,20,0,600,9999]
[null,null,null,null,null,null,null,1,null,null,null,0,20,0,600,9999]
[null,null,null,null,null,null,null,1,null,null,null,0,20,0,600,9999]
[null,null,null,null,null,null,null,1,null,null,null,0,20,0,600,9999]
[null,null,null,null,null,null,null,1,null,null,null,0,20,0,600,9999]
[null,null,null,null,null,null,null,1,null,null,null,0,20,0,600,9999]
[null,null,null,null,null,null,null,1,null,null,null,0,20,0,600,9999]
[null,null,null,null,null,null,null,1,null,null,null,0,20,0,600,9999]
[null,null,null,null,null,null,null,1,null,null,null,0,20,0,600,9999]
[null,null,null,null,null,null,null,1,null,null,null,0,20,0,600,9999]
[null,null,null,null,null,null,null,1,null,null,null,0,20,0,600,9999]
[null,null,null,null,null,null,null,1,null,null,null,0,20,0,600,9999]
[null,null,null,null,null,null,null,1,null,null,null,0,20,0,600,9999]
[null,null,null,null,null,null,null,1,null,null,null,0,20,0,600,9999]
[null,null,null,null,null,null,null,1,null,null,null,0,20,0,600,9999]
[null,null,null,null,null,null,null,1,null,null,null,0,20,0,600,9999]
[null,null,null,null,null,null,null,1,null,null,null,0,20,0,600,9999]
[null,null,null,null,null,null,null,1,null,null,null,0,20,0,600,9999]
[null,null,null,null,null,null,null,1,null,null,null,0,20,0,600,9999]
[null,null,null,null,null,null,null,1,null,null,null,0,20,0,600,9999]
[null,null,null,null,null,null,null,1,null,null,null,0,20,0,600,9999]
[null,null,null,null,null,null,null,1,null,null,null,0,20,0,600,9999]
[null,null,null,null,null,null,null,1,null,null,null,0,20,0,600,9999]
[null,null,null,null,null,null,null,1,null,null,null,0,20,0,600,9999]
[null,null,null,null,null,null,null,1,null,null,null,0,20,0,600,9999]
[null,null,null,null,null,null,null,1,null,null,null,0,20,0,600,9999]
[null,null,null,null,null,null,null,1,null,null,null,0,20,0,600,9999]
[null,null,null,null,null,null,null,1,null,null,null,0,20,0,600,9999]
[null,null,null,null,null,null,null,1,null,null,null,0,20,0,600,9999]
[null,null,null,null,null,null,null,1,null,null,null,0,20,0,600,9999]
[null,null,null,null,null,null,null,1,null,null,null,0,20,0,600,9999]
[null,null,null,null,null,null,null,1,null,null,null,0,20,0,600,9999]
[null,null,null,null,null,null,null,1,null,null,null,0,20,0,600,9999]
[null,null,null,null,null,null,null,1,null,null,null,0,20,0,600,9999]
[null,null,null,null,null,null,null,1,null,null,null,0,20,0,600,9999]
[null,null,null,null,null,null,null,1,null,null,null,0,20,0,600,9999]
[null,null,null,null,null,null,null,1,null,null,null,0,20,0,600,9999]
[null,null,null,null,null,null,null,1,null,null,null,0,20,0,600,9999]
[null,null,null,null,null,null,null,1,null,null,null,0,20,0,600,9999]
[null,null,null,null,null,null,null,1,null,null,null,0,20,0,600,9999]
[null,null,null,null,null,null,null,1,null,null,null,0,20,0,600,9999]
[null,null,null,null,null,null,null,1,null,null,null,0,20,0,600,9999]
[null,null,null,null,null,null,null,1,null,null,null,0,20,0,600,9999]
[null,null,null,null,null,null,null,1,null,null,null,0,20,0,600,9999]
[null,null,null,null,null,null,null,1,null,null,null,0,20,0,600,9999]
[null,null,null,null,null,null,null,1,null,null,null,0,20,0,600,9999]
[null,null,null,null,null,null,null,1,null,null,null,0,20,0,600,9999]
[null,null,null,null,null,null,null,1,null,null,null,0,20,0,600,9999]
[null,null,null,null,null,null,null,1,null,null,null,0,20,0,600,9999]
[null,null,null,null,null,null,null,1,null,null,null,0,20,0,600,9999]
[null,null,null,null,null,null,null,1,null,null,null,0,20,0,600,9999]
[null,null,null,null,null,null,null,1,null,null,null,0,20,0,600,9999]
[null,null,null,null,null,null,null,1,null,null,null,0,20,0,600,9999]
[null,null,null,null,null,null,null,1,null,null,null,0,20,0,600,9999]
[null,null,null,null,null,null,null,1,null,null,null,0,20,0,600,9999]
[null,null,null,null,null,null,null,1,null,null,null,0,20,0,600,9999]
[null,null,null,null,null,null,null,1,null,null,null,0,20,0,600,9999]
[null,null,null,null,null,null,null,1,null,null,null,0,20,0,600,9999]
[null,null,null,null,null,null,null,1,null,null,null,0,20,0,600,9999]
[null,null,null,null,null,null,null,1,null,null,null,0,20,0,600,9999]
[null,null,null,null,null,null,null,1,null,null,null,0,20,0,600,9999]
[null,null,null,null,null,null,null,1,null,null,null,0,20,0,600,9999]
[null,null,null,null,null,null,null,1,null,null,null,0,20,0,600,9999]
[null,null,null,null,null,null,null,1,null,null,null,0,20,0,600,9999]
[null,null,null,null,null,null,null,1,null,null,null,0,20,0,600,9999]
[null,null,null,null,null,null,null,1,null,null,null,0,20,0,600,9999]
[null,null,null,null,null,null,null,1,null,null,null,0,20,0,600,9999]
[null,null,null,null,null,null,null,1,null,null,null,0,20,0,600,9999]
[null,null,null,null,null,null,null,1,null,null,null,0,20,0,600,9999]
[null,null,null,null,null,null,null,1,null,null,null,0,20,0,600,9999]
[null,null,null,null,null,null,null,1,null,null,null,0,20,0,600,9999]
[null,null,null,null,null,null,null,1,null,null,null,0,20,0,600,9999]
[null,null,null,null,null,null,null,1,null,null,null,0,20,0,600,9999]
[null,null,null,null,null,null,null,1,null,null,null,0,20,0,600,9999]
[null,null,null,null,null,null,null,1,null,null,null,0,20,0,600,9999]
[null,null,null,null,null,null,null,1,null,null,null,0,20,0,600,9999]
[null,null,null,null,null,null,null,1,null,null,null,0,20,0,600,9999]
[null,null,null,null,null,null,null,1,null,null,null,0,20,0,600,9999]
[" ",null,null,null,null,null,null," "," "," "," "," "," "," "," "," "]